Workbook

Sheet TrialGameConfig
B1: Id | C1: Type | D1: RewardID | E1: Weight | F1: Min | G1: Max | H1: UnlockLv
B2: int | C2: int | D2: int | E2: int | F2: int | G2: int | H2: int
B3: 2 | C3: 2 | D3: 2 | E3: 2 | F3: 2 | G3: 2 | H3: 2
B4: ID | C4: 类型 16福星 17转盘 18挖矿 | D4: 奖励道具id | E4: 权重 | F4: 奖励数量下限 | G4: 奖励数量上限 | H4: 奖励入库等级
A5: 默认值 | B5: 0 | C5: 0 | F5: null | G5: 0 | H5: 1
A6: 正确性校对
A7: 校对值
B8: 1 | C8: 16 | D8: 3 | E8: 100 | F8: 20000 | G8: 23000 | H8: 55
B9: 2 | C9: 16 | D9: 3 | E9: 100 | F9: 23000 | G9: 26000 | H9: 65
B10: 3 | C10: 16 | D10: 3 | E10: 100 | F10: 26000 | G10: 29000 | H10: 75
B11: 4 | C11: 16 | D11: 3 | E11: 100 | F11: 29000 | G11: 32000 | H11: 85
B12: 5 | C12: 16 | D12: 3 | E12: 100 | F12: 32000 | G12: 35000 | H12: 95
B13: 6 | C13: 16 | D13: 3 | E13: 100 | F13: 35000 | G13: 38000 | H13: 105
B14: 7 | C14: 16 | D14: 3 | E14: 100 | F14: 38000 | G14: 41000 | H14: 115
B15: 8 | C15: 16 | D15: 3 | E15: 100 | F15: 41000 | G15: 44000 | H15: 125
B16: 9 | C16: 16 | D16: 3 | E16: 100 | F16: 44000 | G16: 47000 | H16: 135
B17: 10 | C17: 16 | D17: 3 | E17: 100 | F17: 47000 | G17: 50000 | H17: 145
B18: 11 | C18: 16 | D18: 3 | E18: 100 | F18: 20000 | G18: 23000 | H18: 55
B19: 12 | C19: 16 | D19: 3 | E19: 100 | F19: 23000 | G19: 26000 | H19: 65
B20: 13 | C20: 16 | D20: 3 | E20: 100 | F20: 26000 | G20: 29000 | H20: 75
B21: 14 | C21: 16 | D21: 3 | E21: 100 | F21: 29000 | G21: 32000 | H21: 85
B22: 15 | C22: 16 | D22: 3 | E22: 100 | F22: 32000 | G22: 35000 | H22: 95
B23: 16 | C23: 16 | D23: 3 | E23: 100 | F23: 35000 | G23: 38000 | H23: 105
B24: 17 | C24: 16 | D24: 3 | E24: 100 | F24: 38000 | G24: 41000 | H24: 115
B25: 18 | C25: 16 | D25: 3 | E25: 100 | F25: 41000 | G25: 44000 | H25: 125
B26: 19 | C26: 16 | D26: 3 | E26: 100 | F26: 44000 | G26: 47000 | H26: 135
B27: 20 | C27: 16 | D27: 3 | E27: 100 | F27: 47000 | G27: 50000 | H27: 145
B28: 21 | C28: 17 | D28: 16 | E28: 100 | F28: 100 | G28: 100 | H28: 55
B29: 22 | C29: 17 | D29: 16 | E29: 200 | F29: 50 | G29: 50 | H29: 55
B30: 23 | C30: 17 | D30: 14 | E30: 5000 | F30: 80000 | G30: 80000 | H30: 55
B31: 24 | C31: 17 | D31: 14 | E31: 3000 | F31: 100000 | G31: 100000 | H31: 55
B32: 25 | C32: 17 | D32: 14 | E32: 2000 | F32: 120000 | G32: 120000 | H32: 55
B33: 26 | C33: 17 | D33: 14 | E33: 1000 | F33: 150000 | G33: 150000 | H33: 55
B34: 27 | C34: 17 | D34: 3 | E34: 5000 | F34: 30000 | G34: 30000 | H34: 55
B35: 28 | C35: 17 | D35: 3 | E35: 3000 | F35: 40000 | G35: 40000 | H35: 55
B36: 29 | C36: 17 | D36: 3 | E36: 2000 | F36: 50000 | G36: 50000 | H36: 55
B37: 30 | C37: 17 | D37: 3 | E37: 1000 | F37: 60000 | G37: 60000 | H37: 55
B38: 31 | C38: 17 | D38: 1001 | E38: 5000 | F38: 300 | G38: 300 | H38: 55
B39: 32 | C39: 17 | D39: 1001 | E39: 3000 | F39: 400 | G39: 400 | H39: 55
B40: 33 | C40: 17 | D40: 1001 | E40: 2000 | F40: 500 | G40: 500 | H40: 55
B41: 34 | C41: 17 | D41: 1001 | E41: 1000 | F41: 600 | G41: 600 | H41: 55
B42: 35 | C42: 17 | D42: 66 | E42: 5000 | F42: 30 | G42: 30 | H42: 55
B43: 36 | C43: 17 | D43: 66 | E43: 3000 | F43: 40 | G43: 40 | H43: 55
B44: 37 | C44: 17 | D44: 66 | E44: 2000 | F44: 50 | G44: 50 | H44: 55
B45: 38 | C45: 17 | D45: 66 | E45: 1000 | F45: 60 | G45: 60 | H45: 55
B46: 63 | C46: 18 | D46: 16 | E46: 100 | F46: 100 | G46: 100 | H46: 55
B47: 64 | C47: 18 | D47: 16 | E47: 200 | F47: 50 | G47: 50 | H47: 55
B48: 65 | C48: 18 | D48: 14 | E48: 5000 | F48: 80000 | G48: 80000 | H48: 55
B49: 66 | C49: 18 | D49: 14 | E49: 3000 | F49: 100000 | G49: 100000 | H49: 55
B50: 67 | C50: 18 | D50: 14 | E50: 2000 | F50: 120000 | G50: 120000 | H50: 55
B51: 68 | C51: 18 | D51: 14 | E51: 1000 | F51: 150000 | G51: 150000 | H51: 55
B52: 69 | C52: 18 | D52: 3 | E52: 5000 | F52: 30000 | G52: 30000 | H52: 55
B53: 70 | C53: 18 | D53: 3 | E53: 3000 | F53: 40000 | G53: 40000 | H53: 55
B54: 71 | C54: 18 | D54: 3 | E54: 2000 | F54: 50000 | G54: 50000 | H54: 55
B55: 72 | C55: 18 | D55: 3 | E55: 1000 | F55: 60000 | G55: 60000 | H55: 55
B56: 73 | C56: 18 | D56: 1001 | E56: 5000 | F56: 300 | G56: 300 | H56: 55
B57: 74 | C57: 18 | D57: 1001 | E57: 3000 | F57: 400 | G57: 400 | H57: 55
B58: 75 | C58: 18 | D58: 1001 | E58: 2000 | F58: 500 | G58: 500 | H58: 55
B59: 76 | C59: 18 | D59: 1001 | E59: 1000 | F59: 600 | G59: 600 | H59: 55
B60: 77 | C60: 18 | D60: 66 | E60: 5000 | F60: 30 | G60: 30 | H60: 55
B61: 78 | C61: 18 | D61: 66 | E61: 3000 | F61: 40 | G61: 40 | H61: 55
B62: 79 | C62: 18 | D62: 66 | E62: 2000 | F62: 50 | G62: 50 | H62: 55
B63: 80 | C63: 18 | D63: 66 | E63: 1000 | F63: 60 | G63: 60 | H63: 55

Sheet boss及奖励分配表
E1: 11 | F1: 16 | G1: 14 | H1: 100 | I1: 100000 | J1: 120000 | K1: 55
E2: 12 | F2: 16 | G2: 14 | H2: 100 | I2: 120000 | J2: 140000 | K2: 65 | S2: 天数 | T2: 关卡 | U2: 层数 | V2: 天数 | W2: 战斗概率 | X2: 其他事件 | Y2: 具体天数 | Z2: boss个数 | AK2: 天数 | AL2: 层数 | AM2: 累计层数 | AN2: 扫荡层数 | AO2: 金币获取 | AP2: 累计获取 | AQ2: 铁矿石获取 | AR2: 累计获取 | AS2: 钻石获取 | AT2: 钻石累计获取 | AU2: 突破石获取 | AV2: 累计获取 | BA2: 层数 | BB2: 金币 | BC2: 累计 | BD2: 铁矿石 | BE2: 累计 | BF2: 钻石 | BG2: 概率 | BH2: 实际钻石 | BI2: 累计 | BJ2: 突破石 | BK2: 概率 | BL2: 实际获取 | BM2: 累计
E3: 13 | F3: 16 | G3: 14 | H3: 100 | I3: 140000 | J3: 160000 | K3: 75 | S3: 1 | T3: =VLOOKUP(V3,#REF!,3,TRUE) ->  | U3: 1 | V3: 1 | W3: 0.8 | X3: 0.2 | Y3: 0.5 | Z3: 3 | AA3: 10023 | AB3: =VLOOKUP(AA3,$AG:$AH,2,FALSE) -> 荧荧 | AC3: 10021 | AD3: 清然 | AE3: 10005 | AF3: 兰卿 | AK3: 1 | AL3: =COUNTIFS(V:V,AK3) -> 12 | AM3: =AL3 -> 12 | AN3: =_xlfn.FLOOR.MATH(AM3,5) -> 10 | AO3: =VLOOKUP(AN3,$BA:$BC,3,0) -> 9500 | AP3: =SUM($AO$3:AO3) -> 9500 | AQ3: =VLOOKUP(AN3,$BA:$BE,5,0) -> 525 | AR3: =SUM($AQ$3:AQ3) -> 525 | AS3: =VLOOKUP(AN3,$BA:$BI,9,0) -> 6 | AT3: =SUM($AS$3:AS3) -> 6 | AU3: =VLOOKUP(AN3,$BA:$BM,13) -> 20 | AV3: =SUM($AU$3:AU3) -> 20 | BA3: 1 | BB3: 500 | BC3: =SUM($BB$3:BB3) -> 500 | BD3: 30 | BE3: =SUM($BD$3:BD3) -> 30 | BF3: 5 | BG3: 0.12 | BH3: =BF3*BG3 -> 0.6 | BI3: =SUM($BH$3:BH3) -> 0.6 | BJ3: 10 | BK3: 0.2 | BL3: =BJ3*BK3 -> 2 | BM3: =SUM($BL$3:BL3) -> 2 | BP3: 荧荧 | BQ3: 10023 | BR3: 岑以璇 | BS3: 10021 | BT3: 端木葵 | BU3: 10005
E4: 14 | F4: 16 | G4: 14 | H4: 100 | I4: 160000 | J4: 180000 | K4: 85 | S4: 1 | T4: =VLOOKUP(V4,#REF!,3,TRUE) ->  | U4: 2 | V4: 1 | W4: 0.8 | X4: 0.2 | Y4: 0.6 | Z4: 2 | AA4: 10018 | AB4: =VLOOKUP(AA4,$AG:$AH,2,FALSE) -> 紫苏 | AC4: 10001 | AD4: =VLOOKUP(AC4,$AG:$AH,2,FALSE) -> 夏侯鸿天 | AF4: =VLOOKUP(AE4,$AG:$AH,2,FALSE) ->  | AK4: 2 | AL4: 8 | AM4: =SUM($AL$3:AL4) -> 20 | AN4: 20 | AO4: =VLOOKUP(AN4,$BA:$BC,3,0) -> 29000 | AP4: =SUM($AO$3:AO4) -> 38500 | AQ4: =VLOOKUP(AN4,$BA:$BE,5,0) -> 1550 | AR4: =SUM($AQ$3:AQ4) -> 2075 | AS4: =VLOOKUP(AN4,$BA:$BI,9,0) -> 12 | AT4: =SUM($AS$3:AS4) -> 18 | AU4: =VLOOKUP(AN4,$BA:$BM,13) -> 40 | AV4: =SUM($AU$3:AU4) -> 60 | BA4: 2 | BB4: 600 | BC4: =SUM($BB$3:BB4) -> 1100 | BD4: 35 | BE4: =SUM($BD$3:BD4) -> 65 | BF4: 5 | BG4: 0.12 | BH4: =BF4*BG4 -> 0.6 | BI4: =SUM($BH$3:BH4) -> 1.2 | BJ4: 10 | BK4: 0.2 | BL4: =BJ4*BK4 -> 2 | BM4: =SUM($BL$3:BL4) -> 4 | BP4: 朱贺 | BQ4: 10018 | BR4: 石御霏 | BS4: 10001
E5: 15 | F5: 16 | G5: 14 | H5: 100 | I5: 180000 | J5: 200000 | K5: 95 | S5: 1 | T5: =VLOOKUP(V5,#REF!,3,TRUE) ->  | U5: 3 | V5: 1 | W5: 0.8 | X5: 0.2 | Y5: 0.7 | Z5: 3 | AA5: 10002 | AB5: 石御霏 | AC5: 10005 | AD5: 兰卿 | AE5: 10018 | AF5: 紫苏 | AK5: 3 | AL5: 6 | AM5: =SUM($AL$3:AL5) -> 26 | AN5: 25 | AO5: 42500 | AP5: =SUM($AO$3:AO5) -> 81000 | AQ5: 2250 | AR5: =SUM($AQ$3:AQ5) -> 4325 | AS5: 15 | AT5: =SUM($AS$3:AS5) -> 33 | AU5: 50 | AV5: =SUM($AU$3:AU5) -> 110 | BA5: 3 | BB5: 700 | BC5: =SUM($BB$3:BB5) -> 1800 | BD5: 40 | BE5: =SUM($BD$3:BD5) -> 105 | BF5: 5 | BG5: 0.12 | BH5: 0.6 | BI5: =SUM($BH$3:BH5) -> 1.8 | BJ5: 10 | BK5: 0.2 | BL5: 2 | BM5: =SUM($BL$3:BL5) -> 6 | BP5: 楚恒 | BQ5: 10002 | BR5: 端木葵 | BS5: 10005 | BT5: 朱贺 | BU5: 10018
E6: 16 | F6: 16 | G6: 14 | H6: 100 | I6: 200000 | J6: 220000 | K6: 105 | S6: 1 | T6: =VLOOKUP(V6,#REF!,3,TRUE) ->  | U6: 4 | V6: 1 | W6: 0.8 | X6: 0.2 | Y6: 0.8 | Z6: 3 | AA6: 10017 | AB6: 解幽 | AC6: 10009 | AD6: 祁菲 | AE6: 10016 | AF6: 枫元正 | AG6: id | AH6: 角色名 | AI6: id | AK6: 4 | AL6: 4 | AM6: =SUM($AL$3:AL6) -> 30 | AN6: 30 | AO6: 58500 | AP6: =SUM($AO$3:AO6) -> 139500 | AQ6: 3075 | AR6: =SUM($AQ$3:AQ6) -> 7400 | AS6: 18 | AT6: =SUM($AS$3:AS6) -> 51 | AU6: 60 | AV6: =SUM($AU$3:AU6) -> 170 | BA6: 4 | BB6: 800 | BC6: =SUM($BB$3:BB6) -> 2600 | BD6: 45 | BE6: =SUM($BD$3:BD6) -> 150 | BF6: 5 | BG6: 0.12 | BH6: 0.6 | BI6: =SUM($BH$3:BH6) -> 2.4 | BJ6: 10 | BK6: 0.2 | BL6: 2 | BM6: =SUM($BL$3:BL6) -> 8 | BP6: 影蓟 | BQ6: 10017 | BR6: 祁菲 | BS6: 10009 | BT6: 岑以航 | BU6: 10016
C7: 扫荡奖励主要 | E7: 17 | F7: 16 | G7: 14 | H7: 100 | I7: 220000 | J7: 240000 | K7: 115 | S7: 1 | T7: =VLOOKUP(V7,#REF!,3,TRUE) ->  | U7: 5 | V7: 1 | W7: 1 | X7: 0 | Y7: 0.8 | Z7: 2 | AA7: 10012 | AB7: =VLOOKUP(AA7,$AG:$AH,2,FALSE) -> 慕容子期 | AD7: =VLOOKUP(AC7,$AG:$AH,2,FALSE) ->  | AG7: 10001 | AH7: 夏侯鸿天 | AI7: 10001 | AJ7: 嘲讽+双抗+眩晕 | AK7: 5 | AL7: 4 | AM7: =SUM($AL$3:AL7) -> 34 | AN7: 30 | AO7: 58500 | AP7: =SUM($AO$3:AO7) -> 198000 | AQ7: 3075 | AR7: =SUM($AQ$3:AQ7) -> 10475 | AS7: 18 | AT7: =SUM($AS$3:AS7) -> 69 | AU7: 60 | AV7: =SUM($AU$3:AU7) -> 230 | BA7: 5 | BB7: 900 | BC7: =SUM($BB$3:BB7) -> 3500 | BD7: 50 | BE7: =SUM($BD$3:BD7) -> 200 | BF7: 5 | BG7: 0.12 | BH7: 0.6 | BI7: =SUM($BH$3:BH7) -> 3 | BJ7: 10 | BK7: 0.2 | BL7: 2 | BM7: =SUM($BL$3:BL7) -> 10 | BP7: 朱贺 | BQ7: 10018 | BR7: 石御霏 | BS7: 10001
D8: 金币 | E8: 18 | F8: 16 | G8: 14 | H8: 100 | I8: 240000 | J8: 260000 | K8: 125 | S8: 1 | T8: =VLOOKUP(V8,#REF!,3,TRUE) ->  | U8: 6 | V8: 1 | W8: 0.8 | X8: 0.2 | Y8: 0.9 | Z8: 2 | AA8: 10014 | AB8: 颜无诡 | AC8: 10012 | AD8: 慕容子期 | AG8: 10002 | AH8: 石御霏 | AI8: 10002 | AJ8: 嘲讽+攻击+伤害吸收盾 | AK8: 6 | AL8: 4 | AM8: =SUM($AL$3:AL8) -> 38 | AN8: 35 | AO8: 77000 | AP8: =SUM($AO$3:AO8) -> 275000 | AQ8: 4025 | AR8: =SUM($AQ$3:AQ8) -> 14500 | AS8: 21 | AT8: =SUM($AS$3:AS8) -> 90 | AU8: 70 | AV8: =SUM($AU$3:AU8) -> 300 | BA8: 6 | BB8: 1000 | BC8: =SUM($BB$3:BB8) -> 4500 | BD8: 55 | BE8: =SUM($BD$3:BD8) -> 255 | BF8: 5 | BG8: 0.12 | BH8: 0.6 | BI8: =SUM($BH$3:BH8) -> 3.6 | BJ8: 10 | BK8: 0.2 | BL8: 2 | BM8: =SUM($BL$3:BL8) -> 12 | BP8: 耿陶 | BQ8: 10014 | BR8: 慕容子期 | BS8: 10012
D9: 铁矿石 | E9: 19 | F9: 16 | G9: 14 | H9: 100 | I9: 260000 | J9: 280000 | K9: 135 | S9: 1 | T9: =VLOOKUP(V9,#REF!,3,TRUE) ->  | U9: 7 | V9: 1 | W9: 0.8 | X9: 0.2 | Y9: 0.9 | Z9: 3 | AA9: 10020 | AB9: 司空染 | AC9: 10016 | AD9: 枫元正 | AE9: 10007 | AF9: 应茹 | AG9: 10003 | AH9: 叶辽 | AI9: 10003 | AJ9: 伤害转化生命+嘲讽+削弱魔抗 | AK9: 7 | AL9: 2 | AM9: =SUM($AL$3:AL9) -> 40 | AN9: 40 | AO9: 98000 | AP9: =SUM($AO$3:AO9) -> 373000 | AQ9: 5100 | AR9: =SUM($AQ$3:AQ9) -> 19600 | AS9: 24 | AT9: =SUM($AS$3:AS9) -> 114 | AU9: 80 | AV9: =SUM($AU$3:AU9) -> 380 | BA9: 7 | BB9: 1100 | BC9: =SUM($BB$3:BB9) -> 5600 | BD9: 60 | BE9: =SUM($BD$3:BD9) -> 315 | BF9: 5 | BG9: 0.12 | BH9: 0.6 | BI9: =SUM($BH$3:BH9) -> 4.2 | BJ9: 10 | BK9: 0.2 | BL9: 2 | BM9: =SUM($BL$3:BL9) -> 14 | BP9: 颜无雍 | BQ9: 10020 | BR9: 岑以航 | BS9: 10016 | BT9: 靖之 | BU9: 10007
E10: 20 | F10: 16 | G10: 14 | H10: 100 | I10: 280000 | J10: 300000 | K10: 145 | S10: 1 | T10: =VLOOKUP(V10,#REF!,3,TRUE) ->  | U10: 8 | V10: 1 | W10: 0.8 | X10: 0.2 | Y10: 0.9 | Z10: 3 | AA10: 10015 | AB10: 凝儿 | AC10: 10010 | AD10: 颜祈佳 | AE10: 10010 | AF10: 颜祈佳 | AG10: 10004 | AH10: 孔谦 | AI10: 10004 | AJ10: 单体治疗+全体治疗 | AK10: 8 | AL10: 2 | AM10: =SUM($AL$3:AL10) -> 42 | AN10: 40 | AO10: 98000 | AP10: =SUM($AO$3:AO10) -> 471000 | AQ10: 5100 | AR10: =SUM($AQ$3:AQ10) -> 24700 | AS10: 24 | AT10: =SUM($AS$3:AS10) -> 138 | AU10: 80 | AV10: =SUM($AU$3:AU10) -> 460 | BA10: 8 | BB10: 1200 | BC10: =SUM($BB$3:BB10) -> 6800 | BD10: 65 | BE10: =SUM($BD$3:BD10) -> 380 | BF10: 5 | BG10: 0.12 | BH10: 0.6 | BI10: =SUM($BH$3:BH10) -> 4.8 | BJ10: 10 | BK10: 0.2 | BL10: 2 | BM10: =SUM($BL$3:BL10) -> 16 | BP10: 云 | BQ10: 10015 | BR10: 颜祈佳 | BS10: 10010 | BT10: 颜祈佳 | BU10: 10010
C11: 随机部分 | S11: 1 | T11: =VLOOKUP(V11,#REF!,3,TRUE) ->  | U11: 9 | V11: 1 | W11: 0.8 | X11: 0.2 | Y11: 0.9 | Z11: 1 | AA11: 10006 | AB11: =VLOOKUP(AA11,$AG:$AH,2,FALSE) -> 朱贺 | AC11: 10017 | AD11: =VLOOKUP(AC11,$AG:$AH,2,FALSE) -> 解幽 | AG11: 10005 | AH11: 兰卿 | AI11: 10005 | AJ11: 自身治疗+提攻+全体治疗 | AK11: 9 | AL11: 2 | AM11: =SUM($AL$3:AL11) -> 44 | AN11: 40 | AO11: 98000 | AP11: =SUM($AO$3:AO11) -> 569000 | AQ11: 5100 | AR11: =SUM($AQ$3:AQ11) -> 29800 | AS11: 24 | AT11: =SUM($AS$3:AS11) -> 162 | AU11: 80 | AV11: =SUM($AU$3:AU11) -> 540 | BA11: 9 | BB11: 1300 | BC11: =SUM($BB$3:BB11) -> 8100 | BD11: 70 | BE11: =SUM($BD$3:BD11) -> 450 | BF11: 5 | BG11: 0.12 | BH11: 0.6 | BI11: =SUM($BH$3:BH11) -> 5.4 | BJ11: 10 | BK11: 0.2 | BL11: 2 | BM11: =SUM($BL$3:BL11) -> 18 | BP11: 慕容子期 | BQ11: 10012
D12: 天堂铸造石 | S12: 1 | T12: =VLOOKUP(V12,#REF!,3,TRUE) ->  | U12: 10 | V12: 1 | W12: 1 | X12: 0 | Y12: 1 | Z12: 2 | AA12: 10015 | AB12: 凝儿 | AC12: 10012 | AD12: 慕容子期 | AE12: 10011 | AF12: 尹正霄 | AG12: 10006 | AH12: 朱贺 | AI12: 10006 | AJ12: 提全体攻+降全体攻 | AK12: 10 | AL12: 1 | AM12: =SUM($AL$3:AL12) -> 45 | AN12: 45 | AO12: 121500 | AP12: =SUM($AO$3:AO12) -> 690500 | AQ12: 6300 | AR12: =SUM($AQ$3:AQ12) -> 36100 | AS12: 27 | AT12: =SUM($AS$3:AS12) -> 189 | AU12: 90 | AV12: =SUM($AU$3:AU12) -> 630 | BA12: 10 | BB12: 1400 | BC12: =SUM($BB$3:BB12) -> 9500 | BD12: 75 | BE12: =SUM($BD$3:BD12) -> 525 | BF12: 5 | BG12: 0.12 | BH12: 0.6 | BI12: =SUM($BH$3:BH12) -> 6 | BJ12: 10 | BK12: 0.2 | BL12: 2 | BM12: =SUM($BL$3:BL12) -> 20 | BP12: 白梦凡 | BQ12: 10008 | BR12: 颜无雍 | BS12: 10020
D13: 金币 | S13: 1 | T13: =VLOOKUP(V13,#REF!,3,TRUE) ->  | U13: 11 | V13: 1 | W13: 0.8 | X13: 0.2 | Y13: 1.2 | Z13: 3 | AA13: 10018 | AB13: 紫苏 | AC13: 10021 | AD13: 清然 | AE13: 10005 | AF13: 兰卿 | AG13: 10007 | AH13: 应茹 | AI13: 10007 | AJ13: 降单体防御+清CD | AK13: 11 | AL13: 1 | AM13: =SUM($AL$3:AL13) -> 46 | AN13: 45 | AO13: 121500 | AP13: =SUM($AO$3:AO13) -> 812000 | AQ13: 6300 | AR13: =SUM($AQ$3:AQ13) -> 42400 | AS13: 27 | AT13: =SUM($AS$3:AS13) -> 216 | AU13: 90 | AV13: =SUM($AU$3:AU13) -> 720 | BA13: 11 | BB13: 1500 | BC13: =SUM($BB$3:BB13) -> 11000 | BD13: 80 | BE13: =SUM($BD$3:BD13) -> 605 | BF13: 5 | BG13: 0.12 | BH13: 0.6 | BI13: =SUM($BH$3:BH13) -> 6.6 | BJ13: 10 | BK13: 0.2 | BL13: 2 | BM13: =SUM($BL$3:BL13) -> 22 | BP13: 朱贺 | BQ13: 10018 | BR13: 岑以璇 | BS13: 10021 | BT13: 端木葵 | BU13: 10005
D14: 突破石 | S14: 1 | T14: =VLOOKUP(V14,#REF!,3,TRUE) ->  | U14: 12 | V14: 1 | W14: 0.8 | X14: 0.2 | Y14: 1.4 | Z14: 1 | AA14: 10022 | AB14: 云灵 | AG14: 10008 | AH14: 颜无雍 | AI14: 10008 | AJ14: 生花伤害+眩晕 | AK14: 12 | AL14: 1 | AM14: =SUM($AL$3:AL14) -> 47 | AN14: 45 | AO14: 121500 | AP14: =SUM($AO$3:AO14) -> 933500 | AQ14: 6300 | AR14: =SUM($AQ$3:AQ14) -> 48700 | AS14: 27 | AT14: =SUM($AS$3:AS14) -> 243 | AU14: 90 | AV14: =SUM($AU$3:AU14) -> 810 | BA14: 12 | BB14: 1600 | BC14: =SUM($BB$3:BB14) -> 12600 | BD14: 85 | BE14: =SUM($BD$3:BD14) -> 690 | BF14: 5 | BG14: 0.12 | BH14: 0.6 | BI14: =SUM($BH$3:BH14) -> 7.2 | BJ14: 10 | BK14: 0.2 | BL14: 2 | BM14: =SUM($BL$3:BL14) -> 24 | BP14: 颜无诡 | BQ14: 10022
S15: 2 | T15: =VLOOKUP(V15,#REF!,3,TRUE) ->  | U15: 13 | V15: 2 | W15: 0.8 | X15: 0.2 | Y15: 1.5 | Z15: 1 | AA15: 10003 | AB15: 叶辽 | AG15: 10009 | AH15: 祁菲 | AI15: 10009 | AJ15: 燃烧+燃烧加伤+减伤盾 | AK15: 13 | AL15: 1 | AM15: =SUM($AL$3:AL15) -> 48 | AN15: 45 | AO15: 121500 | AP15: =SUM($AO$3:AO15) -> 1055000 | AQ15: 6300 | AR15: =SUM($AQ$3:AQ15) -> 55000 | AS15: 27 | AT15: =SUM($AS$3:AS15) -> 270 | AU15: 90 | AV15: =SUM($AU$3:AU15) -> 900 | BA15: 13 | BB15: 1700 | BC15: =SUM($BB$3:BB15) -> 14300 | BD15: 90 | BE15: =SUM($BD$3:BD15) -> 780 | BF15: 5 | BG15: 0.12 | BH15: 0.6 | BI15: =SUM($BH$3:BH15) -> 7.8 | BJ15: 10 | BK15: 0.2 | BL15: 2 | BM15: =SUM($BL$3:BL15) -> 26 | BP15: 夏侯鸿天 | BQ15: 10003
S16: 2 | T16: =VLOOKUP(V16,#REF!,3,TRUE) ->  | U16: 14 | V16: 2 | W16: 0.8 | X16: 0.2 | Y16: 1.6 | Z16: 2 | AA16: 10002 | AB16: 石御霏 | AC16: 10005 | AD16: 兰卿 | AG16: 10010 | AH16: 颜祈佳 | AI16: 10010 | AJ16: 武卫伤害+加CD | AK16: 14 | AL16: 1 | AM16: =SUM($AL$3:AL16) -> 49 | AN16: 45 | AO16: 121500 | AP16: =SUM($AO$3:AO16) -> 1176500 | AQ16: 6300 | AR16: =SUM($AQ$3:AQ16) -> 61300 | AS16: 27 | AT16: =SUM($AS$3:AS16) -> 297 | AU16: 90 | AV16: =SUM($AU$3:AU16) -> 990 | BA16: 14 | BB16: 1800 | BC16: =SUM($BB$3:BB16) -> 16100 | BD16: 95 | BE16: =SUM($BD$3:BD16) -> 875 | BF16: 5 | BG16: 0.12 | BH16: 0.6 | BI16: =SUM($BH$3:BH16) -> 8.4 | BJ16: 10 | BK16: 0.2 | BL16: 2 | BM16: =SUM($BL$3:BL16) -> 28 | BP16: 应茹 | BQ16: 10004 | BR16: 颜无雍 | BS16: 10020
C17: buff | E17: 50 | G17: 100 | I17: 180 | S17: 2 | T17: =VLOOKUP(V17,#REF!,3,TRUE) ->  | U17: 15 | V17: 2 | W17: 1 | X17: 0 | Y17: 1.7 | Z17: 3 | AA17: 10002 | AB17: 石御霏 | AC17: 10008 | AD17: 颜无雍 | AE17: 10016 | AF17: 枫元正 | AG17: 10011 | AH17: 尹正霄 | AI17: 10011 | AJ17: 中毒+中毒晕眩 | AK17: 15 | AL17: 1 | AM17: =SUM($AL$3:AL17) -> 50 | AN17: 50 | AO17: 147500 | AP17: =SUM($AO$3:AO17) -> 1324000 | AQ17: 7625 | AR17: =SUM($AQ$3:AQ17) -> 68925 | AS17: 30 | AT17: =SUM($AS$3:AS17) -> 327 | AU17: 100 | AV17: =SUM($AU$3:AU17) -> 1090 | BA17: 15 | BB17: 1900 | BC17: =SUM($BB$3:BB17) -> 18000 | BD17: 100 | BE17: =SUM($BD$3:BD17) -> 975 | BF17: 5 | BG17: 0.12 | BH17: 0.6 | BI17: =SUM($BH$3:BH17) -> 9 | BJ17: 10 | BK17: 0.2 | BL17: 2 | BM17: =SUM($BL$3:BL17) -> 30 | BP17: 端木葵 | BQ17: 10005 | BR17: 叶延 | BS17: 10011 | BT17: 慕容子期 | BU17: 10012
D18: 恢复药剂 | E18: 全队生命恢复20% | G18: 全队生命恢复50% | I18: 全队生命恢复100% | S18: 2 | T18: =VLOOKUP(V18,#REF!,3,TRUE) ->  | U18: 16 | V18: 2 | W18: 0.8 | X18: 0.2 | Y18: 1.8 | Z18: 3 | AA18: 10022 | AB18: 云灵 | AC18: 10015 | AD18: 凝儿 | AE18: 10012 | AF18: 慕容子期 | AG18: 10012 | AH18: 慕容子期 | AI18: 10012 | AJ18: 中毒+禁疗 | AK18: 16 | AL18: 0 | AM18: =SUM($AL$3:AL18) -> 50 | AN18: 50 | AO18: 147500 | AP18: =SUM($AO$3:AO18) -> 1471500 | AQ18: 7625 | AR18: =SUM($AQ$3:AQ18) -> 76550 | AS18: 30 | AT18: =SUM($AS$3:AS18) -> 357 | AU18: 100 | AV18: =SUM($AU$3:AU18) -> 1190 | BA18: 16 | BB18: 2000 | BC18: =SUM($BB$3:BB18) -> 20000 | BD18: 105 | BE18: =SUM($BD$3:BD18) -> 1080 | BF18: 5 | BG18: 0.12 | BH18: 0.6 | BI18: =SUM($BH$3:BH18) -> 9.6 | BJ18: 10 | BK18: 0.2 | BL18: 2 | BM18: =SUM($BL$3:BL18) -> 32 | BP18: 颜无诡 | BQ18: 10022 | BR18: 云 | BS18: 10015 | BT18: 慕容子期 | BU18: 10012
D19: buff药剂 | E19: 攻击3% | G19: 攻击6% | I19: 攻击15% | S19: 2 | T19: =VLOOKUP(V19,#REF!,3,TRUE) ->  | U19: 17 | V19: 2 | W19: 0.8 | X19: 0.2 | Y19: 1.9 | Z19: 2 | AA19: 10009 | AB19: 祁菲 | AC19: 10010 | AD19: 颜祈佳 | AG19: 10013 | AH19: 白梦凡 | AI19: 10013 | AJ19: 暴击+暴伤+追加伤害 | AK19: 17 | AL19: 1 | AM19: =SUM($AL$3:AL19) -> 51 | AN19: 50 | AO19: 147500 | AP19: =SUM($AO$3:AO19) -> 1619000 | AQ19: 7625 | AR19: =SUM($AQ$3:AQ19) -> 84175 | AS19: 30 | AT19: =SUM($AS$3:AS19) -> 387 | AU19: 100 | AV19: =SUM($AU$3:AU19) -> 1290 | BA19: 17 | BB19: 2100 | BC19: =SUM($BB$3:BB19) -> 22100 | BD19: 110 | BE19: =SUM($BD$3:BD19) -> 1190 | BF19: 5 | BG19: 0.12 | BH19: 0.6 | BI19: =SUM($BH$3:BH19) -> 10.2 | BJ19: 10 | BK19: 0.2 | BL19: 2 | BM19: =SUM($BL$3:BL19) -> 34 | BP19: 祁菲 | BQ19: 10009 | BR19: 颜祈佳 | BS19: 10010
E20: 暴击3% | G20: 暴击6% | I20: 暴击15% | S20: 2 | T20: =VLOOKUP(V20,#REF!,3,TRUE) ->  | U20: 18 | V20: 2 | W20: 0.8 | X20: 0.2 | Y20: 2 | Z20: 3 | AA20: 10018 | AB20: 紫苏 | AC20: 10019 | AD20: 云 | AE20: 10006 | AF20: 朱贺 | AG20: 10014 | AH20: 颜无诡 | AI20: 10014 | AJ20: 击杀清CD+提攻+提效果命中 | AK20: 18 | AL20: 0 | AM20: =SUM($AL$3:AL20) -> 51 | AN20: 50 | AO20: 147500 | AP20: =SUM($AO$3:AO20) -> 1766500 | AQ20: 7625 | AR20: =SUM($AQ$3:AQ20) -> 91800 | AS20: 30 | AT20: =SUM($AS$3:AS20) -> 417 | AU20: 100 | AV20: =SUM($AU$3:AU20) -> 1390 | BA20: 18 | BB20: 2200 | BC20: =SUM($BB$3:BB20) -> 24300 | BD20: 115 | BE20: =SUM($BD$3:BD20) -> 1305 | BF20: 5 | BG20: 0.12 | BH20: 0.6 | BI20: =SUM($BH$3:BH20) -> 10.8 | BJ20: 10 | BK20: 0.2 | BL20: 2 | BM20: =SUM($BL$3:BL20) -> 36 | BP20: 朱贺 | BQ20: 10018 | BR20: 应茹 | BS20: 10004 | BT20: 兰卿 | BU20: 10006
E21: 暴击伤害8% | G21: 暴击伤害16% | I21: 暴击伤害35% | S21: 2 | T21: =VLOOKUP(V21,#REF!,3,TRUE) ->  | U21: 19 | V21: 2 | W21: 0.8 | X21: 0.2 | Y21: 2.1 | Z21: 2 | AA21: 10022 | AB21: 云灵 | AC21: 10014 | AD21: 颜无诡 | AG21: 10015 | AH21: 凝儿 | AI21: 10015 | AJ21: 伤害转化生命+偷攻击+暴击 | AK21: 19 | AL21: 1 | AM21: =SUM($AL$3:AL21) -> 52 | AN21: 50 | AO21: 147500 | AP21: =SUM($AO$3:AO21) -> 1914000 | AQ21: 7625 | AR21: =SUM($AQ$3:AQ21) -> 99425 | AS21: 30 | AT21: =SUM($AS$3:AS21) -> 447 | AU21: 100 | AV21: =SUM($AU$3:AU21) -> 1490 | BA21: 19 | BB21: 2300 | BC21: =SUM($BB$3:BB21) -> 26600 | BD21: 120 | BE21: =SUM($BD$3:BD21) -> 1425 | BF21: 5 | BG21: 0.12 | BH21: 0.6 | BI21: =SUM($BH$3:BH21) -> 11.4 | BJ21: 10 | BK21: 0.2 | BL21: 2 | BM21: =SUM($BL$3:BL21) -> 38 | BP21: 颜无诡 | BQ21: 10022 | BR21: 耿陶 | BS21: 10014
C22: 商人 | S22: 2 | T22: =VLOOKUP(V22,#REF!,3,TRUE) ->  | U22: 20 | V22: 2 | W22: 1 | X22: 0 | Y22: 2.2 | Z22: 3 | AA22: 10002 | AB22: 石御霏 | AC22: 10020 | AD22: 司空染 | AE22: 10005 | AF22: 兰卿 | AG22: 10016 | AH22: 枫元正 | AI22: 10016 | AJ22: 控制状态额外攻击+持续状态额外伤害+提攻 | AK22: 20 | AL22: 0 | AM22: =SUM($AL$3:AL22) -> 52 | AN22: 50 | AO22: 147500 | AP22: =SUM($AO$3:AO22) -> 2061500 | AQ22: 7625 | AR22: =SUM($AQ$3:AQ22) -> 107050 | AS22: 30 | AT22: =SUM($AS$3:AS22) -> 477 | AU22: 100 | AV22: =SUM($AU$3:AU22) -> 1590 | BA22: 20 | BB22: 2400 | BC22: =SUM($BB$3:BB22) -> 29000 | BD22: 125 | BE22: =SUM($BD$3:BD22) -> 1550 | BF22: 5 | BG22: 0.12 | BH22: 0.6 | BI22: =SUM($BH$3:BH22) -> 12 | BJ22: 10 | BK22: 0.2 | BL22: 2 | BM22: =SUM($BL$3:BL22) -> 40 | BP22: 颜无诡 | BQ22: 10022 | BR22: 云 | BS22: 10015 | BT22: 兰卿 | BU22: 10006
C23: 11 | D23: 初级商人 | E23: 正常价格 | F23: 高级招募卷、成长护符、竞技场挑战、突破石 | L23: 高级招募卷（钻石） | N23: 成长护符（钻石、金币） | P23: 竞技场挑战券（钻石、金币） | R23: 突破石（钻石、金币） | S23: 3 | T23: =VLOOKUP(V23,#REF!,3,TRUE) ->  | U23: 21 | V23: 3 | W23: 0.8 | X23: 0.2 | Y23: 2.5 | Z23: 2 | AA23: 10023 | AB23: 荧荧 | AC23: 10008 | AD23: 颜无雍 | AG23: 10017 | AH23: 解幽 | AI23: 10017 | AJ23: 降护甲+沉默+沉默额外伤害 | AK23: 21 | AL23: 1 | AM23: =SUM($AL$3:AL23) -> 53 | AN23: 50 | AO23: 147500 | AP23: =SUM($AO$3:AO23) -> 2209000 | AQ23: 7625 | AR23: =SUM($AQ$3:AQ23) -> 114675 | AS23: 30 | AT23: =SUM($AS$3:AS23) -> 507 | AU23: 100 | AV23: =SUM($AU$3:AU23) -> 1690 | BA23: 21 | BB23: 2500 | BC23: =SUM($BB$3:BB23) -> 31500 | BD23: 130 | BE23: =SUM($BD$3:BD23) -> 1680 | BF23: 5 | BG23: 0.12 | BH23: 0.6 | BI23: =SUM($BH$3:BH23) -> 12.6 | BJ23: 10 | BK23: 0.2 | BL23: 2 | BM23: =SUM($BL$3:BL23) -> 42 | BP23: 荧荧 | BQ23: 10023 | BR23: 白梦凡 | BS23: 10008
C24: 5 | D24: 终极商人 | E24: 部分折扣 | F24: 4星角色碎片、先知宝珠 | I24: （初级有的东西，可以折扣出售，8-9折为主） | S24: 3 | T24: =VLOOKUP(V24,#REF!,3,TRUE) ->  | U24: 22 | V24: 3 | W24: 0.8 | X24: 0.2 | Y24: 2.7 | Z24: 3 | AA24: 10002 | AB24: 石御霏 | AC24: 10014 | AD24: 颜无诡 | AE24: 10017 | AF24: 解幽 | AG24: 10018 | AH24: 紫苏 | AI24: 10018 | AJ24: 偷攻击+流血 | AK24: 22 | AL24: 0 | AM24: =SUM($AL$3:AL24) -> 53 | AN24: 50 | AO24: 147500 | AP24: =SUM($AO$3:AO24) -> 2356500 | AQ24: 7625 | AR24: =SUM($AQ$3:AQ24) -> 122300 | AS24: 30 | AT24: =SUM($AS$3:AS24) -> 537 | AU24: 100 | AV24: =SUM($AU$3:AU24) -> 1790 | BA24: 22 | BB24: 2600 | BC24: =SUM($BB$3:BB24) -> 34100 | BD24: 135 | BE24: =SUM($BD$3:BD24) -> 1815 | BF24: 5 | BG24: 0.12 | BH24: 0.6 | BI24: =SUM($BH$3:BH24) -> 13.2 | BJ24: 10 | BK24: 0.2 | BL24: 2 | BM24: =SUM($BL$3:BL24) -> 44 | BP24: 楚恒 | BQ24: 10002 | BR24: 耿陶 | BS24: 10014 | BT24: 影蓟 | BU24: 10017
C25: 4 | D25: 高级商人 | E25: 不分折扣 | F25: 5星万能碎片（初级中级有的东西，6-7折折扣） | S25: 3 | T25: =VLOOKUP(V25,#REF!,3,TRUE) ->  | U25: 23 | V25: 3 | W25: 0.8 | X25: 0.2 | Y25: 2.9 | Z25: 2 | AA25: 10012 | AB25: 慕容子期 | AC25: 10012 | AD25: 慕容子期 | AG25: 10019 | AH25: 云 | AI25: 10019 | AJ25: 提攻+暴伤+减全体CD | AK25: 23 | AL25: 1 | AM25: =SUM($AL$3:AL25) -> 54 | AN25: 50 | AO25: 147500 | AP25: =SUM($AO$3:AO25) -> 2504000 | AQ25: 7625 | AR25: =SUM($AQ$3:AQ25) -> 129925 | AS25: 30 | AT25: =SUM($AS$3:AS25) -> 567 | AU25: 100 | AV25: =SUM($AU$3:AU25) -> 1890 | BA25: 23 | BB25: 2700 | BC25: =SUM($BB$3:BB25) -> 36800 | BD25: 140 | BE25: =SUM($BD$3:BD25) -> 1955 | BF25: 5 | BG25: 0.12 | BH25: 0.6 | BI25: =SUM($BH$3:BH25) -> 13.8 | BJ25: 10 | BK25: 0.2 | BL25: 2 | BM25: =SUM($BL$3:BL25) -> 46 | BP25: 慕容子期 | BQ25: 10012 | BR25: 慕容子期 | BS25: 10012
S26: 3 | T26: =VLOOKUP(V26,#REF!,3,TRUE) ->  | U26: 24 | V26: 3 | W26: 0.8 | X26: 0.2 | Y26: 3.1 | Z26: 2 | AA26: 10023 | AB26: 荧荧 | AC26: 10003 | AD26: 叶辽 | AG26: 10020 | AH26: 司空染 | AI26: 10020 | AJ26: 2名治疗+减伤盾 | AK26: 24 | AL26: 0 | AM26: =SUM($AL$3:AL26) -> 54 | AN26: 50 | AO26: 147500 | AP26: =SUM($AO$3:AO26) -> 2651500 | AQ26: 7625 | AR26: =SUM($AQ$3:AQ26) -> 137550 | AS26: 30 | AT26: =SUM($AS$3:AS26) -> 597 | AU26: 100 | AV26: =SUM($AU$3:AU26) -> 1990 | BA26: 24 | BB26: 2800 | BC26: =SUM($BB$3:BB26) -> 39600 | BD26: 145 | BE26: =SUM($BD$3:BD26) -> 2100 | BF26: 5 | BG26: 0.12 | BH26: 0.6 | BI26: =SUM($BH$3:BH26) -> 14.4 | BJ26: 10 | BK26: 0.2 | BL26: 2 | BM26: =SUM($BL$3:BL26) -> 48 | BP26: 荧荧 | BQ26: 10023 | BR26: 夏侯鸿天 | BS26: 10003
S27: 3 | T27: =VLOOKUP(V27,#REF!,3,TRUE) ->  | U27: 25 | V27: 3 | W27: 1 | X27: 0 | Y27: 3.3 | Z27: 1 | AA27: 10004 | AB27: 孔谦 | AC27: 10018 | AD27: 紫苏 | AG27: 10021 | AH27: 清然 | AI27: 10021 | AJ27: 减速+致盲 | AK27: 25 | AL27: 1 | AM27: =SUM($AL$3:AL27) -> 55 | AN27: 55 | AO27: 176000 | AP27: =SUM($AO$3:AO27) -> 2827500 | AQ27: 9075 | AR27: =SUM($AQ$3:AQ27) -> 146625 | AS27: 33 | AT27: =SUM($AS$3:AS27) -> 630 | AU27: 110 | AV27: =SUM($AU$3:AU27) -> 2100 | BA27: 25 | BB27: 2900 | BC27: =SUM($BB$3:BB27) -> 42500 | BD27: 150 | BE27: =SUM($BD$3:BD27) -> 2250 | BF27: 5 | BG27: 0.12 | BH27: 0.6 | BI27: =SUM($BH$3:BH27) -> 15 | BJ27: 10 | BK27: 0.2 | BL27: 2 | BM27: =SUM($BL$3:BL27) -> 50 | BP27: 兰卿 | BQ27: 10006
S28: 3 | T28: =VLOOKUP(V28,#REF!,3,TRUE) ->  | U28: 26 | V28: 3 | W28: 0.8 | X28: 0.2 | Y28: 3.3 | Z28: 3 | AA28: 10009 | AB28: 祁菲 | AC28: 10005 | AD28: 兰卿 | AE28: 10008 | AF28: 颜无雍 | AG28: 10022 | AH28: 云灵 | AI28: 10022 | AJ28: 暴击+暴伤+击杀额外伤 | AK28: 26 | AL28: 0 | AM28: =SUM($AL$3:AL28) -> 55 | AN28: 55 | AO28: 176000 | AP28: =SUM($AO$3:AO28) -> 3003500 | AQ28: 9075 | AR28: =SUM($AQ$3:AQ28) -> 155700 | AS28: 33 | AT28: =SUM($AS$3:AS28) -> 663 | AU28: 110 | AV28: =SUM($AU$3:AU28) -> 2210 | BA28: 26 | BB28: 3000 | BC28: =SUM($BB$3:BB28) -> 45500 | BD28: 155 | BE28: =SUM($BD$3:BD28) -> 2405 | BF28: 5 | BG28: 0.12 | BH28: 0.6 | BI28: =SUM($BH$3:BH28) -> 15.6 | BJ28: 10 | BK28: 0.2 | BL28: 2 | BM28: =SUM($BL$3:BL28) -> 52 | BP28: 祁菲 | BQ28: 10009 | BR28: 端木葵 | BS28: 10005 | BT28: 白梦凡 | BU28: 10008
C29: 福利怪 | S29: 4 | T29: =VLOOKUP(V29,#REF!,3,TRUE) ->  | U29: 27 | V29: 4 | W29: 0.8 | X29: 0.2 | Y29: 3.5 | Z29: 1 | AA29: 10016 | AB29: 枫元正 | AG29: 10023 | AH29: 荧荧 | AI29: 10023 | AJ29: 秘法暴击+暴伤 | AK29: 27 | AL29: 1 | AM29: =SUM($AL$3:AL29) -> 56 | AN29: 55 | AO29: 176000 | AP29: =SUM($AO$3:AO29) -> 3179500 | AQ29: 9075 | AR29: =SUM($AQ$3:AQ29) -> 164775 | AS29: 33 | AT29: =SUM($AS$3:AS29) -> 696 | AU29: 110 | AV29: =SUM($AU$3:AU29) -> 2320 | BA29: 27 | BB29: 3100 | BC29: =SUM($BB$3:BB29) -> 48600 | BD29: 160 | BE29: =SUM($BD$3:BD29) -> 2565 | BF29: 5 | BG29: 0.12 | BH29: 0.6 | BI29: =SUM($BH$3:BH29) -> 16.2 | BJ29: 10 | BK29: 0.2 | BL29: 2 | BM29: =SUM($BL$3:BL29) -> 54 | BP29: 岑以航 | BQ29: 10016
D30: 炸弹人 | S30: 4 | T30: =VLOOKUP(V30,#REF!,3,TRUE) ->  | U30: 28 | V30: 4 | W30: 0.8 | X30: 0.2 | Y30: 3.8 | Z30: 2 | AA30: 10017 | AB30: 解幽 | AC30: 10014 | AD30: 颜无诡 | AG30: 10024 | AH30: 许槿然 | AI30: 10024 | AK30: 28 | AL30: 0 | AM30: =SUM($AL$3:AL30) -> 56 | AN30: 55 | AO30: 176000 | AP30: =SUM($AO$3:AO30) -> 3355500 | AQ30: 9075 | AR30: =SUM($AQ$3:AQ30) -> 173850 | AS30: 33 | AT30: =SUM($AS$3:AS30) -> 729 | AU30: 110 | AV30: =SUM($AU$3:AU30) -> 2430 | BA30: 28 | BB30: 3200 | BC30: =SUM($BB$3:BB30) -> 51800 | BD30: 165 | BE30: =SUM($BD$3:BD30) -> 2730 | BF30: 5 | BG30: 0.12 | BH30: 0.6 | BI30: =SUM($BH$3:BH30) -> 16.8 | BJ30: 10 | BK30: 0.2 | BL30: 2 | BM30: =SUM($BL$3:BL30) -> 56 | BP30: 影蓟 | BQ30: 10017 | BR30: 耿陶 | BS30: 10014
D31: 送大量物资 | S31: 4 | T31: =VLOOKUP(V31,#REF!,3,TRUE) ->  | U31: 29 | V31: 4 | W31: 0.8 | X31: 0.2 | Y31: 4.1 | Z31: 3 | AA31: 10006 | AB31: 朱贺 | AC31: 10002 | AD31: 石御霏 | AE31: 10007 | AF31: 应茹 | AG31: 10025 | AH31: 炎琪儿 | AI31: 10025 | AK31: 29 | AL31: 1 | AM31: =SUM($AL$3:AL31) -> 57 | AN31: 55 | AO31: 176000 | AP31: =SUM($AO$3:AO31) -> 3531500 | AQ31: 9075 | AR31: =SUM($AQ$3:AQ31) -> 182925 | AS31: 33 | AT31: =SUM($AS$3:AS31) -> 762 | AU31: 110 | AV31: =SUM($AU$3:AU31) -> 2540 | BA31: 29 | BB31: 3300 | BC31: =SUM($BB$3:BB31) -> 55100 | BD31: 170 | BE31: =SUM($BD$3:BD31) -> 2900 | BF31: 5 | BG31: 0.12 | BH31: 0.6 | BI31: =SUM($BH$3:BH31) -> 17.4 | BJ31: 10 | BK31: 0.2 | BL31: 2 | BM31: =SUM($BL$3:BL31) -> 58 | BP31: 兰卿 | BQ31: 10006 | BR31: 楚恒 | BS31: 10002 | BT31: 靖之 | BU31: 10007
S32: 4 | T32: =VLOOKUP(V32,#REF!,3,TRUE) ->  | U32: 30 | V32: 4 | W32: 1 | X32: 0 | Y32: 4.4 | Z32: 1 | AA32: 10011 | AB32: 尹正霄 | AC32: 10012 | AD32: 慕容子期 | AE32: 10012 | AF32: 慕容子期 | AG32: 10026 | AH32: 楚恒 | AI32: 10026 | AK32: 30 | AL32: 0 | AM32: =SUM($AL$3:AL32) -> 57 | AN32: 55 | AO32: 176000 | AP32: =SUM($AO$3:AO32) -> 3707500 | AQ32: 9075 | AR32: =SUM($AQ$3:AQ32) -> 192000 | AS32: 33 | AT32: =SUM($AS$3:AS32) -> 795 | AU32: 110 | AV32: =SUM($AU$3:AU32) -> 2650 | BA32: 30 | BB32: 3400 | BC32: =SUM($BB$3:BB32) -> 58500 | BD32: 175 | BE32: =SUM($BD$3:BD32) -> 3075 | BF32: 5 | BG32: 0.12 | BH32: 0.6 | BI32: =SUM($BH$3:BH32) -> 18 | BJ32: 10 | BK32: 0.2 | BL32: 2 | BM32: =SUM($BL$3:BL32) -> 60 | BP32: 颜祈佳 | BQ32: 10010
S33: 5 | T33: =VLOOKUP(V33,#REF!,3,TRUE) ->  | U33: 31 | V33: 5 | W33: 0.8 | X33: 0.2 | Y33: 4.5 | Z33: 2 | AA33: 10023 | AB33: 荧荧 | AC33: 10021 | AD33: 清然 | AG33: 10027 | AH33: 柳月 | AI33: 10027 | AK33: 31 | AL33: 1 | AM33: =SUM($AL$3:AL33) -> 58 | AN33: 55 | AO33: 176000 | AP33: =SUM($AO$3:AO33) -> 3883500 | AQ33: 9075 | AR33: =SUM($AQ$3:AQ33) -> 201075 | AS33: 33 | AT33: =SUM($AS$3:AS33) -> 828 | AU33: 110 | AV33: =SUM($AU$3:AU33) -> 2760 | BA33: 31 | BB33: 3500 | BC33: =SUM($BB$3:BB33) -> 62000 | BD33: 180 | BE33: =SUM($BD$3:BD33) -> 3255 | BF33: 5 | BG33: 0.12 | BH33: 0.6 | BI33: =SUM($BH$3:BH33) -> 18.6 | BJ33: 10 | BK33: 0.2 | BL33: 2 | BM33: =SUM($BL$3:BL33) -> 62 | BP33: 荧荧 | BQ33: 10023 | BR33: 岑以璇 | BS33: 10021
S34: 5 | T34: =VLOOKUP(V34,#REF!,3,TRUE) ->  | U34: 32 | V34: 5 | W34: 0.8 | X34: 0.2 | Y34: 4.8 | Z34: 2 | AA34: 10022 | AB34: 云灵 | AC34: 10015 | AD34: 凝儿 | AG34: 10028 | AH34: 岑以航 | AI34: 10028 | AK34: 32 | AL34: 0 | AM34: =SUM($AL$3:AL34) -> 58 | AN34: 55 | AO34: 176000 | AP34: =SUM($AO$3:AO34) -> 4059500 | AQ34: 9075 | AR34: =SUM($AQ$3:AQ34) -> 210150 | AS34: 33 | AT34: =SUM($AS$3:AS34) -> 861 | AU34: 110 | AV34: =SUM($AU$3:AU34) -> 2870 | BA34: 32 | BB34: 3600 | BC34: =SUM($BB$3:BB34) -> 65600 | BD34: 185 | BE34: =SUM($BD$3:BD34) -> 3440 | BF34: 5 | BG34: 0.12 | BH34: 0.6 | BI34: =SUM($BH$3:BH34) -> 19.2 | BJ34: 10 | BK34: 0.2 | BL34: 2 | BM34: =SUM($BL$3:BL34) -> 64 | BP34: 颜无诡 | BQ34: 10022 | BR34: 云 | BS34: 10015
S35: 5 | T35: =VLOOKUP(V35,#REF!,3,TRUE) ->  | U35: 33 | V35: 5 | W35: 0.8 | X35: 0.2 | Y35: 5.1 | Z35: 1 | AA35: 10022 | AB35: 云灵 | AG35: 10029 | AH35: 姜燧 | AI35: 10029 | AK35: 33 | AL35: =COUNTIFS(V:V,AK35) -> 1 | AM35: =SUM($AL$3:AL35) -> 59 | AN35: =_xlfn.FLOOR.MATH(AM35,5) -> 55 | AO35: 176000 | AP35: =SUM($AO$3:AO35) -> 4235500 | AQ35: 9075 | AR35: =SUM($AQ$3:AQ35) -> 219225 | AS35: 33 | AT35: =SUM($AS$3:AS35) -> 894 | AU35: 110 | AV35: =SUM($AU$3:AU35) -> 2980 | BA35: 33 | BB35: 3700 | BC35: =SUM($BB$3:BB35) -> 69300 | BD35: 190 | BE35: =SUM($BD$3:BD35) -> 3630 | BF35: 5 | BG35: 0.12 | BH35: 0.6 | BI35: =SUM($BH$3:BH35) -> 19.8 | BJ35: 10 | BK35: 0.2 | BL35: 2 | BM35: =SUM($BL$3:BL35) -> 66 | BP35: 颜无诡 | BQ35: 10022
S36: 5 | T36: =VLOOKUP(V36,#REF!,3,TRUE) ->  | U36: 34 | V36: 5 | W36: 0.8 | X36: 0.2 | Y36: 5.4 | Z36: 1 | AA36: 10006 | AB36: =VLOOKUP(AA36,$AG:$AH,2,FALSE) -> 朱贺 | AD36: =VLOOKUP(AC36,$AG:$AH,2,FALSE) ->  | AF36: =VLOOKUP(AE36,$AG:$AH,2,FALSE) ->  | AG36: 10030 | AH36: 晏息 | AI36: 10030 | AK36: 34 | AL36: 0 | AM36: =SUM($AL$3:AL36) -> 59 | AN36: 55 | AO36: 176000 | AP36: =SUM($AO$3:AO36) -> 4411500 | AQ36: 9075 | AR36: =SUM($AQ$3:AQ36) -> 228300 | AS36: 33 | AT36: =SUM($AS$3:AS36) -> 927 | AU36: 110 | AV36: =SUM($AU$3:AU36) -> 3090 | BA36: 34 | BB36: 3800 | BC36: =SUM($BB$3:BB36) -> 73100 | BD36: 195 | BE36: =SUM($BD$3:BD36) -> 3825 | BF36: 5 | BG36: 0.12 | BH36: 0.6 | BI36: =SUM($BH$3:BH36) -> 20.4 | BJ36: 10 | BK36: 0.2 | BL36: 2 | BM36: =SUM($BL$3:BL36) -> 68 | BP36: 兰卿 | BQ36: 10006
I37: 积分 | J37: buff商人代币 | K37: 每次打 | L37: 每层积累代币 | M37: 平均出现buff商人 | N37: 平均出现层数 | O37: 出现身上货币 | S37: 6 | T37: =VLOOKUP(V37,#REF!,3,TRUE) ->  | U37: 35 | V37: 6 | W37: 1 | X37: 0 | Y37: 5.5 | Z37: 1 | AA37: 10004 | AB37: =VLOOKUP(AA37,$AG:$AH,2,FALSE) -> 孔谦 | AC37: 10011 | AD37: 尹正霄 | AE37: 10016 | AF37: 枫元正 | AG37: 10031 | AH37: 冉宜 | AI37: 10031 | AK37: 35 | AL37: 1 | AM37: =SUM($AL$3:AL37) -> 60 | AN37: 60 | AO37: 207000 | AP37: =SUM($AO$3:AO37) -> 4618500 | AQ37: 10650 | AR37: =SUM($AQ$3:AQ37) -> 238950 | AS37: 36 | AT37: =SUM($AS$3:AS37) -> 963 | AU37: 120 | AV37: =SUM($AU$3:AU37) -> 3210 | BA37: 35 | BB37: 3900 | BC37: =SUM($BB$3:BB37) -> 77000 | BD37: 200 | BE37: =SUM($BD$3:BD37) -> 4025 | BF37: 5 | BG37: 0.12 | BH37: 0.6 | BI37: =SUM($BH$3:BH37) -> 21 | BJ37: 10 | BK37: 0.2 | BL37: 2 | BM37: =SUM($BL$3:BL37) -> 70 | BP37: 朱贺 | BQ37: 10018
A38: 每场战斗抹掉1% | C38: 普通怪 | D38: 每层抹掉3-5%的队伍生命 | E38: 5 | G38: buff商人代币 | I38: 20 | J38: 2 | K38: 5 | L38: =J38*K38 -> 10 | M38: =80*0.2/3 -> 5.333333333 | N38: =100/M38 -> 18.75 | O38: =$N$38*L38 -> 187.5 | S38: 6 | T38: =VLOOKUP(V38,#REF!,3,TRUE) ->  | U38: 36 | V38: 6 | W38: 0.8 | X38: 0.2 | Y38: 5.8 | Z38: 1 | AA38: 10019 | AB38: 云 | AG38: 10032 | AH38: 孙晴 | AI38: 10032 | AK38: 36 | AL38: 0 | AM38: =SUM($AL$3:AL38) -> 60 | AN38: 60 | AO38: 207000 | AP38: =SUM($AO$3:AO38) -> 4825500 | AQ38: 10650 | AR38: =SUM($AQ$3:AQ38) -> 249600 | AS38: 36 | AT38: =SUM($AS$3:AS38) -> 999 | AU38: 120 | AV38: =SUM($AU$3:AU38) -> 3330 | BA38: 36 | BB38: 4000 | BC38: =SUM($BB$3:BB38) -> 81000 | BD38: 205 | BE38: =SUM($BD$3:BD38) -> 4230 | BF38: 5 | BG38: 0.12 | BH38: 0.6 | BI38: =SUM($BH$3:BH38) -> 21.6 | BJ38: 10 | BK38: 0.2 | BL38: 2 | BM38: =SUM($BL$3:BL38) -> 72 | BP38: 孔谦 | BQ38: 10019
A39: 每场战斗抹掉3% | C39: 精英怪 | D39: 每层抹掉7-10%的队伍生命 | E39: 3 | G39: buff商人代币 | I39: 34 | J39: 5 | K39: 3 | L39: =J39*K39 -> 15 | O39: =$N$38*L39 -> 281.25 | S39: 6 | T39: =VLOOKUP(V39,#REF!,3,TRUE) ->  | U39: 37 | V39: 6 | W39: 0.8 | X39: 0.2 | Y39: 6.1 | Z39: 1 | AA39: 10012 | AB39: 慕容子期 | AG39: 10033 | AH39: 艾欣 | AI39: 10033 | AK39: 37 | AL39: 1 | AM39: =SUM($AL$3:AL39) -> 61 | AN39: 60 | AO39: 207000 | AP39: =SUM($AO$3:AO39) -> 5032500 | AQ39: 10650 | AR39: =SUM($AQ$3:AQ39) -> 260250 | AS39: 36 | AT39: =SUM($AS$3:AS39) -> 1035 | AU39: 120 | AV39: =SUM($AU$3:AU39) -> 3450 | BA39: 37 | BB39: 4100 | BC39: =SUM($BB$3:BB39) -> 85100 | BD39: 210 | BE39: =SUM($BD$3:BD39) -> 4440 | BF39: 5 | BG39: 0.12 | BH39: 0.6 | BI39: =SUM($BH$3:BH39) -> 22.2 | BJ39: 10 | BK39: 0.2 | BL39: 2 | BM39: =SUM($BL$3:BL39) -> 74 | BP39: 慕容子期 | BQ39: 10012
S40: 6 | T40: =VLOOKUP(V40,#REF!,3,TRUE) ->  | U40: 38 | V40: 6 | W40: 0.8 | X40: 0.2 | Y40: 6.4 | Z40: 3 | AA40: 10023 | AB40: 荧荧 | AC40: 10012 | AD40: 慕容子期 | AE40: 10003 | AF40: 叶辽 | AG40: 10034 | AH40: 影蓟 | AI40: 10034 | AK40: 38 | AL40: 0 | AM40: =SUM($AL$3:AL40) -> 61 | AN40: 60 | AO40: 207000 | AP40: =SUM($AO$3:AO40) -> 5239500 | AQ40: 10650 | AR40: =SUM($AQ$3:AQ40) -> 270900 | AS40: 36 | AT40: =SUM($AS$3:AS40) -> 1071 | AU40: 120 | AV40: =SUM($AU$3:AU40) -> 3570 | BA40: 38 | BB40: 4200 | BC40: =SUM($BB$3:BB40) -> 89300 | BD40: 215 | BE40: =SUM($BD$3:BD40) -> 4655 | BF40: 5 | BG40: 0.12 | BH40: 0.6 | BI40: =SUM($BH$3:BH40) -> 22.8 | BJ40: 10 | BK40: 0.2 | BL40: 2 | BM40: =SUM($BL$3:BL40) -> 76 | BP40: 慕容子期 | BQ40: 10012 | BR40: 荧荧 | BS40: 10023 | BT40: 夏侯鸿天 | BU40: 10003
S41: 7 | T41: =VLOOKUP(V41,#REF!,3,TRUE) ->  | U41: 39 | V41: 7 | W41: 0.8 | X41: 0.2 | Y41: 6.5 | Z41: 2 | AA41: 10008 | AB41: 颜无雍 | AC41: 10019 | AD41: 云 | AG41: 10035 | AH41: 辛夷 | AI41: 10035 | AK41: 39 | AL41: 1 | AM41: =SUM($AL$3:AL41) -> 62 | AN41: 60 | AO41: 207000 | AP41: =SUM($AO$3:AO41) -> 5446500 | AQ41: 10650 | AR41: =SUM($AQ$3:AQ41) -> 281550 | AS41: 36 | AT41: =SUM($AS$3:AS41) -> 1107 | AU41: 120 | AV41: =SUM($AU$3:AU41) -> 3690 | BA41: 39 | BB41: 4300 | BC41: =SUM($BB$3:BB41) -> 93600 | BD41: 220 | BE41: =SUM($BD$3:BD41) -> 4875 | BF41: 5 | BG41: 0.12 | BH41: 0.6 | BI41: =SUM($BH$3:BH41) -> 23.4 | BJ41: 10 | BK41: 0.2 | BL41: 2 | BM41: =SUM($BL$3:BL41) -> 78 | BP41: 白梦凡 | BQ41: 10008 | BR41: 孔谦 | BS41: 10019
S42: 7 | T42: =VLOOKUP(V42,#REF!,3,TRUE) ->  | U42: 40 | V42: 7 | W42: 1 | X42: 0 | Y42: 7 | Z42: 2 | AA42: 10005 | AB42: 兰卿 | AC42: 10018 | AD42: 紫苏 | AE42: 10018 | AF42: 紫苏 | AG42: 10036 | AH42: 岑以璇 | AI42: 10036 | AK42: 40 | AL42: 0 | AM42: =SUM($AL$3:AL42) -> 62 | AN42: 60 | AO42: 207000 | AP42: =SUM($AO$3:AO42) -> 5653500 | AQ42: 10650 | AR42: =SUM($AQ$3:AQ42) -> 292200 | AS42: 36 | AT42: =SUM($AS$3:AS42) -> 1143 | AU42: 120 | AV42: =SUM($AU$3:AU42) -> 3810 | BA42: 40 | BB42: 4400 | BC42: =SUM($BB$3:BB42) -> 98000 | BD42: 225 | BE42: =SUM($BD$3:BD42) -> 5100 | BF42: 5 | BG42: 0.12 | BH42: 0.6 | BI42: =SUM($BH$3:BH42) -> 24 | BJ42: 10 | BK42: 0.2 | BL42: 2 | BM42: =SUM($BL$3:BL42) -> 80 | BP42: 楚恒 | BQ42: 10002 | BR42: 朱贺 | BS42: 10018
S43: 8 | T43: =VLOOKUP(V43,#REF!,3,TRUE) ->  | U43: 41 | V43: 8 | W43: 0.8 | X43: 0.2 | Y43: 7.5 | Z43: 3 | AA43: 10006 | AB43: 朱贺 | AC43: 10008 | AD43: 颜无雍 | AE43: 10019 | AF43: 云 | AG43: 10037 | AH43: 薛苓 | AI43: 10037 | AK43: 41 | AL43: 1 | AM43: =SUM($AL$3:AL43) -> 63 | AN43: 60 | AO43: 207000 | AP43: =SUM($AO$3:AO43) -> 5860500 | AQ43: 10650 | AR43: =SUM($AQ$3:AQ43) -> 302850 | AS43: 36 | AT43: =SUM($AS$3:AS43) -> 1179 | AU43: 120 | AV43: =SUM($AU$3:AU43) -> 3930 | BA43: 41 | BB43: 4500 | BC43: =SUM($BB$3:BB43) -> 102500 | BD43: 230 | BE43: =SUM($BD$3:BD43) -> 5330 | BF43: 5 | BG43: 0.12 | BH43: 0.6 | BI43: =SUM($BH$3:BH43) -> 24.6 | BJ43: 10 | BK43: 0.2 | BL43: 2 | BM43: =SUM($BL$3:BL43) -> 82 | BP43: 兰卿 | BQ43: 10006 | BR43: 白梦凡 | BS43: 10008 | BT43: 孔谦 | BU43: 10019
S44: 8 | T44: =VLOOKUP(V44,#REF!,3,TRUE) ->  | U44: 42 | V44: 8 | W44: 0.8 | X44: 0.2 | Y44: 8 | Z44: 3 | AA44: 10020 | AB44: 司空染 | AC44: 10018 | AD44: 紫苏 | AE44: 10018 | AF44: 紫苏 | AG44: 10038 | AH44: 伏冥 | AI44: 10038 | AK44: 42 | AL44: 0 | AM44: =SUM($AL$3:AL44) -> 63 | AN44: 60 | AO44: 207000 | AP44: =SUM($AO$3:AO44) -> 6067500 | AQ44: 10650 | AR44: =SUM($AQ$3:AQ44) -> 313500 | AS44: 36 | AT44: =SUM($AS$3:AS44) -> 1215 | AU44: 120 | AV44: =SUM($AU$3:AU44) -> 4050 | BA44: 42 | BB44: 4600 | BC44: =SUM($BB$3:BB44) -> 107100 | BD44: 235 | BE44: =SUM($BD$3:BD44) -> 5565 | BF44: 5 | BG44: 0.12 | BH44: 0.6 | BI44: =SUM($BH$3:BH44) -> 25.2 | BJ44: 10 | BK44: 0.2 | BL44: 2 | BM44: =SUM($BL$3:BL44) -> 84 | BP44: 朱贺 | BQ44: 10018 | BR44: 朱贺 | BS44: 10018 | BT44: 颜无雍 | BU44: 10020
S45: 9 | T45: =VLOOKUP(V45,#REF!,3,TRUE) ->  | U45: 43 | V45: 9 | W45: 0.8 | X45: 0.2 | Y45: 8.5 | Z45: 3 | AA45: 10008 | AB45: 颜无雍 | AC45: 10018 | AD45: 紫苏 | AE45: 10006 | AF45: 朱贺 | AG45: 10039 | AH45: 呼延腾 | AI45: 10039 | AK45: 43 | AL45: 1 | AM45: =SUM($AL$3:AL45) -> 64 | AN45: 60 | AO45: 207000 | AP45: =SUM($AO$3:AO45) -> 6274500 | AQ45: 10650 | AR45: =SUM($AQ$3:AQ45) -> 324150 | AS45: 36 | AT45: =SUM($AS$3:AS45) -> 1251 | AU45: 120 | AV45: =SUM($AU$3:AU45) -> 4170 | BA45: 43 | BB45: 4700 | BC45: =SUM($BB$3:BB45) -> 111800 | BD45: 240 | BE45: =SUM($BD$3:BD45) -> 5805 | BF45: 5 | BG45: 0.12 | BH45: 0.6 | BI45: =SUM($BH$3:BH45) -> 25.8 | BJ45: 10 | BK45: 0.2 | BL45: 2 | BM45: =SUM($BL$3:BL45) -> 86 | BP45: 应茹 | BQ45: 10004 | BR45: 朱贺 | BS45: 10018 | BT45: 兰卿 | BU45: 10006
S46: 9 | T46: =VLOOKUP(V46,#REF!,3,TRUE) ->  | U46: 44 | V46: 9 | W46: 0.8 | X46: 0.2 | Y46: 9 | Z46: 2 | AA46: 10012 | AB46: 慕容子期 | AC46: 10020 | AD46: 司空染 | AG46: 10040 | AH46: 贾裴武 | AI46: 10040 | AK46: 44 | AL46: 0 | AM46: =SUM($AL$3:AL46) -> 64 | AN46: 60 | AO46: 207000 | AP46: =SUM($AO$3:AO46) -> 6481500 | AQ46: 10650 | AR46: =SUM($AQ$3:AQ46) -> 334800 | AS46: 36 | AT46: =SUM($AS$3:AS46) -> 1287 | AU46: 120 | AV46: =SUM($AU$3:AU46) -> 4290 | BA46: 44 | BB46: 4800 | BC46: =SUM($BB$3:BB46) -> 116600 | BD46: 245 | BE46: =SUM($BD$3:BD46) -> 6050 | BF46: 5 | BG46: 0.12 | BH46: 0.6 | BI46: =SUM($BH$3:BH46) -> 26.4 | BJ46: 10 | BK46: 0.2 | BL46: 2 | BM46: =SUM($BL$3:BL46) -> 88 | BP46: 慕容子期 | BQ46: 10012 | BR46: 颜无雍 | BS46: 10020
S47: 10 | T47: =VLOOKUP(V47,#REF!,3,TRUE) ->  | U47: 45 | V47: 10 | W47: 1 | X47: 0 | Y47: 9.5 | Z47: 2 | AA47: 10009 | AB47: 祁菲 | AC47: 10004 | AD47: 孔谦 | AE47: 10012 | AF47: 慕容子期 | AG47: 10041 | AH47: 孟灿 | AI47: 10041 | AK47: 45 | AL47: 1 | AM47: =SUM($AL$3:AL47) -> 65 | AN47: 65 | AO47: 240500 | AP47: =SUM($AO$3:AO47) -> 6722000 | AQ47: 12350 | AR47: =SUM($AQ$3:AQ47) -> 347150 | AS47: 39 | AT47: =SUM($AS$3:AS47) -> 1326 | AU47: 130 | AV47: =SUM($AU$3:AU47) -> 4420 | BA47: 45 | BB47: 4900 | BC47: =SUM($BB$3:BB47) -> 121500 | BD47: 250 | BE47: =SUM($BD$3:BD47) -> 6300 | BF47: 5 | BG47: 0.12 | BH47: 0.6 | BI47: =SUM($BH$3:BH47) -> 27 | BJ47: 10 | BK47: 0.2 | BL47: 2 | BM47: =SUM($BL$3:BL47) -> 90 | BP47: 云灵 | BQ47: 10013 | BR47: 云灵 | BS47: 10013
S48: 11 | T48: =VLOOKUP(V48,#REF!,3,TRUE) ->  | U48: 46 | V48: 11 | W48: 0.8 | X48: 0.2 | Y48: 10.5 | Z48: 3 | AA48: 10015 | AB48: 凝儿 | AC48: 10020 | AD48: 司空染 | AE48: 10018 | AF48: 紫苏 | AG48: 10042 | AH48: 白木 | AI48: 10042 | AK48: 46 | AL48: 0 | AM48: =SUM($AL$3:AL48) -> 65 | AN48: 65 | AO48: 240500 | AP48: =SUM($AO$3:AO48) -> 6962500 | AQ48: 12350 | AR48: =SUM($AQ$3:AQ48) -> 359500 | AS48: 39 | AT48: =SUM($AS$3:AS48) -> 1365 | AU48: 130 | AV48: =SUM($AU$3:AU48) -> 4550 | BA48: 46 | BB48: 5000 | BC48: =SUM($BB$3:BB48) -> 126500 | BD48: 255 | BE48: =SUM($BD$3:BD48) -> 6555 | BF48: 5 | BG48: 0.12 | BH48: 0.6 | BI48: =SUM($BH$3:BH48) -> 27.6 | BJ48: 10 | BK48: 0.2 | BL48: 2 | BM48: =SUM($BL$3:BL48) -> 92 | BP48: 云 | BQ48: 10015 | BR48: 颜无雍 | BS48: 10020 | BT48: 朱贺 | BU48: 10018
S49: 12 | T49: =VLOOKUP(V49,#REF!,3,TRUE) ->  | U49: 47 | V49: 12 | W49: 0.8 | X49: 0.2 | Y49: 11.5 | Z49: 2 | AA49: 10008 | AB49: 颜无雍 | AC49: 10014 | AD49: 颜无诡 | AG49: 10043 | AH49: 紫川 | AI49: 10043 | AK49: 47 | AL49: 1 | AM49: =SUM($AL$3:AL49) -> 66 | AN49: 65 | AO49: 240500 | AP49: =SUM($AO$3:AO49) -> 7203000 | AQ49: 12350 | AR49: =SUM($AQ$3:AQ49) -> 371850 | AS49: 39 | AT49: =SUM($AS$3:AS49) -> 1404 | AU49: 130 | AV49: =SUM($AU$3:AU49) -> 4680 | BA49: 47 | BB49: 5100 | BC49: =SUM($BB$3:BB49) -> 131600 | BD49: 260 | BE49: =SUM($BD$3:BD49) -> 6815 | BF49: 5 | BG49: 0.12 | BH49: 0.6 | BI49: =SUM($BH$3:BH49) -> 28.2 | BJ49: 10 | BK49: 0.2 | BL49: 2 | BM49: =SUM($BL$3:BL49) -> 94 | BP49: 白梦凡 | BQ49: 10008 | BR49: 耿陶 | BS49: 10014
S50: 13 | T50: =VLOOKUP(V50,#REF!,3,TRUE) ->  | U50: 48 | V50: 13 | W50: 0.8 | X50: 0.2 | Y50: 12.5 | Z50: 3 | AA50: 10003 | AB50: 叶辽 | AC50: 10017 | AD50: 解幽 | AE50: 10019 | AF50: 云 | AG50: 10044 | AH50: 靖之 | AI50: 10044 | AK50: 48 | AL50: 0 | AM50: =SUM($AL$3:AL50) -> 66 | AN50: 65 | AO50: 240500 | AP50: =SUM($AO$3:AO50) -> 7443500 | AQ50: 12350 | AR50: =SUM($AQ$3:AQ50) -> 384200 | AS50: 39 | AT50: =SUM($AS$3:AS50) -> 1443 | AU50: 130 | AV50: =SUM($AU$3:AU50) -> 4810 | BA50: 48 | BB50: 5200 | BC50: =SUM($BB$3:BB50) -> 136800 | BD50: 265 | BE50: =SUM($BD$3:BD50) -> 7080 | BF50: 5 | BG50: 0.12 | BH50: 0.6 | BI50: =SUM($BH$3:BH50) -> 28.8 | BJ50: 10 | BK50: 0.2 | BL50: 2 | BM50: =SUM($BL$3:BL50) -> 96 | BP50: 夏侯鸿天 | BQ50: 10003 | BR50: 影蓟 | BS50: 10017 | BT50: 孔谦 | BU50: 10019
S51: 14 | T51: =VLOOKUP(V51,#REF!,3,TRUE) ->  | U51: 49 | V51: 14 | W51: 0.8 | X51: 0.2 | Y51: 13.5 | Z51: 2 | AA51: 10010 | AB51: 颜祈佳 | AC51: 10004 | AD51: 孔谦 | AG51: 10045 | AH51: 殷婉儿 | AI51: 10045 | AK51: 49 | AL51: 1 | AM51: =SUM($AL$3:AL51) -> 67 | AN51: 65 | AO51: 240500 | AP51: =SUM($AO$3:AO51) -> 7684000 | AQ51: 12350 | AR51: =SUM($AQ$3:AQ51) -> 396550 | AS51: 39 | AT51: =SUM($AS$3:AS51) -> 1482 | AU51: 130 | AV51: =SUM($AU$3:AU51) -> 4940 | BA51: 49 | BB51: 5300 | BC51: =SUM($BB$3:BB51) -> 142100 | BD51: 270 | BE51: =SUM($BD$3:BD51) -> 7350 | BF51: 5 | BG51: 0.12 | BH51: 0.6 | BI51: =SUM($BH$3:BH51) -> 29.4 | BJ51: 10 | BK51: 0.2 | BL51: 2 | BM51: =SUM($BL$3:BL51) -> 98 | BP51: 石御霏 | BQ51: 10001 | BR51: 应茹 | BS51: 10004
S52: 15 | T52: =VLOOKUP(V52,#REF!,3,TRUE) ->  | U52: 50 | V52: 15 | W52: 1 | X52: 0 | Y52: 14.5 | Z52: 1 | AA52: 10001 | AB52: 夏侯鸿天 | AC52: 10009 | AD52: 祁菲 | AE52: 10005 | AF52: 兰卿 | AG52: 10046 | AH52: 林越 | AI52: 10046 | AK52: 50 | AL52: 0 | AM52: =SUM($AL$3:AL52) -> 67 | AN52: 65 | AO52: 240500 | AP52: =SUM($AO$3:AO52) -> 7924500 | AQ52: 12350 | AR52: =SUM($AQ$3:AQ52) -> 408900 | AS52: 39 | AT52: =SUM($AS$3:AS52) -> 1521 | AU52: 130 | AV52: =SUM($AU$3:AU52) -> 5070 | BA52: 50 | BB52: 5400 | BC52: =SUM($BB$3:BB52) -> 147500 | BD52: 275 | BE52: =SUM($BD$3:BD52) -> 7625 | BF52: 5 | BG52: 0.12 | BH52: 0.6 | BI52: =SUM($BH$3:BH52) -> 30 | BJ52: 10 | BK52: 0.2 | BL52: 2 | BM52: =SUM($BL$3:BL52) -> 100 | BP52: 应茹 | BQ52: 10004
S53: 17 | T53: =VLOOKUP(V53,#REF!,3,TRUE) ->  | U53: 51 | V53: 17 | W53: 0.8 | X53: 0.2 | Y53: 16.5 | Z53: 3 | AA53: 10007 | AB53: 应茹 | AC53: 10001 | AD53: 夏侯鸿天 | AE53: 10013 | AF53: 白梦凡 | AG53: 10047 | AH53: 赤肥肥 | AI53: 10047 | AK53: 51 | AL53: 1 | AM53: =SUM($AL$3:AL53) -> 68 | AN53: 65 | AO53: 240500 | AP53: =SUM($AO$3:AO53) -> 8165000 | AQ53: 12350 | AR53: =SUM($AQ$3:AQ53) -> 421250 | AS53: 39 | AT53: =SUM($AS$3:AS53) -> 1560 | AU53: 130 | AV53: =SUM($AU$3:AU53) -> 5200 | BA53: 51 | BB53: 5500 | BC53: =SUM($BB$3:BB53) -> 153000 | BD53: 280 | BE53: =SUM($BD$3:BD53) -> 7905 | BF53: 5 | BG53: 0.12 | BH53: 0.6 | BI53: =SUM($BH$3:BH53) -> 30.6 | BJ53: 10 | BK53: 0.2 | BL53: 2 | BM53: =SUM($BL$3:BL53) -> 102 | BP53: 靖之 | BQ53: 10007 | BR53: 石御霏 | BS53: 10001 | BT53: 云灵 | BU53: 10013
S54: 19 | T54: =VLOOKUP(V54,#REF!,3,TRUE) ->  | U54: 52 | V54: 19 | W54: 0.8 | X54: 0.2 | Y54: 18.5 | Z54: 1 | AA54: 10019 | AB54: 云 | AG54: 10048 | AH54: 银肥肥 | AI54: 10048 | AK54: 52 | AL54: 0 | AM54: =SUM($AL$3:AL54) -> 68 | AN54: 65 | AO54: 240500 | AP54: =SUM($AO$3:AO54) -> 8405500 | AQ54: 12350 | AR54: =SUM($AQ$3:AQ54) -> 433600 | AS54: 39 | AT54: =SUM($AS$3:AS54) -> 1599 | AU54: 130 | AV54: =SUM($AU$3:AU54) -> 5330 | BA54: 52 | BB54: 5600 | BC54: =SUM($BB$3:BB54) -> 158600 | BD54: 285 | BE54: =SUM($BD$3:BD54) -> 8190 | BF54: 5 | BG54: 0.12 | BH54: 0.6 | BI54: =SUM($BH$3:BH54) -> 31.2 | BJ54: 10 | BK54: 0.2 | BL54: 2 | BM54: =SUM($BL$3:BL54) -> 104 | BP54: 孔谦 | BQ54: 10019
S55: 21 | T55: =VLOOKUP(V55,#REF!,3,TRUE) ->  | U55: 53 | V55: 21 | W55: 0.8 | X55: 0.2 | Y55: 20.5 | Z55: 3 | AA55: 10010 | AB55: =VLOOKUP(AA55,$AG:$AH,2,FALSE) -> 颜祈佳 | AC55: 10015 | AD55: 凝儿 | AE55: 10015 | AF55: 凝儿 | AG55: 10049 | AH55: 苍肥肥 | AI55: 10049 | AK55: 53 | AL55: 1 | AM55: =SUM($AL$3:AL55) -> 69 | AN55: 65 | AO55: 240500 | AP55: =SUM($AO$3:AO55) -> 8646000 | AQ55: 12350 | AR55: =SUM($AQ$3:AQ55) -> 445950 | AS55: 39 | AT55: =SUM($AS$3:AS55) -> 1638 | AU55: 130 | AV55: =SUM($AU$3:AU55) -> 5460 | BA55: 53 | BB55: 5700 | BC55: =SUM($BB$3:BB55) -> 164300 | BD55: 290 | BE55: =SUM($BD$3:BD55) -> 8480 | BF55: 5 | BG55: 0.12 | BH55: 0.6 | BI55: =SUM($BH$3:BH55) -> 31.8 | BJ55: 10 | BK55: 0.2 | BL55: 2 | BM55: =SUM($BL$3:BL55) -> 106 | BP55: 云 | BQ55: 10015 | BR55: 颜祈佳 | BS55: 10010 | BT55: 云 | BU55: 10015
S56: 23 | T56: =VLOOKUP(V56,#REF!,3,TRUE) ->  | U56: 54 | V56: 23 | W56: 0.8 | X56: 0.2 | Y56: 22.5 | Z56: 1 | AA56: 10005 | AB56: 兰卿 | AG56: 10050 | AH56: 金肥肥 | AI56: 10050 | AK56: 54 | AL56: 0 | AM56: =SUM($AL$3:AL56) -> 69 | AN56: 65 | AO56: 240500 | AP56: =SUM($AO$3:AO56) -> 8886500 | AQ56: 12350 | AR56: =SUM($AQ$3:AQ56) -> 458300 | AS56: 39 | AT56: =SUM($AS$3:AS56) -> 1677 | AU56: 130 | AV56: =SUM($AU$3:AU56) -> 5590 | BA56: 54 | BB56: 5800 | BC56: =SUM($BB$3:BB56) -> 170100 | BD56: 295 | BE56: =SUM($BD$3:BD56) -> 8775 | BF56: 5 | BG56: 0.12 | BH56: 0.6 | BI56: =SUM($BH$3:BH56) -> 32.4 | BJ56: 10 | BK56: 0.2 | BL56: 2 | BM56: =SUM($BL$3:BL56) -> 108 | BP56: 端木葵 | BQ56: 10005
S57: 25 | T57: =VLOOKUP(V57,#REF!,3,TRUE) ->  | U57: 55 | V57: 25 | W57: 1 | X57: 0 | Y57: 24.5 | Z57: 1 | AA57: 10006 | AB57: =VLOOKUP(AA57,$AG:$AH,2,FALSE) -> 朱贺 | AC57: 10013 | AD57: =VLOOKUP(AC57,$AG:$AH,2,FALSE) -> 白梦凡 | AG57: 10051 | AH57: 阳魔 | AI57: 10051 | AK57: 55 | AL57: 1 | AM57: =SUM($AL$3:AL57) -> 70 | AN57: 70 | AO57: 276500 | AP57: =SUM($AO$3:AO57) -> 9163000 | AQ57: 14175 | AR57: =SUM($AQ$3:AQ57) -> 472475 | AS57: 42 | AT57: =SUM($AS$3:AS57) -> 1719 | AU57: 140 | AV57: =SUM($AU$3:AU57) -> 5730 | BA57: 55 | BB57: 5900 | BC57: =SUM($BB$3:BB57) -> 176000 | BD57: 300 | BE57: =SUM($BD$3:BD57) -> 9075 | BF57: 5 | BG57: 0.12 | BH57: 0.6 | BI57: =SUM($BH$3:BH57) -> 33 | BJ57: 10 | BK57: 0.2 | BL57: 2 | BM57: =SUM($BL$3:BL57) -> 110 | BP57: 慕容子期 | BQ57: 10012
S58: 27 | T58: =VLOOKUP(V58,#REF!,3,TRUE) ->  | U58: 56 | V58: 27 | W58: 0.8 | X58: 0.2 | Y58: 26.5 | Z58: 2 | AA58: 10013 | AB58: 白梦凡 | AC58: 10017 | AD58: 解幽 | AG58: 10052 | AH58: 阴魔 | AI58: 10052 | AK58: 56 | AL58: 0 | AM58: =SUM($AL$3:AL58) -> 70 | AN58: 70 | AO58: 276500 | AP58: =SUM($AO$3:AO58) -> 9439500 | AQ58: 14175 | AR58: =SUM($AQ$3:AQ58) -> 486650 | AS58: 42 | AT58: =SUM($AS$3:AS58) -> 1761 | AU58: 140 | AV58: =SUM($AU$3:AU58) -> 5870 | BA58: 56 | BB58: 6000 | BC58: =SUM($BB$3:BB58) -> 182000 | BD58: 305 | BE58: =SUM($BD$3:BD58) -> 9380 | BF58: 5 | BG58: 0.12 | BH58: 0.6 | BI58: =SUM($BH$3:BH58) -> 33.6 | BJ58: 10 | BK58: 0.2 | BL58: 2 | BM58: =SUM($BL$3:BL58) -> 112 | BP58: 云灵 | BQ58: 10013 | BR58: 影蓟 | BS58: 10017
S59: 29 | T59: =VLOOKUP(V59,#REF!,3,TRUE) ->  | U59: 57 | V59: 29 | W59: 0.8 | X59: 0.2 | Y59: 28.5 | Z59: 2 | AA59: 10019 | AB59: 云 | AC59: 10023 | AD59: 荧荧 | AK59: 57 | AL59: 1 | AM59: =SUM($AL$3:AL59) -> 71 | AN59: 70 | AO59: 276500 | AP59: =SUM($AO$3:AO59) -> 9716000 | AQ59: 14175 | AR59: =SUM($AQ$3:AQ59) -> 500825 | AS59: 42 | AT59: =SUM($AS$3:AS59) -> 1803 | AU59: 140 | AV59: =SUM($AU$3:AU59) -> 6010 | BA59: 57 | BB59: 6100 | BC59: =SUM($BB$3:BB59) -> 188100 | BD59: 310 | BE59: =SUM($BD$3:BD59) -> 9690 | BF59: 5 | BG59: 0.12 | BH59: 0.6 | BI59: =SUM($BH$3:BH59) -> 34.2 | BJ59: 10 | BK59: 0.2 | BL59: 2 | BM59: =SUM($BL$3:BL59) -> 114 | BP59: 孔谦 | BQ59: 10019 | BR59: 荧荧 | BS59: 10023
S60: 31 | T60: =VLOOKUP(V60,#REF!,3,TRUE) ->  | U60: 58 | V60: 31 | W60: 0.8 | X60: 0.2 | Y60: 30.5 | Z60: 1 | AA60: 10023 | AB60: 荧荧 | AK60: 58 | AL60: 0 | AM60: =SUM($AL$3:AL60) -> 71 | AN60: 70 | AO60: 276500 | AP60: =SUM($AO$3:AO60) -> 9992500 | AQ60: 14175 | AR60: =SUM($AQ$3:AQ60) -> 515000 | AS60: 42 | AT60: =SUM($AS$3:AS60) -> 1845 | AU60: 140 | AV60: =SUM($AU$3:AU60) -> 6150 | BA60: 58 | BB60: 6200 | BC60: =SUM($BB$3:BB60) -> 194300 | BD60: 315 | BE60: =SUM($BD$3:BD60) -> 10005 | BF60: 5 | BG60: 0.12 | BH60: 0.6 | BI60: =SUM($BH$3:BH60) -> 34.8 | BJ60: 10 | BK60: 0.2 | BL60: 2 | BM60: =SUM($BL$3:BL60) -> 116 | BP60: 荧荧 | BQ60: 10023
S61: 33 | T61: =VLOOKUP(V61,#REF!,3,TRUE) ->  | U61: 59 | V61: 33 | W61: 0.8 | X61: 0.2 | Y61: 32.5 | Z61: 2 | AA61: 10014 | AB61: 颜无诡 | AC61: 10008 | AD61: 颜无雍 | AK61: 59 | AL61: 1 | AM61: =SUM($AL$3:AL61) -> 72 | AN61: 70 | AO61: 276500 | AP61: =SUM($AO$3:AO61) -> 10269000 | AQ61: 14175 | AR61: =SUM($AQ$3:AQ61) -> 529175 | AS61: 42 | AT61: =SUM($AS$3:AS61) -> 1887 | AU61: 140 | AV61: =SUM($AU$3:AU61) -> 6290 | BA61: 59 | BB61: 6300 | BC61: =SUM($BB$3:BB61) -> 200600 | BD61: 320 | BE61: =SUM($BD$3:BD61) -> 10325 | BF61: 5 | BG61: 0.12 | BH61: 0.6 | BI61: =SUM($BH$3:BH61) -> 35.4 | BJ61: 10 | BK61: 0.2 | BL61: 2 | BM61: =SUM($BL$3:BL61) -> 118 | BP61: 耿陶 | BQ61: 10014 | BR61: 白梦凡 | BS61: 10008
S62: 35 | T62: =VLOOKUP(V62,#REF!,3,TRUE) ->  | U62: 60 | V62: 35 | W62: 1 | X62: 0 | Y62: 34.5 | Z62: 1 | AA62: 10017 | AB62: 解幽 | AC62: 10016 | AD62: 枫元正 | AE62: 10012 | AF62: 慕容子期 | AK62: 60 | AL62: 0 | AM62: =SUM($AL$3:AL62) -> 72 | AN62: 70 | AO62: 276500 | AP62: =SUM($AO$3:AO62) -> 10545500 | AQ62: 14175 | AR62: =SUM($AQ$3:AQ62) -> 543350 | AS62: 42 | AT62: =SUM($AS$3:AS62) -> 1929 | AU62: 140 | AV62: =SUM($AU$3:AU62) -> 6430 | BA62: 60 | BB62: 6400 | BC62: =SUM($BB$3:BB62) -> 207000 | BD62: 325 | BE62: =SUM($BD$3:BD62) -> 10650 | BF62: 5 | BG62: 0.12 | BH62: 0.6 | BI62: =SUM($BH$3:BH62) -> 36 | BJ62: 10 | BK62: 0.2 | BL62: 2 | BM62: =SUM($BL$3:BL62) -> 120 | BP62: 岑以璇 | BQ62: 10021
S63: 37 | T63: =VLOOKUP(V63,#REF!,3,TRUE) ->  | U63: 61 | V63: 37 | W63: 0.8 | X63: 0.2 | Y63: 36.5 | Z63: 3 | AA63: 10001 | AB63: 夏侯鸿天 | AC63: 10004 | AD63: 孔谦 | AE63: 10005 | AF63: 兰卿 | AK63: 61 | AL63: 1 | AM63: =SUM($AL$3:AL63) -> 73 | AN63: 70 | AO63: 276500 | AP63: =SUM($AO$3:AO63) -> 10822000 | AQ63: 14175 | AR63: =SUM($AQ$3:AQ63) -> 557525 | AS63: 42 | AT63: =SUM($AS$3:AS63) -> 1971 | AU63: 140 | AV63: =SUM($AU$3:AU63) -> 6570 | BA63: 61 | BB63: 6500 | BC63: =SUM($BB$3:BB63) -> 213500 | BD63: 330 | BE63: =SUM($BD$3:BD63) -> 10980 | BF63: 5 | BG63: 0.12 | BH63: 0.6 | BI63: =SUM($BH$3:BH63) -> 36.6 | BJ63: 10 | BK63: 0.2 | BL63: 2 | BM63: =SUM($BL$3:BL63) -> 122 | BP63: 石御霏 | BQ63: 10001 | BR63: 应茹 | BS63: 10004 | BT63: 端木葵 | BU63: 10005
S64: 39 | T64: =VLOOKUP(V64,#REF!,3,TRUE) ->  | U64: 62 | V64: 39 | W64: 0.8 | X64: 0.2 | Y64: 38.5 | Z64: 1 | AA64: 10011 | AB64: 尹正霄 | AK64: 62 | AL64: 0 | AM64: =SUM($AL$3:AL64) -> 73 | AN64: 70 | AO64: 276500 | AP64: =SUM($AO$3:AO64) -> 11098500 | AQ64: 14175 | AR64: =SUM($AQ$3:AQ64) -> 571700 | AS64: 42 | AT64: =SUM($AS$3:AS64) -> 2013 | AU64: 140 | AV64: =SUM($AU$3:AU64) -> 6710 | BA64: 62 | BB64: 6600 | BC64: =SUM($BB$3:BB64) -> 220100 | BD64: 335 | BE64: =SUM($BD$3:BD64) -> 11315 | BF64: 5 | BG64: 0.12 | BH64: 0.6 | BI64: =SUM($BH$3:BH64) -> 37.2 | BJ64: 10 | BK64: 0.2 | BL64: 2 | BM64: =SUM($BL$3:BL64) -> 124 | BP64: 叶延 | BQ64: 10011
S65: 41 | T65: =VLOOKUP(V65,#REF!,3,TRUE) ->  | U65: 63 | V65: 41 | W65: 0.8 | X65: 0.2 | Y65: 40.5 | Z65: 2 | AA65: 10021 | AB65: 清然 | AC65: 10002 | AD65: 石御霏 | AK65: 63 | AL65: 1 | AM65: =SUM($AL$3:AL65) -> 74 | AN65: 70 | AO65: 276500 | AP65: =SUM($AO$3:AO65) -> 11375000 | AQ65: 14175 | AR65: =SUM($AQ$3:AQ65) -> 585875 | AS65: 42 | AT65: =SUM($AS$3:AS65) -> 2055 | AU65: 140 | AV65: =SUM($AU$3:AU65) -> 6850 | BA65: 63 | BB65: 6700 | BC65: =SUM($BB$3:BB65) -> 226800 | BD65: 340 | BE65: =SUM($BD$3:BD65) -> 11655 | BF65: 5 | BG65: 0.12 | BH65: 0.6 | BI65: =SUM($BH$3:BH65) -> 37.8 | BJ65: 10 | BK65: 0.2 | BL65: 2 | BM65: =SUM($BL$3:BL65) -> 126 | BP65: 岑以璇 | BQ65: 10021 | BR65: 楚恒 | BS65: 10002
S66: 43 | T66: =VLOOKUP(V66,#REF!,3,TRUE) ->  | U66: 64 | V66: 43 | W66: 0.8 | X66: 0.2 | Y66: 42.5 | Z66: 2 | AA66: 10020 | AB66: 司空染 | AC66: 10013 | AD66: 白梦凡 | AK66: 64 | AL66: 0 | AM66: =SUM($AL$3:AL66) -> 74 | AN66: 70 | AO66: 276500 | AP66: =SUM($AO$3:AO66) -> 11651500 | AQ66: 14175 | AR66: =SUM($AQ$3:AQ66) -> 600050 | AS66: 42 | AT66: =SUM($AS$3:AS66) -> 2097 | AU66: 140 | AV66: =SUM($AU$3:AU66) -> 6990 | BA66: 64 | BB66: 6800 | BC66: =SUM($BB$3:BB66) -> 233600 | BD66: 345 | BE66: =SUM($BD$3:BD66) -> 12000 | BF66: 5 | BG66: 0.12 | BH66: 0.6 | BI66: =SUM($BH$3:BH66) -> 38.4 | BJ66: 10 | BK66: 0.2 | BL66: 2 | BM66: =SUM($BL$3:BL66) -> 128 | BP66: 颜无雍 | BQ66: 10020 | BR66: 云灵 | BS66: 10013
S67: 45 | T67: =VLOOKUP(V67,#REF!,3,TRUE) ->  | U67: 65 | V67: 45 | W67: 1 | X67: 0 | Y67: 44.5 | Z67: 2 | AA67: 10009 | AB67: 祁菲 | AC67: 10016 | AD67: 枫元正 | AK67: 65 | AL67: =COUNTIFS(V:V,AK67) -> 1 | AM67: =SUM($AL$3:AL67) -> 75 | AN67: =_xlfn.FLOOR.MATH(AM67,5) -> 75 | AO67: 315000 | AP67: =SUM($AO$3:AO67) -> 11966500 | AQ67: 16125 | AR67: =SUM($AQ$3:AQ67) -> 616175 | AS67: 45 | AT67: =SUM($AS$3:AS67) -> 2142 | AU67: 150 | AV67: =SUM($AU$3:AU67) -> 7140 | BA67: 65 | BB67: 6900 | BC67: =SUM($BB$3:BB67) -> 240500 | BD67: 350 | BE67: =SUM($BD$3:BD67) -> 12350 | BF67: 5 | BG67: 0.12 | BH67: 0.6 | BI67: =SUM($BH$3:BH67) -> 39 | BJ67: 10 | BK67: 0.2 | BL67: 2 | BM67: =SUM($BL$3:BL67) -> 130 | BP67: 朱贺 | BQ67: 10018 | BR67: 慕容子期 | BS67: 10012
S68: 47 | T68: =VLOOKUP(V68,#REF!,3,TRUE) ->  | U68: 66 | V68: 47 | W68: 0.8 | X68: 0.2 | Y68: 46.5 | Z68: 1 | AA68: 10006 | AB68: =VLOOKUP(AA68,$AG:$AH,2,FALSE) -> 朱贺 | AD68: =VLOOKUP(AC68,$AG:$AH,2,FALSE) ->  | AF68: =VLOOKUP(AE68,$AG:$AH,2,FALSE) ->  | AK68: 66 | AL68: 0 | AM68: =SUM($AL$3:AL68) -> 75 | AN68: 75 | AO68: =VLOOKUP(AN68,$BA:$BC,3,0) -> 315000 | AP68: =SUM($AO$3:AO68) -> 12281500 | AQ68: =VLOOKUP(AN68,$BA:$BE,5,0) -> 16125 | AR68: =SUM($AQ$3:AQ68) -> 632300 | AS68: =VLOOKUP(AN68,$BA:$BI,9,0) -> 45 | AT68: =SUM($AS$3:AS68) -> 2187 | AU68: =VLOOKUP(AN68,$BA:$BM,13) -> 150 | AV68: =SUM($AU$3:AU68) -> 7290 | BA68: 66 | BB68: 7000 | BC68: =SUM($BB$3:BB68) -> 247500 | BD68: 355 | BE68: =SUM($BD$3:BD68) -> 12705 | BF68: 5 | BG68: 0.12 | BH68: =BF68*BG68 -> 0.6 | BI68: =SUM($BH$3:BH68) -> 39.6 | BJ68: 10 | BK68: 0.2 | BL68: =BJ68*BK68 -> 2 | BM68: =SUM($BL$3:BL68) -> 132 | BP68: 兰卿 | BQ68: 10006
S69: 49 | T69: =VLOOKUP(V69,#REF!,3,TRUE) ->  | U69: 67 | V69: 49 | W69: 0.8 | X69: 0.2 | Y69: 48.5 | Z69: 2 | AA69: 10017 | AB69: 解幽 | AC69: 10008 | AD69: 颜无雍 | AK69: 67 | AL69: 1 | AM69: =SUM($AL$3:AL69) -> 76 | AN69: 75 | AO69: 315000 | AP69: =SUM($AO$3:AO69) -> 12596500 | AQ69: 16125 | AR69: =SUM($AQ$3:AQ69) -> 648425 | AS69: 45 | AT69: =SUM($AS$3:AS69) -> 2232 | AU69: 150 | AV69: =SUM($AU$3:AU69) -> 7440 | BA69: 67 | BB69: 7100 | BC69: =SUM($BB$3:BB69) -> 254600 | BD69: 360 | BE69: =SUM($BD$3:BD69) -> 13065 | BF69: 5 | BG69: 0.12 | BH69: 0.6 | BI69: =SUM($BH$3:BH69) -> 40.2 | BJ69: 10 | BK69: 0.2 | BL69: 2 | BM69: =SUM($BL$3:BL69) -> 134 | BP69: 影蓟 | BQ69: 10017 | BR69: 白梦凡 | BS69: 10008
S70: 51 | T70: =VLOOKUP(V70,#REF!,3,TRUE) ->  | U70: 68 | V70: 51 | W70: 0.8 | X70: 0.2 | Y70: 50.5 | Z70: 2 | AA70: 10013 | AB70: 白梦凡 | AC70: 10008 | AD70: 颜无雍 | AK70: 68 | AL70: 0 | AM70: =SUM($AL$3:AL70) -> 76 | AN70: 75 | AO70: 315000 | AP70: =SUM($AO$3:AO70) -> 12911500 | AQ70: 16125 | AR70: =SUM($AQ$3:AQ70) -> 664550 | AS70: 45 | AT70: =SUM($AS$3:AS70) -> 2277 | AU70: 150 | AV70: =SUM($AU$3:AU70) -> 7590 | BA70: 68 | BB70: 7200 | BC70: =SUM($BB$3:BB70) -> 261800 | BD70: 365 | BE70: =SUM($BD$3:BD70) -> 13430 | BF70: 5 | BG70: 0.12 | BH70: 0.6 | BI70: =SUM($BH$3:BH70) -> 40.8 | BJ70: 10 | BK70: 0.2 | BL70: 2 | BM70: =SUM($BL$3:BL70) -> 136 | BP70: 云灵 | BQ70: 10013 | BR70: 白梦凡 | BS70: 10008
S71: 53 | T71: =VLOOKUP(V71,#REF!,3,TRUE) ->  | U71: 69 | V71: 53 | W71: 0.8 | X71: 0.2 | Y71: 52.5 | Z71: 2 | AA71: 10012 | AB71: 慕容子期 | AC71: 10010 | AD71: 颜祈佳 | AK71: 69 | AL71: 1 | AM71: =SUM($AL$3:AL71) -> 77 | AN71: 75 | AO71: 315000 | AP71: =SUM($AO$3:AO71) -> 13226500 | AQ71: 16125 | AR71: =SUM($AQ$3:AQ71) -> 680675 | AS71: 45 | AT71: =SUM($AS$3:AS71) -> 2322 | AU71: 150 | AV71: =SUM($AU$3:AU71) -> 7740 | BA71: 69 | BB71: 7300 | BC71: =SUM($BB$3:BB71) -> 269100 | BD71: 370 | BE71: =SUM($BD$3:BD71) -> 13800 | BF71: 5 | BG71: 0.12 | BH71: 0.6 | BI71: =SUM($BH$3:BH71) -> 41.4 | BJ71: 10 | BK71: 0.2 | BL71: 2 | BM71: =SUM($BL$3:BL71) -> 138 | BP71: 慕容子期 | BQ71: 10012 | BR71: 颜祈佳 | BS71: 10010
S72: 55 | T72: =VLOOKUP(V72,#REF!,3,TRUE) ->  | U72: 70 | V72: 55 | W72: 1 | X72: 0 | Y72: 54.5 | Z72: 3 | AA72: 10012 | AB72: =VLOOKUP(AA72,$AG:$AH,2,FALSE) -> 慕容子期 | AC72: 10011 | AD72: =VLOOKUP(AC72,$AG:$AH,2,FALSE) -> 尹正霄 | AE72: 10015 | AF72: 凝儿 | AK72: 70 | AL72: 0 | AM72: =SUM($AL$3:AL72) -> 77 | AN72: 75 | AO72: 315000 | AP72: =SUM($AO$3:AO72) -> 13541500 | AQ72: 16125 | AR72: =SUM($AQ$3:AQ72) -> 696800 | AS72: 45 | AT72: =SUM($AS$3:AS72) -> 2367 | AU72: 150 | AV72: =SUM($AU$3:AU72) -> 7890 | BA72: 70 | BB72: 7400 | BC72: =SUM($BB$3:BB72) -> 276500 | BD72: 375 | BE72: =SUM($BD$3:BD72) -> 14175 | BF72: 5 | BG72: 0.12 | BH72: 0.6 | BI72: =SUM($BH$3:BH72) -> 42 | BJ72: 10 | BK72: 0.2 | BL72: 2 | BM72: =SUM($BL$3:BL72) -> 140 | BP72: 颜祈佳 | BQ72: 10010 | BR72: 耿陶 | BS72: 10014 | BT72: 慕容子期 | BU72: 10012
S73: 57 | T73: =VLOOKUP(V73,#REF!,3,TRUE) ->  | U73: 71 | V73: 57 | W73: 0.8 | X73: 0.2 | Y73: 56.5 | Z73: 2 | AA73: 10010 | AB73: 颜祈佳 | AC73: 10009 | AD73: 祁菲 | AK73: 71 | AL73: 1 | AM73: =SUM($AL$3:AL73) -> 78 | AN73: 75 | AO73: 315000 | AP73: =SUM($AO$3:AO73) -> 13856500 | AQ73: 16125 | AR73: =SUM($AQ$3:AQ73) -> 712925 | AS73: 45 | AT73: =SUM($AS$3:AS73) -> 2412 | AU73: 150 | AV73: =SUM($AU$3:AU73) -> 8040 | BA73: 71 | BB73: 7500 | BC73: =SUM($BB$3:BB73) -> 284000 | BD73: 380 | BE73: =SUM($BD$3:BD73) -> 14555 | BF73: 5 | BG73: 0.12 | BH73: 0.6 | BI73: =SUM($BH$3:BH73) -> 42.6 | BJ73: 10 | BK73: 0.2 | BL73: 2 | BM73: =SUM($BL$3:BL73) -> 142 | BP73: 颜祈佳 | BQ73: 10010 | BR73: 祁菲 | BS73: 10009
S74: 59 | T74: =VLOOKUP(V74,#REF!,3,TRUE) ->  | U74: 72 | V74: 59 | W74: 0.8 | X74: 0.2 | Y74: 58.5 | Z74: 3 | AA74: 10023 | AB74: 荧荧 | AC74: 10011 | AD74: 尹正霄 | AE74: 10005 | AF74: 兰卿 | AK74: 72 | AL74: 0 | AM74: =SUM($AL$3:AL74) -> 78 | AN74: 75 | AO74: 315000 | AP74: =SUM($AO$3:AO74) -> 14171500 | AQ74: 16125 | AR74: =SUM($AQ$3:AQ74) -> 729050 | AS74: 45 | AT74: =SUM($AS$3:AS74) -> 2457 | AU74: 150 | AV74: =SUM($AU$3:AU74) -> 8190 | BA74: 72 | BB74: 7600 | BC74: =SUM($BB$3:BB74) -> 291600 | BD74: 385 | BE74: =SUM($BD$3:BD74) -> 14940 | BF74: 5 | BG74: 0.12 | BH74: 0.6 | BI74: =SUM($BH$3:BH74) -> 43.2 | BJ74: 10 | BK74: 0.2 | BL74: 2 | BM74: =SUM($BL$3:BL74) -> 144 | BP74: 荧荧 | BQ74: 10023 | BR74: 叶延 | BS74: 10011 | BT74: 端木葵 | BU74: 10005
S75: 61 | T75: =VLOOKUP(V75,#REF!,3,TRUE) ->  | U75: 73 | V75: 61 | W75: 0.8 | X75: 0.2 | Y75: 60.5 | Z75: 1 | AA75: 10002 | AB75: 石御霏 | AK75: 73 | AL75: 1 | AM75: =SUM($AL$3:AL75) -> 79 | AN75: 75 | AO75: 315000 | AP75: =SUM($AO$3:AO75) -> 14486500 | AQ75: 16125 | AR75: =SUM($AQ$3:AQ75) -> 745175 | AS75: 45 | AT75: =SUM($AS$3:AS75) -> 2502 | AU75: 150 | AV75: =SUM($AU$3:AU75) -> 8340 | BA75: 73 | BB75: 7700 | BC75: =SUM($BB$3:BB75) -> 299300 | BD75: 390 | BE75: =SUM($BD$3:BD75) -> 15330 | BF75: 5 | BG75: 0.12 | BH75: 0.6 | BI75: =SUM($BH$3:BH75) -> 43.8 | BJ75: 10 | BK75: 0.2 | BL75: 2 | BM75: =SUM($BL$3:BL75) -> 146 | BP75: 楚恒 | BQ75: 10002
S76: 63 | T76: =VLOOKUP(V76,#REF!,3,TRUE) ->  | U76: 74 | V76: 63 | W76: 0.8 | X76: 0.2 | Y76: 62.5 | Z76: 1 | AA76: 10008 | AB76: 颜无雍 | AK76: 74 | AL76: 0 | AM76: =SUM($AL$3:AL76) -> 79 | AN76: 75 | AO76: 315000 | AP76: =SUM($AO$3:AO76) -> 14801500 | AQ76: 16125 | AR76: =SUM($AQ$3:AQ76) -> 761300 | AS76: 45 | AT76: =SUM($AS$3:AS76) -> 2547 | AU76: 150 | AV76: =SUM($AU$3:AU76) -> 8490 | BA76: 74 | BB76: 7800 | BC76: =SUM($BB$3:BB76) -> 307100 | BD76: 395 | BE76: =SUM($BD$3:BD76) -> 15725 | BF76: 5 | BG76: 0.12 | BH76: 0.6 | BI76: =SUM($BH$3:BH76) -> 44.4 | BJ76: 10 | BK76: 0.2 | BL76: 2 | BM76: =SUM($BL$3:BL76) -> 148 | BP76: 白梦凡 | BQ76: 10008
S77: 65 | T77: =VLOOKUP(V77,#REF!,3,TRUE) ->  | U77: 75 | V77: 65 | W77: 1 | X77: 0 | Y77: 64.5 | Z77: 3 | AA77: 10005 | AB77: =VLOOKUP(AA77,$AG:$AH,2,FALSE) -> 兰卿 | AC77: 10022 | AD77: 云灵 | AE77: 10018 | AF77: 紫苏 | AK77: 75 | AL77: 1 | AM77: =SUM($AL$3:AL77) -> 80 | AN77: 80 | AO77: 356000 | AP77: =SUM($AO$3:AO77) -> 15157500 | AQ77: 18200 | AR77: =SUM($AQ$3:AQ77) -> 779500 | AS77: 48 | AT77: =SUM($AS$3:AS77) -> 2595 | AU77: 160 | AV77: =SUM($AU$3:AU77) -> 8650 | BA77: 75 | BB77: 7900 | BC77: =SUM($BB$3:BB77) -> 315000 | BD77: 400 | BE77: =SUM($BD$3:BD77) -> 16125 | BF77: 5 | BG77: 0.12 | BH77: 0.6 | BI77: =SUM($BH$3:BH77) -> 45 | BJ77: 10 | BK77: 0.2 | BL77: 2 | BM77: =SUM($BL$3:BL77) -> 150 | BP77: 云 | BQ77: 10015 | BR77: 颜祈佳 | BS77: 10010 | BT77: 荧荧 | BU77: 10023
S78: 67 | T78: =VLOOKUP(V78,#REF!,3,TRUE) ->  | U78: 76 | V78: 67 | W78: 0.8 | X78: 0.2 | Y78: 66.5 | Z78: 3 | AA78: 10023 | AB78: 荧荧 | AC78: 10011 | AD78: 尹正霄 | AE78: 10014 | AF78: 颜无诡 | AK78: 76 | AL78: 0 | AM78: =SUM($AL$3:AL78) -> 80 | AN78: 80 | AO78: 356000 | AP78: =SUM($AO$3:AO78) -> 15513500 | AQ78: 18200 | AR78: =SUM($AQ$3:AQ78) -> 797700 | AS78: 48 | AT78: =SUM($AS$3:AS78) -> 2643 | AU78: 160 | AV78: =SUM($AU$3:AU78) -> 8810 | BA78: 76 | BB78: 8000 | BC78: =SUM($BB$3:BB78) -> 323000 | BD78: 405 | BE78: =SUM($BD$3:BD78) -> 16530 | BF78: 5 | BG78: 0.12 | BH78: 0.6 | BI78: =SUM($BH$3:BH78) -> 45.6 | BJ78: 10 | BK78: 0.2 | BL78: 2 | BM78: =SUM($BL$3:BL78) -> 152 | BP78: 荧荧 | BQ78: 10023 | BR78: 叶延 | BS78: 10011 | BT78: 耿陶 | BU78: 10014
S79: 69 | T79: =VLOOKUP(V79,#REF!,3,TRUE) ->  | U79: 77 | V79: 69 | W79: 0.8 | X79: 0.2 | Y79: 68.5 | Z79: 1 | AA79: 10010 | AB79: 颜祈佳 | AK79: 77 | AL79: 1 | AM79: =SUM($AL$3:AL79) -> 81 | AN79: 80 | AO79: 356000 | AP79: =SUM($AO$3:AO79) -> 15869500 | AQ79: 18200 | AR79: =SUM($AQ$3:AQ79) -> 815900 | AS79: 48 | AT79: =SUM($AS$3:AS79) -> 2691 | AU79: 160 | AV79: =SUM($AU$3:AU79) -> 8970 | BA79: 77 | BB79: 8100 | BC79: =SUM($BB$3:BB79) -> 331100 | BD79: 410 | BE79: =SUM($BD$3:BD79) -> 16940 | BF79: 5 | BG79: 0.12 | BH79: 0.6 | BI79: =SUM($BH$3:BH79) -> 46.2 | BJ79: 10 | BK79: 0.2 | BL79: 2 | BM79: =SUM($BL$3:BL79) -> 154 | BP79: 颜祈佳 | BQ79: 10010
S80: 71 | T80: =VLOOKUP(V80,#REF!,3,TRUE) ->  | U80: 78 | V80: 71 | W80: 0.8 | X80: 0.2 | Y80: 70.5 | Z80: 1 | AA80: 10009 | AB80: 祁菲 | AK80: 78 | AL80: 0 | AM80: =SUM($AL$3:AL80) -> 81 | AN80: 80 | AO80: 356000 | AP80: =SUM($AO$3:AO80) -> 16225500 | AQ80: 18200 | AR80: =SUM($AQ$3:AQ80) -> 834100 | AS80: 48 | AT80: =SUM($AS$3:AS80) -> 2739 | AU80: 160 | AV80: =SUM($AU$3:AU80) -> 9130 | BA80: 78 | BB80: 8200 | BC80: =SUM($BB$3:BB80) -> 339300 | BD80: 415 | BE80: =SUM($BD$3:BD80) -> 17355 | BF80: 5 | BG80: 0.12 | BH80: 0.6 | BI80: =SUM($BH$3:BH80) -> 46.8 | BJ80: 10 | BK80: 0.2 | BL80: 2 | BM80: =SUM($BL$3:BL80) -> 156 | BP80: 祁菲 | BQ80: 10009
S81: 73 | T81: =VLOOKUP(V81,#REF!,3,TRUE) ->  | U81: 79 | V81: 73 | W81: 0.8 | X81: 0.2 | Y81: 72.5 | Z81: 1 | AA81: 10019 | AB81: 云 | AK81: 79 | AL81: 1 | AM81: =SUM($AL$3:AL81) -> 82 | AN81: 80 | AO81: 356000 | AP81: =SUM($AO$3:AO81) -> 16581500 | AQ81: 18200 | AR81: =SUM($AQ$3:AQ81) -> 852300 | AS81: 48 | AT81: =SUM($AS$3:AS81) -> 2787 | AU81: 160 | AV81: =SUM($AU$3:AU81) -> 9290 | BA81: 79 | BB81: 8300 | BC81: =SUM($BB$3:BB81) -> 347600 | BD81: 420 | BE81: =SUM($BD$3:BD81) -> 17775 | BF81: 5 | BG81: 0.12 | BH81: 0.6 | BI81: =SUM($BH$3:BH81) -> 47.4 | BJ81: 10 | BK81: 0.2 | BL81: 2 | BM81: =SUM($BL$3:BL81) -> 158 | BP81: 孔谦 | BQ81: 10019
S82: 75 | T82: =VLOOKUP(V82,#REF!,3,TRUE) ->  | U82: 80 | V82: 75 | W82: 1 | X82: 0 | Y82: 74.5 | Z82: 2 | AA82: 10004 | AB82: =VLOOKUP(AA82,$AG:$AH,2,FALSE) -> 孔谦 | AC82: 10018 | AD82: =VLOOKUP(AC82,$AG:$AH,2,FALSE) -> 紫苏 | AE82: 10012 | AF82: 慕容子期 | AK82: 80 | AL82: 0 | AM82: =SUM($AL$3:AL82) -> 82 | AN82: 80 | AO82: 356000 | AP82: =SUM($AO$3:AO82) -> 16937500 | AQ82: 18200 | AR82: =SUM($AQ$3:AQ82) -> 870500 | AS82: 48 | AT82: =SUM($AS$3:AS82) -> 2835 | AU82: 160 | AV82: =SUM($AU$3:AU82) -> 9450 | BA82: 80 | BB82: 8400 | BC82: =SUM($BB$3:BB82) -> 356000 | BD82: 425 | BE82: =SUM($BD$3:BD82) -> 18200 | BF82: 5 | BG82: 0.12 | BH82: 0.6 | BI82: =SUM($BH$3:BH82) -> 48 | BJ82: 10 | BK82: 0.2 | BL82: 2 | BM82: =SUM($BL$3:BL82) -> 160 | BP82: 耿陶 | BQ82: 10014 | BR82: 应茹 | BS82: 10004
S83: 77 | T83: =VLOOKUP(V83,#REF!,3,TRUE) ->  | U83: 81 | V83: 77 | W83: 0.8 | X83: 0.2 | Y83: 76.5 | Z83: 3 | AA83: 10011 | AB83: 尹正霄 | AC83: 10017 | AD83: 解幽 | AE83: 10009 | AF83: 祁菲 | AK83: 81 | AL83: 1 | AM83: =SUM($AL$3:AL83) -> 83 | AN83: 80 | AO83: 356000 | AP83: =SUM($AO$3:AO83) -> 17293500 | AQ83: 18200 | AR83: =SUM($AQ$3:AQ83) -> 888700 | AS83: 48 | AT83: =SUM($AS$3:AS83) -> 2883 | AU83: 160 | AV83: =SUM($AU$3:AU83) -> 9610 | BA83: 81 | BB83: 8500 | BC83: =SUM($BB$3:BB83) -> 364500 | BD83: 430 | BE83: =SUM($BD$3:BD83) -> 18630 | BF83: 5 | BG83: 0.12 | BH83: 0.6 | BI83: =SUM($BH$3:BH83) -> 48.6 | BJ83: 10 | BK83: 0.2 | BL83: 2 | BM83: =SUM($BL$3:BL83) -> 162 | BP83: 叶延 | BQ83: 10011 | BR83: 影蓟 | BS83: 10017 | BT83: 祁菲 | BU83: 10009
S84: 79 | T84: =VLOOKUP(V84,#REF!,3,TRUE) ->  | U84: 82 | V84: 79 | W84: 0.8 | X84: 0.2 | Y84: 78.5 | Z84: 1 | AA84: 10003 | AB84: 叶辽 | AK84: 82 | AL84: 0 | AM84: =SUM($AL$3:AL84) -> 83 | AN84: 80 | AO84: 356000 | AP84: =SUM($AO$3:AO84) -> 17649500 | AQ84: 18200 | AR84: =SUM($AQ$3:AQ84) -> 906900 | AS84: 48 | AT84: =SUM($AS$3:AS84) -> 2931 | AU84: 160 | AV84: =SUM($AU$3:AU84) -> 9770 | BA84: 82 | BB84: 8600 | BC84: =SUM($BB$3:BB84) -> 373100 | BD84: 435 | BE84: =SUM($BD$3:BD84) -> 19065 | BF84: 5 | BG84: 0.12 | BH84: 0.6 | BI84: =SUM($BH$3:BH84) -> 49.2 | BJ84: 10 | BK84: 0.2 | BL84: 2 | BM84: =SUM($BL$3:BL84) -> 164 | BP84: 夏侯鸿天 | BQ84: 10003
S85: 81 | T85: =VLOOKUP(V85,#REF!,3,TRUE) ->  | U85: 83 | V85: 81 | W85: 0.8 | X85: 0.2 | Y85: 80.5 | Z85: 3 | AA85: 10014 | AB85: 颜无诡 | AC85: 10006 | AD85: 朱贺 | AE85: 10022 | AF85: 云灵 | AK85: 83 | AL85: 1 | AM85: =SUM($AL$3:AL85) -> 84 | AN85: 80 | AO85: 356000 | AP85: =SUM($AO$3:AO85) -> 18005500 | AQ85: 18200 | AR85: =SUM($AQ$3:AQ85) -> 925100 | AS85: 48 | AT85: =SUM($AS$3:AS85) -> 2979 | AU85: 160 | AV85: =SUM($AU$3:AU85) -> 9930 | BA85: 83 | BB85: 8700 | BC85: =SUM($BB$3:BB85) -> 381800 | BD85: 440 | BE85: =SUM($BD$3:BD85) -> 19505 | BF85: 5 | BG85: 0.12 | BH85: 0.6 | BI85: =SUM($BH$3:BH85) -> 49.8 | BJ85: 10 | BK85: 0.2 | BL85: 2 | BM85: =SUM($BL$3:BL85) -> 166 | BP85: 耿陶 | BQ85: 10014 | BR85: 兰卿 | BS85: 10006 | BT85: 颜无诡 | BU85: 10022
S86: 83 | T86: =VLOOKUP(V86,#REF!,3,TRUE) ->  | U86: 84 | V86: 83 | W86: 0.8 | X86: 0.2 | Y86: 82.5 | Z86: 2 | AA86: 10019 | AB86: 云 | AC86: 10004 | AD86: 孔谦 | AK86: 84 | AL86: 0 | AM86: =SUM($AL$3:AL86) -> 84 | AN86: 80 | AO86: 356000 | AP86: =SUM($AO$3:AO86) -> 18361500 | AQ86: 18200 | AR86: =SUM($AQ$3:AQ86) -> 943300 | AS86: 48 | AT86: =SUM($AS$3:AS86) -> 3027 | AU86: 160 | AV86: =SUM($AU$3:AU86) -> 10090 | BA86: 84 | BB86: 8800 | BC86: =SUM($BB$3:BB86) -> 390600 | BD86: 445 | BE86: =SUM($BD$3:BD86) -> 19950 | BF86: 5 | BG86: 0.12 | BH86: 0.6 | BI86: =SUM($BH$3:BH86) -> 50.4 | BJ86: 10 | BK86: 0.2 | BL86: 2 | BM86: =SUM($BL$3:BL86) -> 168 | BP86: 孔谦 | BQ86: 10019 | BR86: 应茹 | BS86: 10004
S87: 85 | T87: =VLOOKUP(V87,#REF!,3,TRUE) ->  | U87: 85 | V87: 85 | W87: 1 | X87: 0 | Y87: 84.5 | Z87: 3 | AA87: 10006 | AB87: =VLOOKUP(AA87,$AG:$AH,2,FALSE) -> 朱贺 | AC87: 10017 | AD87: =VLOOKUP(AC87,$AG:$AH,2,FALSE) -> 解幽 | AE87: 10012 | AF87: 慕容子期 | AK87: 85 | AL87: 1 | AM87: =SUM($AL$3:AL87) -> 85 | AN87: 85 | AO87: 399500 | AP87: =SUM($AO$3:AO87) -> 18761000 | AQ87: 20400 | AR87: =SUM($AQ$3:AQ87) -> 963700 | AS87: 51 | AT87: =SUM($AS$3:AS87) -> 3078 | AU87: 170 | AV87: =SUM($AU$3:AU87) -> 10260 | BA87: 85 | BB87: 8900 | BC87: =SUM($BB$3:BB87) -> 399500 | BD87: 450 | BE87: =SUM($BD$3:BD87) -> 20400 | BF87: 5 | BG87: 0.12 | BH87: 0.6 | BI87: =SUM($BH$3:BH87) -> 51 | BJ87: 10 | BK87: 0.2 | BL87: 2 | BM87: =SUM($BL$3:BL87) -> 170 | BP87: 颜祈佳 | BQ87: 10010 | BR87: 颜无诡 | BS87: 10022 | BT87: 夏侯鸿天 | BU87: 10003
S88: 87 | T88: =VLOOKUP(V88,#REF!,3,TRUE) ->  | U88: 86 | V88: 87 | W88: 0.8 | X88: 0.2 | Y88: 86.5 | Z88: 1 | AA88: 10008 | AB88: 颜无雍 | AK88: 86 | AL88: 0 | AM88: =SUM($AL$3:AL88) -> 85 | AN88: 85 | AO88: 399500 | AP88: =SUM($AO$3:AO88) -> 19160500 | AQ88: 20400 | AR88: =SUM($AQ$3:AQ88) -> 984100 | AS88: 51 | AT88: =SUM($AS$3:AS88) -> 3129 | AU88: 170 | AV88: =SUM($AU$3:AU88) -> 10430 | BA88: 86 | BB88: 9000 | BC88: =SUM($BB$3:BB88) -> 408500 | BD88: 455 | BE88: =SUM($BD$3:BD88) -> 20855 | BF88: 5 | BG88: 0.12 | BH88: 0.6 | BI88: =SUM($BH$3:BH88) -> 51.6 | BJ88: 10 | BK88: 0.2 | BL88: 2 | BM88: =SUM($BL$3:BL88) -> 172 | BP88: 白梦凡 | BQ88: 10008
S89: 89 | T89: =VLOOKUP(V89,#REF!,3,TRUE) ->  | U89: 87 | V89: 89 | W89: 0.8 | X89: 0.2 | Y89: 88.5 | Z89: 3 | AA89: 10019 | AB89: 云 | AC89: 10005 | AD89: 兰卿 | AE89: 10020 | AF89: 司空染 | AK89: 87 | AL89: 1 | AM89: =SUM($AL$3:AL89) -> 86 | AN89: 85 | AO89: 399500 | AP89: =SUM($AO$3:AO89) -> 19560000 | AQ89: 20400 | AR89: =SUM($AQ$3:AQ89) -> 1004500 | AS89: 51 | AT89: =SUM($AS$3:AS89) -> 3180 | AU89: 170 | AV89: =SUM($AU$3:AU89) -> 10600 | BA89: 87 | BB89: 9100 | BC89: =SUM($BB$3:BB89) -> 417600 | BD89: 460 | BE89: =SUM($BD$3:BD89) -> 21315 | BF89: 5 | BG89: 0.12 | BH89: 0.6 | BI89: =SUM($BH$3:BH89) -> 52.2 | BJ89: 10 | BK89: 0.2 | BL89: 2 | BM89: =SUM($BL$3:BL89) -> 174 | BP89: 孔谦 | BQ89: 10019 | BR89: 端木葵 | BS89: 10005 | BT89: 颜无雍 | BU89: 10020
S90: 91 | T90: =VLOOKUP(V90,#REF!,3,TRUE) ->  | U90: 88 | V90: 91 | W90: 0.8 | X90: 0.2 | Y90: 90.5 | Z90: 2 | AA90: 10006 | AB90: 朱贺 | AC90: 10022 | AD90: 云灵 | AK90: 88 | AL90: 0 | AM90: =SUM($AL$3:AL90) -> 86 | AN90: 85 | AO90: 399500 | AP90: =SUM($AO$3:AO90) -> 19959500 | AQ90: 20400 | AR90: =SUM($AQ$3:AQ90) -> 1024900 | AS90: 51 | AT90: =SUM($AS$3:AS90) -> 3231 | AU90: 170 | AV90: =SUM($AU$3:AU90) -> 10770 | BA90: 88 | BB90: 9200 | BC90: =SUM($BB$3:BB90) -> 426800 | BD90: 465 | BE90: =SUM($BD$3:BD90) -> 21780 | BF90: 5 | BG90: 0.12 | BH90: 0.6 | BI90: =SUM($BH$3:BH90) -> 52.8 | BJ90: 10 | BK90: 0.2 | BL90: 2 | BM90: =SUM($BL$3:BL90) -> 176 | BP90: 兰卿 | BQ90: 10006 | BR90: 颜无诡 | BS90: 10022
S91: 93 | T91: =VLOOKUP(V91,#REF!,3,TRUE) ->  | U91: 89 | V91: 93 | W91: 0.8 | X91: 0.2 | Y91: 92.5 | Z91: 2 | AA91: 10018 | AB91: 紫苏 | AC91: 10001 | AD91: 夏侯鸿天 | AK91: 89 | AL91: 1 | AM91: =SUM($AL$3:AL91) -> 87 | AN91: 85 | AO91: 399500 | AP91: =SUM($AO$3:AO91) -> 20359000 | AQ91: 20400 | AR91: =SUM($AQ$3:AQ91) -> 1045300 | AS91: 51 | AT91: =SUM($AS$3:AS91) -> 3282 | AU91: 170 | AV91: =SUM($AU$3:AU91) -> 10940 | BA91: 89 | BB91: 9300 | BC91: =SUM($BB$3:BB91) -> 436100 | BD91: 470 | BE91: =SUM($BD$3:BD91) -> 22250 | BF91: 5 | BG91: 0.12 | BH91: 0.6 | BI91: =SUM($BH$3:BH91) -> 53.4 | BJ91: 10 | BK91: 0.2 | BL91: 2 | BM91: =SUM($BL$3:BL91) -> 178 | BP91: 朱贺 | BQ91: 10018 | BR91: 石御霏 | BS91: 10001
S92: 95 | T92: =VLOOKUP(V92,#REF!,3,TRUE) ->  | U92: 90 | V92: 95 | W92: 1 | X92: 0 | Y92: 94.5 | Z92: 3 | AA92: 10001 | AB92: 夏侯鸿天 | AC92: 10016 | AD92: 枫元正 | AE92: 10022 | AF92: 云灵 | AK92: 90 | AL92: 0 | AM92: =SUM($AL$3:AL92) -> 87 | AN92: 85 | AO92: 399500 | AP92: =SUM($AO$3:AO92) -> 20758500 | AQ92: 20400 | AR92: =SUM($AQ$3:AQ92) -> 1065700 | AS92: 51 | AT92: =SUM($AS$3:AS92) -> 3333 | AU92: 170 | AV92: =SUM($AU$3:AU92) -> 11110 | BA92: 90 | BB92: 9400 | BC92: =SUM($BB$3:BB92) -> 445500 | BD92: 475 | BE92: =SUM($BD$3:BD92) -> 22725 | BF92: 5 | BG92: 0.12 | BH92: 0.6 | BI92: =SUM($BH$3:BH92) -> 54 | BJ92: 10 | BK92: 0.2 | BL92: 2 | BM92: =SUM($BL$3:BL92) -> 180 | BP92: 应茹 | BQ92: 10004 | BR92: 岑以航 | BS92: 10016 | BT92: 慕容子期 | BU92: 10012
S93: 97 | T93: =VLOOKUP(V93,#REF!,3,TRUE) ->  | U93: 91 | V93: 97 | W93: 0.8 | X93: 0.2 | Y93: 96.5 | Z93: 3 | AA93: 10012 | AB93: 慕容子期 | AC93: 10017 | AD93: 解幽 | AE93: 10002 | AF93: 石御霏 | AK93: 91 | AL93: 1 | AM93: =SUM($AL$3:AL93) -> 88 | AN93: 85 | AO93: 399500 | AP93: =SUM($AO$3:AO93) -> 21158000 | AQ93: 20400 | AR93: =SUM($AQ$3:AQ93) -> 1086100 | AS93: 51 | AT93: =SUM($AS$3:AS93) -> 3384 | AU93: 170 | AV93: =SUM($AU$3:AU93) -> 11280 | BA93: 91 | BB93: 9500 | BC93: =SUM($BB$3:BB93) -> 455000 | BD93: 480 | BE93: =SUM($BD$3:BD93) -> 23205 | BF93: 5 | BG93: 0.12 | BH93: 0.6 | BI93: =SUM($BH$3:BH93) -> 54.6 | BJ93: 10 | BK93: 0.2 | BL93: 2 | BM93: =SUM($BL$3:BL93) -> 182 | BP93: 慕容子期 | BQ93: 10012 | BR93: 影蓟 | BS93: 10017 | BT93: 楚恒 | BU93: 10002
S94: 99 | T94: =VLOOKUP(V94,#REF!,3,TRUE) ->  | U94: 92 | V94: 99 | W94: 0.8 | X94: 0.2 | Y94: 98.5 | Z94: 2 | AA94: 10006 | AB94: 朱贺 | AC94: 10001 | AD94: 夏侯鸿天 | AK94: 92 | AL94: 0 | AM94: =SUM($AL$3:AL94) -> 88 | AN94: 85 | AO94: 399500 | AP94: =SUM($AO$3:AO94) -> 21557500 | AQ94: 20400 | AR94: =SUM($AQ$3:AQ94) -> 1106500 | AS94: 51 | AT94: =SUM($AS$3:AS94) -> 3435 | AU94: 170 | AV94: =SUM($AU$3:AU94) -> 11450 | BA94: 92 | BB94: 9600 | BC94: =SUM($BB$3:BB94) -> 464600 | BD94: 485 | BE94: =SUM($BD$3:BD94) -> 23690 | BF94: 5 | BG94: 0.12 | BH94: 0.6 | BI94: =SUM($BH$3:BH94) -> 55.2 | BJ94: 10 | BK94: 0.2 | BL94: 2 | BM94: =SUM($BL$3:BL94) -> 184 | BP94: 兰卿 | BQ94: 10006 | BR94: 石御霏 | BS94: 10001
S95: 101 | T95: =VLOOKUP(V95,#REF!,3,TRUE) ->  | U95: 93 | V95: 101 | W95: 0.8 | X95: 0.2 | Y95: 100.5 | Z95: 1 | AA95: 10001 | AB95: 夏侯鸿天 | AK95: 93 | AL95: 1 | AM95: =SUM($AL$3:AL95) -> 89 | AN95: 85 | AO95: 399500 | AP95: =SUM($AO$3:AO95) -> 21957000 | AQ95: 20400 | AR95: =SUM($AQ$3:AQ95) -> 1126900 | AS95: 51 | AT95: =SUM($AS$3:AS95) -> 3486 | AU95: 170 | AV95: =SUM($AU$3:AU95) -> 11620 | BA95: 93 | BB95: 9700 | BC95: =SUM($BB$3:BB95) -> 474300 | BD95: 490 | BE95: =SUM($BD$3:BD95) -> 24180 | BF95: 5 | BG95: 0.12 | BH95: 0.6 | BI95: =SUM($BH$3:BH95) -> 55.8 | BJ95: 10 | BK95: 0.2 | BL95: 2 | BM95: =SUM($BL$3:BL95) -> 186 | BP95: 石御霏 | BQ95: 10001
S96: 103 | T96: =VLOOKUP(V96,#REF!,3,TRUE) ->  | U96: 94 | V96: 103 | W96: 0.8 | X96: 0.2 | Y96: 102.5 | Z96: 3 | AA96: 10005 | AB96: 兰卿 | AC96: 10003 | AD96: 叶辽 | AE96: 10009 | AF96: 祁菲 | AK96: 94 | AL96: 0 | AM96: =SUM($AL$3:AL96) -> 89 | AN96: 85 | AO96: 399500 | AP96: =SUM($AO$3:AO96) -> 22356500 | AQ96: 20400 | AR96: =SUM($AQ$3:AQ96) -> 1147300 | AS96: 51 | AT96: =SUM($AS$3:AS96) -> 3537 | AU96: 170 | AV96: =SUM($AU$3:AU96) -> 11790 | BA96: 94 | BB96: 9800 | BC96: =SUM($BB$3:BB96) -> 484100 | BD96: 495 | BE96: =SUM($BD$3:BD96) -> 24675 | BF96: 5 | BG96: 0.12 | BH96: 0.6 | BI96: =SUM($BH$3:BH96) -> 56.4 | BJ96: 10 | BK96: 0.2 | BL96: 2 | BM96: =SUM($BL$3:BL96) -> 188 | BP96: 端木葵 | BQ96: 10005 | BR96: 夏侯鸿天 | BS96: 10003 | BT96: 祁菲 | BU96: 10009
S97: 105 | T97: =VLOOKUP(V97,#REF!,3,TRUE) ->  | U97: 95 | V97: 105 | W97: 1 | X97: 0 | Y97: 104.5 | Z97: 3 | AA97: 10015 | AB97: 凝儿 | AC97: 10012 | AD97: 慕容子期 | AE97: 10013 | AF97: 白梦凡 | AK97: 95 | AL97: 1 | AM97: =SUM($AL$3:AL97) -> 90 | AN97: 90 | AO97: 445500 | AP97: =SUM($AO$3:AO97) -> 22802000 | AQ97: 22725 | AR97: =SUM($AQ$3:AQ97) -> 1170025 | AS97: 54 | AT97: =SUM($AS$3:AS97) -> 3591 | AU97: 180 | AV97: =SUM($AU$3:AU97) -> 11970 | BA97: 95 | BB97: 9900 | BC97: =SUM($BB$3:BB97) -> 494000 | BD97: 500 | BE97: =SUM($BD$3:BD97) -> 25175 | BF97: 5 | BG97: 0.12 | BH97: 0.6 | BI97: =SUM($BH$3:BH97) -> 57 | BJ97: 10 | BK97: 0.2 | BL97: 2 | BM97: =SUM($BL$3:BL97) -> 190 | BP97: 端木葵 | BQ97: 10005 | BR97: 颜祈佳 | BS97: 10010 | BT97: 应茹 | BU97: 10004
S98: 107 | T98: =VLOOKUP(V98,#REF!,3,TRUE) ->  | U98: 96 | V98: 107 | W98: 0.8 | X98: 0.2 | Y98: 106.5 | Z98: 2 | AA98: 10009 | AB98: 祁菲 | AC98: 10015 | AD98: 凝儿 | AK98: 96 | AL98: 0 | AM98: =SUM($AL$3:AL98) -> 90 | AN98: 90 | AO98: 445500 | AP98: =SUM($AO$3:AO98) -> 23247500 | AQ98: 22725 | AR98: =SUM($AQ$3:AQ98) -> 1192750 | AS98: 54 | AT98: =SUM($AS$3:AS98) -> 3645 | AU98: 180 | AV98: =SUM($AU$3:AU98) -> 12150 | BA98: 96 | BB98: 10000 | BC98: =SUM($BB$3:BB98) -> 504000 | BD98: 505 | BE98: =SUM($BD$3:BD98) -> 25680 | BF98: 5 | BG98: 0.12 | BH98: 0.6 | BI98: =SUM($BH$3:BH98) -> 57.6 | BJ98: 10 | BK98: 0.2 | BL98: 2 | BM98: =SUM($BL$3:BL98) -> 192 | BP98: 祁菲 | BQ98: 10009 | BR98: 云 | BS98: 10015
S99: 109 | T99: =VLOOKUP(V99,#REF!,3,TRUE) ->  | U99: 97 | V99: 109 | W99: 0.8 | X99: 0.2 | Y99: 108.5 | Z99: 3 | AA99: 10017 | AB99: 解幽 | AC99: 10003 | AD99: 叶辽 | AE99: 10010 | AF99: 颜祈佳 | AK99: 97 | AL99: =COUNTIFS(V:V,AK99) -> 1 | AM99: =SUM($AL$3:AL99) -> 91 | AN99: =_xlfn.FLOOR.MATH(AM99,5) -> 90 | AO99: 445500 | AP99: =SUM($AO$3:AO99) -> 23693000 | AQ99: 22725 | AR99: =SUM($AQ$3:AQ99) -> 1215475 | AS99: 54 | AT99: =SUM($AS$3:AS99) -> 3699 | AU99: 180 | AV99: =SUM($AU$3:AU99) -> 12330 | BA99: 97 | BB99: 10100 | BC99: =SUM($BB$3:BB99) -> 514100 | BD99: 510 | BE99: =SUM($BD$3:BD99) -> 26190 | BF99: 5 | BG99: 0.12 | BH99: 0.6 | BI99: =SUM($BH$3:BH99) -> 58.2 | BJ99: 10 | BK99: 0.2 | BL99: 2 | BM99: =SUM($BL$3:BL99) -> 194 | BP99: 影蓟 | BQ99: 10017 | BR99: 夏侯鸿天 | BS99: 10003 | BT99: 颜祈佳 | BU99: 10010
S100: 111 | T100: =VLOOKUP(V100,#REF!,3,TRUE) ->  | U100: 98 | V100: 111 | W100: 0.8 | X100: 0.2 | Y100: 110.5 | Z100: 1 | AA100: 10016 | AB100: =VLOOKUP(AA100,$AG:$AH,2,FALSE) -> 枫元正 | AD100: =VLOOKUP(AC100,$AG:$AH,2,FALSE) ->  | AF100: =VLOOKUP(AE100,$AG:$AH,2,FALSE) ->  | AK100: 98 | AL100: 0 | AM100: =SUM($AL$3:AL100) -> 91 | AN100: 90 | AO100: 445500 | AP100: =SUM($AO$3:AO100) -> 24138500 | AQ100: 22725 | AR100: =SUM($AQ$3:AQ100) -> 1238200 | AS100: 54 | AT100: =SUM($AS$3:AS100) -> 3753 | AU100: 180 | AV100: =SUM($AU$3:AU100) -> 12510 | BA100: 98 | BB100: 10200 | BC100: =SUM($BB$3:BB100) -> 524300 | BD100: 515 | BE100: =SUM($BD$3:BD100) -> 26705 | BF100: 5 | BG100: 0.12 | BH100: 0.6 | BI100: =SUM($BH$3:BH100) -> 58.8 | BJ100: 10 | BK100: 0.2 | BL100: 2 | BM100: =SUM($BL$3:BL100) -> 196 | BP100: 岑以航 | BQ100: 10016
S101: 113 | T101: =VLOOKUP(V101,#REF!,3,TRUE) ->  | U101: 99 | V101: 113 | W101: 0.8 | X101: 0.2 | Y101: 112.5 | Z101: 2 | AA101: 10014 | AB101: 颜无诡 | AC101: 10022 | AD101: 云灵 | AF101: =VLOOKUP(AE101,$AG:$AH,2,FALSE) ->  | AK101: 99 | AL101: 1 | AM101: =SUM($AL$3:AL101) -> 92 | AN101: 90 | AO101: 445500 | AP101: =SUM($AO$3:AO101) -> 24584000 | AQ101: 22725 | AR101: =SUM($AQ$3:AQ101) -> 1260925 | AS101: 54 | AT101: =SUM($AS$3:AS101) -> 3807 | AU101: 180 | AV101: =SUM($AU$3:AU101) -> 12690 | BA101: 99 | BB101: 10300 | BC101: =SUM($BB$3:BB101) -> 534600 | BD101: 520 | BE101: =SUM($BD$3:BD101) -> 27225 | BF101: 5 | BG101: 0.12 | BH101: 0.6 | BI101: =SUM($BH$3:BH101) -> 59.4 | BJ101: 10 | BK101: 0.2 | BL101: 2 | BM101: =SUM($BL$3:BL101) -> 198 | BP101: 耿陶 | BQ101: 10014 | BR101: 颜无诡 | BS101: 10022
S102: 115 | T102: =VLOOKUP(V102,#REF!,3,TRUE) ->  | U102: 100 | V102: 115 | W102: 1 | X102: 0 | Y102: 114.5 | Z102: 3 | AA102: 10004 | AB102: 孔谦 | AC102: 10006 | AD102: 朱贺 | AE102: 10012 | AF102: =VLOOKUP(AE102,$AG:$AH,2,FALSE) -> 慕容子期 | AK102: 100 | AL102: 0 | AM102: =SUM($AL$3:AL102) -> 92 | AN102: 90 | AO102: 445500 | AP102: =SUM($AO$3:AO102) -> 25029500 | AQ102: 22725 | AR102: =SUM($AQ$3:AQ102) -> 1283650 | AS102: 54 | AT102: =SUM($AS$3:AS102) -> 3861 | AU102: 180 | AV102: =SUM($AU$3:AU102) -> 12870 | BA102: 100 | BB102: 10400 | BC102: =SUM($BB$3:BB102) -> 545000 | BD102: 525 | BE102: =SUM($BD$3:BD102) -> 27750 | BF102: 5 | BG102: 0.12 | BH102: 0.6 | BI102: =SUM($BH$3:BH102) -> 60 | BJ102: 10 | BK102: 0.2 | BL102: 2 | BM102: =SUM($BL$3:BL102) -> 200 | BP102: 影蓟 | BQ102: 10017 | BR102: 影蓟 | BS102: 10017 | BT102: 耿陶 | BU102: 10014
S103: 117 | T103: =VLOOKUP(V103,#REF!,3,TRUE) ->  | U103: 101 | V103: 117 | W103: 0.9 | X103: 0.1 | Y103: 116.5 | Z103: 1 | AA103: 10001 | AB103: 夏侯鸿天 | AF103: =VLOOKUP(AE103,$AG:$AH,2,FALSE) ->  | AK103: 101 | AL103: 1 | AM103: =SUM($AL$3:AL103) -> 93 | AN103: 90 | AO103: 445500 | AP103: =SUM($AO$3:AO103) -> 25475000 | AQ103: 22725 | AR103: =SUM($AQ$3:AQ103) -> 1306375 | AS103: 54 | AT103: =SUM($AS$3:AS103) -> 3915 | AU103: 180 | AV103: =SUM($AU$3:AU103) -> 13050
S104: 119 | T104: =VLOOKUP(V104,#REF!,3,TRUE) ->  | U104: 102 | V104: 119 | W104: 0.9 | X104: 0.1 | Y104: 118.5 | Z104: 2 | AA104: 10002 | AB104: 石御霏 | AC104: 10008 | AD104: 颜无雍 | AK104: 102 | AL104: 0 | AM104: =SUM($AL$3:AL104) -> 93 | AN104: 90 | AO104: 445500 | AP104: =SUM($AO$3:AO104) -> 25920500 | AQ104: 22725 | AR104: =SUM($AQ$3:AQ104) -> 1329100 | AS104: 54 | AT104: =SUM($AS$3:AS104) -> 3969 | AU104: 180 | AV104: =SUM($AU$3:AU104) -> 13230
S105: 121 | T105: =VLOOKUP(V105,#REF!,3,TRUE) ->  | U105: 103 | V105: 121 | W105: 0.9 | X105: 0.1 | Y105: 120.5 | Z105: 3 | AA105: 10003 | AB105: 叶辽 | AC105: 10015 | AD105: 凝儿 | AE105: 10015 | AF105: 凝儿 | AK105: 103 | AL105: 1 | AM105: =SUM($AL$3:AL105) -> 94 | AN105: 90 | AO105: 445500 | AP105: =SUM($AO$3:AO105) -> 26366000 | AQ105: 22725 | AR105: =SUM($AQ$3:AQ105) -> 1351825 | AS105: 54 | AT105: =SUM($AS$3:AS105) -> 4023 | AU105: 180 | AV105: =SUM($AU$3:AU105) -> 13410
S106: 123 | T106: =VLOOKUP(V106,#REF!,3,TRUE) ->  | U106: 104 | V106: 123 | W106: 0.9 | X106: 0.1 | Y106: 122.5 | Z106: 2 | AA106: 10019 | AB106: 云 | AC106: 10021 | AD106: 清然 | AK106: 104 | AL106: 0 | AM106: =SUM($AL$3:AL106) -> 94 | AN106: 90 | AO106: 445500 | AP106: =SUM($AO$3:AO106) -> 26811500 | AQ106: 22725 | AR106: =SUM($AQ$3:AQ106) -> 1374550 | AS106: 54 | AT106: =SUM($AS$3:AS106) -> 4077 | AU106: 180 | AV106: =SUM($AU$3:AU106) -> 13590
S107: 125 | T107: =VLOOKUP(V107,#REF!,3,TRUE) ->  | U107: 105 | V107: 125 | W107: 1 | X107: 0 | Y107: 124.5 | Z107: 3 | AA107: 10002 | AB107: 石御霏 | AC107: 10008 | AD107: 颜无雍 | AE107: 10016 | AF107: 枫元正 | AK107: 105 | AL107: 1 | AM107: =SUM($AL$3:AL107) -> 95 | AN107: 95 | AO107: 494000 | AP107: =SUM($AO$3:AO107) -> 27305500 | AQ107: 25175 | AR107: =SUM($AQ$3:AQ107) -> 1399725 | AS107: 57 | AT107: =SUM($AS$3:AS107) -> 4134 | AU107: 190 | AV107: =SUM($AU$3:AU107) -> 13780
S108: 127 | T108: =VLOOKUP(V108,#REF!,3,TRUE) ->  | U108: 106 | V108: 127 | W108: 0.9 | X108: 0.1 | Y108: 126.5 | Z108: 1 | AA108: 10018 | AB108: =VLOOKUP(AA108,$AG:$AH,2,FALSE) -> 紫苏 | AK108: 106 | AL108: 0 | AM108: =SUM($AL$3:AL108) -> 95 | AN108: 95 | AO108: 494000 | AP108: =SUM($AO$3:AO108) -> 27799500 | AQ108: 25175 | AR108: =SUM($AQ$3:AQ108) -> 1424900 | AS108: 57 | AT108: =SUM($AS$3:AS108) -> 4191 | AU108: 190 | AV108: =SUM($AU$3:AU108) -> 13970
S109: 129 | T109: =VLOOKUP(V109,#REF!,3,TRUE) ->  | U109: 107 | V109: 129 | W109: 0.9 | X109: 0.1 | Y109: 128.5 | Z109: 2 | AA109: 10022 | AB109: =VLOOKUP(AA109,$AG:$AH,2,FALSE) -> 云灵 | AC109: 10023 | AD109: 荧荧 | AK109: 107 | AL109: 1 | AM109: =SUM($AL$3:AL109) -> 96 | AN109: 95 | AO109: 494000 | AP109: =SUM($AO$3:AO109) -> 28293500 | AQ109: 25175 | AR109: =SUM($AQ$3:AQ109) -> 1450075 | AS109: 57 | AT109: =SUM($AS$3:AS109) -> 4248 | AU109: 190 | AV109: =SUM($AU$3:AU109) -> 14160
S110: 131 | T110: =VLOOKUP(V110,#REF!,3,TRUE) ->  | U110: 108 | V110: 131 | W110: 0.9 | X110: 0.1 | Y110: 130.5 | Z110: 3 | AA110: 10011 | AB110: =VLOOKUP(AA110,$AG:$AH,2,FALSE) -> 尹正霄 | AC110: 10017 | AD110: 解幽 | AE110: 10009 | AF110: 祁菲 | AK110: 108 | AL110: 0 | AM110: =SUM($AL$3:AL110) -> 96 | AN110: 95 | AO110: 494000 | AP110: =SUM($AO$3:AO110) -> 28787500 | AQ110: 25175 | AR110: =SUM($AQ$3:AQ110) -> 1475250 | AS110: 57 | AT110: =SUM($AS$3:AS110) -> 4305 | AU110: 190 | AV110: =SUM($AU$3:AU110) -> 14350
S111: 133 | T111: =VLOOKUP(V111,#REF!,3,TRUE) ->  | U111: 109 | V111: 133 | W111: 0.9 | X111: 0.1 | Y111: 132.5 | Z111: 2 | AA111: 10002 | AB111: =VLOOKUP(AA111,$AG:$AH,2,FALSE) -> 石御霏 | AC111: 10005 | AD111: 兰卿 | AK111: 109 | AL111: 1 | AM111: =SUM($AL$3:AL111) -> 97 | AN111: 95 | AO111: 494000 | AP111: =SUM($AO$3:AO111) -> 29281500 | AQ111: 25175 | AR111: =SUM($AQ$3:AQ111) -> 1500425 | AS111: 57 | AT111: =SUM($AS$3:AS111) -> 4362 | AU111: 190 | AV111: =SUM($AU$3:AU111) -> 14540
S112: 135 | T112: =VLOOKUP(V112,#REF!,3,TRUE) ->  | U112: 110 | V112: 135 | W112: 1 | X112: 0 | Y112: 134.5 | Z112: 3 | AA112: 10009 | AB112: =VLOOKUP(AA112,$AG:$AH,2,FALSE) -> 祁菲 | AC112: 10004 | AD112: =VLOOKUP(AC112,$AG:$AH,2,FALSE) -> 孔谦 | AE112: 10012 | AF112: 慕容子期 | AK112: 110 | AL112: 0 | AM112: =SUM($AL$3:AL112) -> 97 | AN112: 95 | AO112: 494000 | AP112: =SUM($AO$3:AO112) -> 29775500 | AQ112: 25175 | AR112: =SUM($AQ$3:AQ112) -> 1525600 | AS112: 57 | AT112: =SUM($AS$3:AS112) -> 4419 | AU112: 190 | AV112: =SUM($AU$3:AU112) -> 14730
S113: 137 | T113: =VLOOKUP(V113,#REF!,3,TRUE) ->  | U113: 111 | V113: 137 | W113: 0.9 | X113: 0.1 | Y113: 136.5 | Z113: 1 | AA113: 10006 | AB113: =VLOOKUP(AA113,$AG:$AH,2,FALSE) -> 朱贺 | AK113: 111 | AL113: 1 | AM113: =SUM($AL$3:AL113) -> 98 | AN113: 95 | AO113: 494000 | AP113: =SUM($AO$3:AO113) -> 30269500 | AQ113: 25175 | AR113: =SUM($AQ$3:AQ113) -> 1550775 | AS113: 57 | AT113: =SUM($AS$3:AS113) -> 4476 | AU113: 190 | AV113: =SUM($AU$3:AU113) -> 14920
S114: 139 | T114: =VLOOKUP(V114,#REF!,3,TRUE) ->  | U114: 112 | V114: 139 | W114: 0.9 | X114: 0.1 | Y114: 138.5 | Z114: 2 | AA114: 10020 | AB114: =VLOOKUP(AA114,$AG:$AH,2,FALSE) -> 司空染 | AC114: 10018 | AD114: 紫苏 | AK114: 112 | AL114: 0 | AM114: =SUM($AL$3:AL114) -> 98 | AN114: 95 | AO114: 494000 | AP114: =SUM($AO$3:AO114) -> 30763500 | AQ114: 25175 | AR114: =SUM($AQ$3:AQ114) -> 1575950 | AS114: 57 | AT114: =SUM($AS$3:AS114) -> 4533 | AU114: 190 | AV114: =SUM($AU$3:AU114) -> 15110
S115: 141 | T115: =VLOOKUP(V115,#REF!,3,TRUE) ->  | U115: 113 | V115: 141 | W115: 0.9 | X115: 0.1 | Y115: 140.5 | Z115: 3 | AA115: 10008 | AB115: =VLOOKUP(AA115,$AG:$AH,2,FALSE) -> 颜无雍 | AC115: 10018 | AD115: 紫苏 | AE115: 10006 | AF115: 朱贺 | AK115: 113 | AL115: 1 | AM115: =SUM($AL$3:AL115) -> 99 | AN115: 95 | AO115: 494000 | AP115: =SUM($AO$3:AO115) -> 31257500 | AQ115: 25175 | AR115: =SUM($AQ$3:AQ115) -> 1601125 | AS115: 57 | AT115: =SUM($AS$3:AS115) -> 4590 | AU115: 190 | AV115: =SUM($AU$3:AU115) -> 15300
S116: 143 | T116: =VLOOKUP(V116,#REF!,3,TRUE) ->  | U116: 114 | V116: 143 | W116: 0.9 | X116: 0.1 | Y116: 142.5 | Z116: 2 | AA116: 10012 | AB116: =VLOOKUP(AA116,$AG:$AH,2,FALSE) -> 慕容子期 | AC116: 10020 | AD116: 司空染 | AK116: 114 | AL116: 0 | AM116: =SUM($AL$3:AL116) -> 99 | AN116: 95 | AO116: 494000 | AP116: =SUM($AO$3:AO116) -> 31751500 | AQ116: 25175 | AR116: =SUM($AQ$3:AQ116) -> 1626300 | AS116: 57 | AT116: =SUM($AS$3:AS116) -> 4647 | AU116: 190 | AV116: =SUM($AU$3:AU116) -> 15490
S117: 145 | T117: =VLOOKUP(V117,#REF!,3,TRUE) ->  | U117: 115 | V117: 145 | W117: 1 | X117: 0 | Y117: 144.5 | Z117: 3 | AA117: 10011 | AB117: =VLOOKUP(AA117,$AG:$AH,2,FALSE) -> 尹正霄 | AC117: 10012 | AD117: =VLOOKUP(AC117,$AG:$AH,2,FALSE) -> 慕容子期 | AE117: 10012 | AF117: 慕容子期 | AK117: 115 | AL117: 1 | AM117: =SUM($AL$3:AL117) -> 100 | AN117: 100 | AO117: 545000 | AP117: =SUM($AO$3:AO117) -> 32296500 | AQ117: 27750 | AR117: =SUM($AQ$3:AQ117) -> 1654050 | AS117: 60 | AT117: =SUM($AS$3:AS117) -> 4707 | AU117: 200 | AV117: =SUM($AU$3:AU117) -> 15690
S118: 147 | T118: =VLOOKUP(V118,#REF!,3,TRUE) ->  | U118: 116 | V118: 147 | W118: 0.9 | X118: 0.1 | Y118: 146.5 | Z118: 1 | AA118: 10005 | AB118: =VLOOKUP(AA118,$AG:$AH,2,FALSE) -> 兰卿 | AK118: 116 | AL118: 0 | AM118: =SUM($AL$3:AL118) -> 100 | AN118: 100 | AO118: 545000 | AP118: =SUM($AO$3:AO118) -> 32841500 | AQ118: 27750 | AR118: =SUM($AQ$3:AQ118) -> 1681800 | AS118: 60 | AT118: =SUM($AS$3:AS118) -> 4767 | AU118: 200 | AV118: =SUM($AU$3:AU118) -> 15890
S119: 149 | T119: =VLOOKUP(V119,#REF!,3,TRUE) ->  | U119: 117 | V119: 149 | W119: 0.9 | X119: 0.1 | Y119: 148.5 | Z119: 2 | AA119: 10019 | AB119: =VLOOKUP(AA119,$AG:$AH,2,FALSE) -> 云 | AC119: 10013 | AD119: 白梦凡 | AK119: 117 | AL119: 1 | AM119: =SUM($AL$3:AL119) -> 101 | AN119: 100 | AO119: 545000 | AP119: =SUM($AO$3:AO119) -> 33386500 | AQ119: 27750 | AR119: =SUM($AQ$3:AQ119) -> 1709550 | AS119: 60 | AT119: =SUM($AS$3:AS119) -> 4827 | AU119: 200 | AV119: =SUM($AU$3:AU119) -> 16090
S120: 151 | T120: =VLOOKUP(V120,#REF!,3,TRUE) ->  | U120: 118 | V120: 151 | W120: 0.9 | X120: 0.1 | Y120: 150.5 | Z120: 3 | AA120: 10010 | AB120: =VLOOKUP(AA120,$AG:$AH,2,FALSE) -> 颜祈佳 | AC120: 10015 | AD120: 凝儿 | AE120: 10015 | AF120: 凝儿 | AK120: 118 | AL120: 0 | AM120: =SUM($AL$3:AL120) -> 101 | AN120: 100 | AO120: 545000 | AP120: =SUM($AO$3:AO120) -> 33931500 | AQ120: 27750 | AR120: =SUM($AQ$3:AQ120) -> 1737300 | AS120: 60 | AT120: =SUM($AS$3:AS120) -> 4887 | AU120: 200 | AV120: =SUM($AU$3:AU120) -> 16290
S121: 153 | T121: =VLOOKUP(V121,#REF!,3,TRUE) ->  | U121: 119 | V121: 153 | W121: 0.9 | X121: 0.1 | Y121: 152.5 | Z121: 2 | AA121: 10007 | AB121: =VLOOKUP(AA121,$AG:$AH,2,FALSE) -> 应茹 | AC121: 10001 | AD121: 夏侯鸿天 | AK121: 119 | AL121: 1 | AM121: =SUM($AL$3:AL121) -> 102 | AN121: 100 | AO121: 545000 | AP121: =SUM($AO$3:AO121) -> 34476500 | AQ121: 27750 | AR121: =SUM($AQ$3:AQ121) -> 1765050 | AS121: 60 | AT121: =SUM($AS$3:AS121) -> 4947 | AU121: 200 | AV121: =SUM($AU$3:AU121) -> 16490
S122: 155 | T122: =VLOOKUP(V122,#REF!,3,TRUE) ->  | U122: 120 | V122: 155 | W122: 1 | X122: 0 | Y122: 154.5 | Z122: 3 | AA122: 10004 | AB122: =VLOOKUP(AA122,$AG:$AH,2,FALSE) -> 孔谦 | AC122: 10006 | AD122: =VLOOKUP(AC122,$AG:$AH,2,FALSE) -> 朱贺 | AE122: 10012 | AF122: 慕容子期 | AK122: 120 | AL122: 0 | AM122: =SUM($AL$3:AL122) -> 102 | AN122: 100 | AO122: 545000 | AP122: =SUM($AO$3:AO122) -> 35021500 | AQ122: 27750 | AR122: =SUM($AQ$3:AQ122) -> 1792800 | AS122: 60 | AT122: =SUM($AS$3:AS122) -> 5007 | AU122: 200 | AV122: =SUM($AU$3:AU122) -> 16690
S123: 157 | T123: =VLOOKUP(V123,#REF!,3,TRUE) ->  | U123: 121 | V123: 157 | W123: 0.9 | X123: 0.1 | Y123: 156.5 | Z123: 1 | AA123: 10023 | AB123: =VLOOKUP(AA123,$AG:$AH,2,FALSE) -> 荧荧 | AK123: 121 | AL123: 1 | AM123: =SUM($AL$3:AL123) -> 103 | AN123: 100 | AO123: 545000 | AP123: =SUM($AO$3:AO123) -> 35566500 | AQ123: 27750 | AR123: =SUM($AQ$3:AQ123) -> 1820550 | AS123: 60 | AT123: =SUM($AS$3:AS123) -> 5067 | AU123: 200 | AV123: =SUM($AU$3:AU123) -> 16890
S124: 159 | T124: =VLOOKUP(V124,#REF!,3,TRUE) ->  | U124: 122 | V124: 159 | W124: 0.9 | X124: 0.1 | Y124: 158.5 | Z124: 2 | AA124: 10018 | AB124: =VLOOKUP(AA124,$AG:$AH,2,FALSE) -> 紫苏 | AC124: 10001 | AD124: 夏侯鸿天 | AK124: 122 | AL124: 0 | AM124: =SUM($AL$3:AL124) -> 103 | AN124: 100 | AO124: 545000 | AP124: =SUM($AO$3:AO124) -> 36111500 | AQ124: 27750 | AR124: =SUM($AQ$3:AQ124) -> 1848300 | AS124: 60 | AT124: =SUM($AS$3:AS124) -> 5127 | AU124: 200 | AV124: =SUM($AU$3:AU124) -> 17090
S125: 161 | T125: =VLOOKUP(V125,#REF!,3,TRUE) ->  | U125: 123 | V125: 161 | W125: 0.9 | X125: 0.1 | Y125: 160.5 | Z125: 3 | AA125: 10002 | AB125: =VLOOKUP(AA125,$AG:$AH,2,FALSE) -> 石御霏 | AC125: 10005 | AD125: 兰卿 | AE125: 10018 | AF125: 紫苏 | AK125: 123 | AL125: 1 | AM125: =SUM($AL$3:AL125) -> 104 | AN125: 100 | AO125: 545000 | AP125: =SUM($AO$3:AO125) -> 36656500 | AQ125: 27750 | AR125: =SUM($AQ$3:AQ125) -> 1876050 | AS125: 60 | AT125: =SUM($AS$3:AS125) -> 5187 | AU125: 200 | AV125: =SUM($AU$3:AU125) -> 17290
S126: 163 | T126: =VLOOKUP(V126,#REF!,3,TRUE) ->  | U126: 124 | V126: 163 | W126: 0.9 | X126: 0.1 | Y126: 162.5 | Z126: 2 | AA126: 10017 | AB126: =VLOOKUP(AA126,$AG:$AH,2,FALSE) -> 解幽 | AC126: 10009 | AD126: 祁菲 | AK126: 124 | AL126: 0 | AM126: =SUM($AL$3:AL126) -> 104 | AN126: 100 | AO126: 545000 | AP126: =SUM($AO$3:AO126) -> 37201500 | AQ126: 27750 | AR126: =SUM($AQ$3:AQ126) -> 1903800 | AS126: 60 | AT126: =SUM($AS$3:AS126) -> 5247 | AU126: 200 | AV126: =SUM($AU$3:AU126) -> 17490
S127: 165 | T127: =VLOOKUP(V127,#REF!,3,TRUE) ->  | U127: 125 | V127: 165 | W127: 1 | X127: 0 | Y127: 164.5 | Z127: 3 | AA127: 10002 | AB127: =VLOOKUP(AA127,$AG:$AH,2,FALSE) -> 石御霏 | AC127: 10008 | AD127: =VLOOKUP(AC127,$AG:$AH,2,FALSE) -> 颜无雍 | AE127: 10016 | AF127: 枫元正 | AK127: 125 | AL127: 1 | AM127: =SUM($AL$3:AL127) -> 105 | AN127: 105 | AP127: =SUM($AO$3:AO127) ->  | AR127: =SUM($AQ$3:AQ127) ->  | AT127: =SUM($AS$3:AS127) ->  | AU127: 200 | AV127: =SUM($AU$3:AU127) -> 17690
S128: 167 | T128: =VLOOKUP(V128,#REF!,3,TRUE) ->  | U128: 126 | V128: 167 | W128: 0.9 | X128: 0.1 | Y128: 166.5 | Z128: 1 | AA128: 10022 | AB128: 云灵 | AD128: 凝儿 | AK128: 126 | AL128: 0 | AM128: =SUM($AL$3:AL128) -> 105 | AN128: 105 | AP128: =SUM($AO$3:AO128) ->  | AR128: =SUM($AQ$3:AQ128) ->  | AT128: =SUM($AS$3:AS128) ->  | AU128: 200 | AV128: =SUM($AU$3:AU128) -> 17890
S129: 169 | T129: =VLOOKUP(V129,#REF!,3,TRUE) ->  | U129: 127 | V129: 169 | W129: 0.9 | X129: 0.1 | Y129: 168.5 | Z129: 2 | AA129: 10009 | AB129: 祁菲 | AC129: 10010 | AD129: 颜祈佳 | AK129: 127 | AL129: 1 | AM129: =SUM($AL$3:AL129) -> 106 | AN129: 105 | AP129: =SUM($AO$3:AO129) ->  | AR129: =SUM($AQ$3:AQ129) ->  | AT129: =SUM($AS$3:AS129) ->  | AU129: 200 | AV129: =SUM($AU$3:AU129) -> 18090
S130: 171 | T130: =VLOOKUP(V130,#REF!,3,TRUE) ->  | U130: 128 | V130: 171 | W130: 0.9 | X130: 0.1 | Y130: 170.5 | Z130: 3 | AA130: 10018 | AB130: 紫苏 | AC130: 10019 | AD130: 云 | AE130: 10006 | AF130: 朱贺 | AK130: 128 | AL130: 0 | AM130: =SUM($AL$3:AL130) -> 106 | AN130: 105 | AP130: =SUM($AO$3:AO130) ->  | AR130: =SUM($AQ$3:AQ130) ->  | AT130: =SUM($AS$3:AS130) ->  | AU130: 200 | AV130: =SUM($AU$3:AU130) -> 18290
S131: 173 | T131: =VLOOKUP(V131,#REF!,3,TRUE) ->  | U131: 129 | V131: 173 | W131: 0.9 | X131: 0.1 | Y131: 172.5 | Z131: 2 | AA131: 10022 | AB131: 云灵 | AC131: 10014 | AD131: 颜无诡 | AK131: 129 | AL131: =COUNTIFS(V:V,AK131) -> 1 | AM131: =SUM($AL$3:AL131) -> 107 | AN131: =_xlfn.FLOOR.MATH(AM131,5) -> 105 | AP131: =SUM($AO$3:AO131) ->  | AR131: =SUM($AQ$3:AQ131) ->  | AT131: =SUM($AS$3:AS131) ->  | AU131: 200 | AV131: =SUM($AU$3:AU131) -> 18490
S132: 175 | T132: =VLOOKUP(V132,#REF!,3,TRUE) ->  | U132: 130 | V132: 175 | W132: 1 | X132: 0 | Y132: 174.5 | Z132: 2 | AA132: 10003 | AB132: =VLOOKUP(AA132,$AG:$AH,2,FALSE) -> 叶辽 | AC132: 10009 | AD132: =VLOOKUP(AC132,$AG:$AH,2,FALSE) -> 祁菲 | AK132: 130 | AL132: 0 | AM132: =SUM($AL$3:AL132) -> 107 | AN132: 105 | AO132: =VLOOKUP(AN132,$BA:$BC,3,0) ->  | AP132: =SUM($AO$3:AO132) ->  | AQ132: =VLOOKUP(AN132,$BA:$BE,5,0) ->  | AR132: =SUM($AQ$3:AQ132) ->  | AS132: =VLOOKUP(AN132,$BA:$BI,9,0) ->  | AT132: =SUM($AS$3:AS132) ->  | AU132: =VLOOKUP(AN132,$BA:$BM,13) -> 200 | AV132: =SUM($AU$3:AU132) -> 18690
S133: 177 | T133: =VLOOKUP(V133,#REF!,3,TRUE) ->  | U133: 131 | V133: 177 | W133: 0.9 | X133: 0.1 | Y133: 176.5 | Z133: 1 | AA133: 10014 | AB133: 颜无诡 | AK133: 131 | AL133: 1 | AM133: =SUM($AL$3:AL133) -> 108 | AN133: 105 | AP133: =SUM($AO$3:AO133) ->  | AR133: =SUM($AQ$3:AQ133) ->  | AT133: =SUM($AS$3:AS133) ->  | AU133: 200 | AV133: =SUM($AU$3:AU133) -> 18890
S134: 179 | T134: =VLOOKUP(V134,#REF!,3,TRUE) ->  | U134: 132 | V134: 179 | W134: 0.9 | X134: 0.1 | Y134: 178.5 | Z134: 2 | AA134: 10020 | AB134: 司空染 | AC134: 10016 | AD134: 枫元正 | AK134: 132 | AL134: 0 | AM134: =SUM($AL$3:AL134) -> 108 | AN134: 105 | AP134: =SUM($AO$3:AO134) ->  | AR134: =SUM($AQ$3:AQ134) ->  | AT134: =SUM($AS$3:AS134) ->  | AU134: 200 | AV134: =SUM($AU$3:AU134) -> 19090
O135: 10001 | P135: 夏侯鸿天 | Q135: 10001 | R135: 嘲讽+双抗+眩晕 | S135: 181 | T135: =VLOOKUP(V135,#REF!,3,TRUE) ->  | U135: 133 | V135: 181 | W135: 0.9 | X135: 0.1 | Y135: 180.5 | Z135: 3 | AA135: 10015 | AB135: 凝儿 | AC135: 10010 | AD135: 颜祈佳 | AE135: 10010 | AF135: =VLOOKUP(AE135,$AG:$AH,2,FALSE) -> 颜祈佳 | AK135: 133 | AL135: 1 | AM135: =SUM($AL$3:AL135) -> 109 | AN135: 105 | AP135: =SUM($AO$3:AO135) ->  | AR135: =SUM($AQ$3:AQ135) ->  | AT135: =SUM($AS$3:AS135) ->  | AU135: 200 | AV135: =SUM($AU$3:AU135) -> 19290
O136: 10002 | P136: 石御霏 | Q136: 10002 | R136: 嘲讽+攻击+伤害吸收盾 | S136: 183 | T136: =VLOOKUP(V136,#REF!,3,TRUE) ->  | U136: 134 | V136: 183 | W136: 0.9 | X136: 0.1 | Y136: 182.5 | Z136: 2 | AA136: 10006 | AB136: 朱贺 | AC136: 10017 | AD136: 解幽 | AK136: 134 | AL136: 0 | AM136: =SUM($AL$3:AL136) -> 109 | AN136: 105 | AP136: =SUM($AO$3:AO136) ->  | AR136: =SUM($AQ$3:AQ136) ->  | AT136: =SUM($AS$3:AS136) ->  | AU136: 200 | AV136: =SUM($AU$3:AU136) -> 19490
O137: 10003 | P137: 叶辽 | Q137: 10003 | R137: 伤害转化生命+嘲讽+削弱魔抗 | S137: 185 | T137: =VLOOKUP(V137,#REF!,3,TRUE) ->  | U137: 135 | V137: 185 | W137: 1 | X137: 0 | Y137: 184.5 | Z137: 3 | AA137: 10004 | AB137: 孔谦 | AC137: 10011 | AD137: 尹正霄 | AE137: 10012 | AF137: 慕容子期 | AK137: 135 | AL137: 1 | AM137: =SUM($AL$3:AL137) -> 110 | AN137: 110 | AP137: =SUM($AO$3:AO137) ->  | AR137: =SUM($AQ$3:AQ137) ->  | AT137: =SUM($AS$3:AS137) ->  | AU137: 200 | AV137: =SUM($AU$3:AU137) -> 19690
O138: 10004 | P138: 孔谦 | Q138: 10004 | R138: 单体治疗+全体治疗 | S138: 187 | T138: =VLOOKUP(V138,#REF!,3,TRUE) ->  | U138: 136 | V138: 187 | W138: 0.9 | X138: 0.1 | Y138: 186.5 | Z138: 1 | AA138: 10013 | AB138: =VLOOKUP(AA138,$AG:$AH,2,FALSE) -> 白梦凡 | AK138: 136 | AL138: 0 | AM138: =SUM($AL$3:AL138) -> 110 | AN138: 110 | AP138: =SUM($AO$3:AO138) ->  | AR138: =SUM($AQ$3:AQ138) ->  | AT138: =SUM($AS$3:AS138) ->  | AU138: 200 | AV138: =SUM($AU$3:AU138) -> 19890
O139: 10005 | P139: 兰卿 | Q139: 10005 | R139: 自身治疗+提攻+全体治疗 | S139: 189 | T139: =VLOOKUP(V139,#REF!,3,TRUE) ->  | U139: 137 | V139: 189 | W139: 0.9 | X139: 0.1 | Y139: 188.5 | Z139: 2 | AA139: 10019 | AB139: =VLOOKUP(AA139,$AG:$AH,2,FALSE) -> 云 | AC139: 10023 | AD139: 荧荧 | AK139: 137 | AL139: 1 | AM139: =SUM($AL$3:AL139) -> 111 | AN139: 110 | AP139: =SUM($AO$3:AO139) ->  | AR139: =SUM($AQ$3:AQ139) ->  | AT139: =SUM($AS$3:AS139) ->  | AU139: 200 | AV139: =SUM($AU$3:AU139) -> 20090
O140: 10006 | P140: 朱贺 | Q140: 10006 | R140: 提全体攻+降全体攻 | S140: 191 | T140: =VLOOKUP(V140,#REF!,3,TRUE) ->  | U140: 138 | V140: 191 | W140: 0.9 | X140: 0.1 | Y140: 190.5 | Z140: 1 | AA140: 10023 | AB140: =VLOOKUP(AA140,$AG:$AH,2,FALSE) -> 荧荧 | AK140: 138 | AL140: 0 | AM140: =SUM($AL$3:AL140) -> 111 | AN140: 110 | AP140: =SUM($AO$3:AO140) ->  | AR140: =SUM($AQ$3:AQ140) ->  | AT140: =SUM($AS$3:AS140) ->  | AU140: 200 | AV140: =SUM($AU$3:AU140) -> 20290
O141: 10007 | P141: 应茹 | Q141: 10007 | R141: 降单体防御+清CD | S141: 193 | T141: =VLOOKUP(V141,#REF!,3,TRUE) ->  | U141: 139 | V141: 193 | W141: 0.9 | X141: 0.1 | Y141: 192.5 | Z141: 2 | AA141: 10014 | AB141: =VLOOKUP(AA141,$AG:$AH,2,FALSE) -> 颜无诡 | AC141: 10008 | AD141: 颜无雍 | AK141: 139 | AL141: 1 | AM141: =SUM($AL$3:AL141) -> 112 | AN141: 110 | AP141: =SUM($AO$3:AO141) ->  | AR141: =SUM($AQ$3:AQ141) ->  | AT141: =SUM($AS$3:AS141) ->  | AU141: 200 | AV141: =SUM($AU$3:AU141) -> 20490
O142: 10008 | P142: 颜无雍 | Q142: 10008 | R142: 生花伤害+眩晕 | S142: 195 | T142: =VLOOKUP(V142,#REF!,3,TRUE) ->  | U142: 140 | V142: 195 | W142: 1 | X142: 0 | Y142: 194.5 | Z142: 3 | AA142: 10001 | AB142: =VLOOKUP(AA142,$AG:$AH,2,FALSE) -> 夏侯鸿天 | AC142: 10016 | AD142: =VLOOKUP(AC142,$AG:$AH,2,FALSE) -> 枫元正 | AE142: 10006 | AF142: 朱贺 | AK142: 140 | AL142: 0 | AM142: =SUM($AL$3:AL142) -> 112 | AN142: 110 | AP142: =SUM($AO$3:AO142) ->  | AR142: =SUM($AQ$3:AQ142) ->  | AT142: =SUM($AS$3:AS142) ->  | AU142: 200 | AV142: =SUM($AU$3:AU142) -> 20690
O143: 10009 | P143: 祁菲 | Q143: 10009 | R143: 燃烧+燃烧加伤+减伤盾 | S143: 197 | T143: =VLOOKUP(V143,#REF!,3,TRUE) ->  | U143: 141 | V143: 197 | W143: 0.9 | X143: 0.1 | Y143: 196.5 | Z143: 2 | AA143: 10006 | AB143: =VLOOKUP(AA143,$AG:$AH,2,FALSE) -> 朱贺 | AC143: 10008 | AD143: 颜无雍 | AK143: 141 | AL143: 1 | AM143: =SUM($AL$3:AL143) -> 113 | AN143: 110 | AP143: =SUM($AO$3:AO143) ->  | AR143: =SUM($AQ$3:AQ143) ->  | AT143: =SUM($AS$3:AS143) ->  | AU143: 200 | AV143: =SUM($AU$3:AU143) -> 20890
O144: 10010 | P144: 颜祈佳 | Q144: 10010 | R144: 武卫伤害+加CD | S144: 199 | T144: =VLOOKUP(V144,#REF!,3,TRUE) ->  | U144: 142 | V144: 199 | W144: 0.9 | X144: 0.1 | Y144: 198.5 | Z144: 3 | AA144: 10020 | AB144: =VLOOKUP(AA144,$AG:$AH,2,FALSE) -> 司空染 | AC144: 10018 | AD144: 紫苏 | AE144: 10018 | AF144: 紫苏 | AK144: 142 | AL144: 0 | AM144: =SUM($AL$3:AL144) -> 113 | AN144: 110 | AP144: =SUM($AO$3:AO144) ->  | AR144: =SUM($AQ$3:AQ144) ->  | AT144: =SUM($AS$3:AS144) ->  | AU144: 200 | AV144: =SUM($AU$3:AU144) -> 21090
O145: 10011 | P145: 尹正霄 | Q145: 10011 | R145: 中毒+中毒晕眩 | S145: 201 | T145: =VLOOKUP(V145,#REF!,3,TRUE) ->  | U145: 143 | V145: 201 | W145: 0.9 | X145: 0.1 | Y145: 200.5 | Z145: 1 | AA145: 10008 | AB145: =VLOOKUP(AA145,$AG:$AH,2,FALSE) -> 颜无雍 | AK145: 143 | AL145: 1 | AM145: =SUM($AL$3:AL145) -> 114 | AN145: 110 | AP145: =SUM($AO$3:AO145) ->  | AR145: =SUM($AQ$3:AQ145) ->  | AT145: =SUM($AS$3:AS145) ->  | AU145: 200 | AV145: =SUM($AU$3:AU145) -> 21290
O146: 10012 | P146: 慕容子期 | Q146: 10012 | R146: 中毒+禁疗 | S146: 203 | T146: =VLOOKUP(V146,#REF!,3,TRUE) ->  | U146: 144 | V146: 203 | W146: 0.9 | X146: 0.1 | Y146: 202.5 | Z146: 2 | AA146: 10012 | AB146: =VLOOKUP(AA146,$AG:$AH,2,FALSE) -> 慕容子期 | AC146: 10020 | AD146: 司空染 | AK146: 144 | AL146: 0 | AM146: =SUM($AL$3:AL146) -> 114 | AN146: 110 | AP146: =SUM($AO$3:AO146) ->  | AR146: =SUM($AQ$3:AQ146) ->  | AT146: =SUM($AS$3:AS146) ->  | AU146: 200 | AV146: =SUM($AU$3:AU146) -> 21490
O147: 10013 | P147: 白梦凡 | Q147: 10013 | R147: 暴击+暴伤+追加伤害 | S147: 205 | T147: =VLOOKUP(V147,#REF!,3,TRUE) ->  | U147: 145 | V147: 205 | W147: 1 | X147: 0 | Y147: 204.5 | Z147: 2 | AA147: 10005 | AB147: 兰卿 | AC147: 10006 | AD147: =VLOOKUP(AC147,$AG:$AH,2,FALSE) -> 朱贺 | AK147: 145 | AL147: 1 | AM147: =SUM($AL$3:AL147) -> 115 | AN147: 115 | AP147: =SUM($AO$3:AO147) ->  | AR147: =SUM($AQ$3:AQ147) ->  | AT147: =SUM($AS$3:AS147) ->  | AU147: 200 | AV147: =SUM($AU$3:AU147) -> 21690
O148: 10014 | P148: 颜无诡 | Q148: 10014 | R148: 击杀清CD+提攻+提效果命中 | S148: 207 | T148: =VLOOKUP(V148,#REF!,3,TRUE) ->  | U148: 146 | V148: 207 | W148: 0.9 | X148: 0.1 | Y148: 206.5 | Z148: 3 | AA148: 10011 | AB148: =VLOOKUP(AA148,$AG:$AH,2,FALSE) -> 尹正霄 | AC148: 10017 | AD148: 解幽 | AE148: 10009 | AF148: 祁菲 | AK148: 146 | AL148: 0 | AM148: =SUM($AL$3:AL148) -> 115 | AN148: 115 | AP148: =SUM($AO$3:AO148) ->  | AR148: =SUM($AQ$3:AQ148) ->  | AT148: =SUM($AS$3:AS148) ->  | AU148: 200 | AV148: =SUM($AU$3:AU148) -> 21890
O149: 10015 | P149: 凝儿 | Q149: 10015 | R149: 伤害转化生命+偷攻击+暴击 | S149: 209 | T149: =VLOOKUP(V149,#REF!,3,TRUE) ->  | U149: 147 | V149: 209 | W149: 0.9 | X149: 0.1 | Y149: 208.5 | Z149: 1 | AA149: 10003 | AB149: =VLOOKUP(AA149,$AG:$AH,2,FALSE) -> 叶辽 | AK149: 147 | AL149: 1 | AM149: =SUM($AL$3:AL149) -> 116 | AN149: 115 | AP149: =SUM($AO$3:AO149) ->  | AR149: =SUM($AQ$3:AQ149) ->  | AT149: =SUM($AS$3:AS149) ->  | AU149: 200 | AV149: =SUM($AU$3:AU149) -> 22090
O150: 10016 | P150: 枫元正 | Q150: 10016 | R150: 控制状态额外攻击+持续状态额外伤害+提攻 | S150: 211 | T150: =VLOOKUP(V150,#REF!,3,TRUE) ->  | U150: 148 | V150: 211 | W150: 0.9 | X150: 0.1 | Y150: 210.5 | Z150: 3 | AA150: 10014 | AB150: =VLOOKUP(AA150,$AG:$AH,2,FALSE) -> 颜无诡 | AC150: 10006 | AD150: 朱贺 | AE150: 10022 | AF150: 云灵 | AK150: 148 | AL150: 0 | AM150: =SUM($AL$3:AL150) -> 116 | AN150: 115 | AP150: =SUM($AO$3:AO150) ->  | AR150: =SUM($AQ$3:AQ150) ->  | AT150: =SUM($AS$3:AS150) ->  | AU150: 200 | AV150: =SUM($AU$3:AU150) -> 22290
O151: 10017 | P151: 解幽 | Q151: 10017 | R151: 降护甲+沉默+沉默额外伤害 | S151: 213 | T151: =VLOOKUP(V151,#REF!,3,TRUE) ->  | U151: 149 | V151: 213 | W151: 0.9 | X151: 0.1 | Y151: 212.5 | Z151: 2 | AA151: 10019 | AB151: =VLOOKUP(AA151,$AG:$AH,2,FALSE) -> 云 | AC151: 10004 | AD151: 孔谦 | AK151: 149 | AL151: 1 | AM151: =SUM($AL$3:AL151) -> 117 | AN151: 115 | AP151: =SUM($AO$3:AO151) ->  | AR151: =SUM($AQ$3:AQ151) ->  | AT151: =SUM($AS$3:AS151) ->  | AU151: 200 | AV151: =SUM($AU$3:AU151) -> 22490
O152: 10018 | P152: 紫苏 | Q152: 10018 | R152: 偷攻击+流血 | S152: 215 | T152: =VLOOKUP(V152,#REF!,3,TRUE) ->  | U152: 150 | V152: 215 | W152: 1 | X152: 0 | Y152: 214.5 | Z152: 3 | AA152: 10002 | AB152: 石御霏 | AC152: 10018 | AD152: =VLOOKUP(AC152,$AG:$AH,2,FALSE) -> 紫苏 | AE152: 10018 | AF152: 紫苏 | AK152: 150 | AL152: 0 | AM152: =SUM($AL$3:AL152) -> 117 | AN152: 115 | AP152: =SUM($AO$3:AO152) ->  | AR152: =SUM($AQ$3:AQ152) ->  | AT152: =SUM($AS$3:AS152) ->  | AU152: 200 | AV152: =SUM($AU$3:AU152) -> 22690
O153: 10019 | P153: 云 | Q153: 10019 | R153: 提攻+暴伤+减全体CD | S153: 217 | T153: =VLOOKUP(V153,#REF!,3,TRUE) ->  | U153: 151 | V153: 217 | W153: 0.9 | X153: 0.1 | Y153: 216.5 | Z153: 2 | AA153: 10010 | AB153: =VLOOKUP(AA153,$AG:$AH,2,FALSE) -> 颜祈佳 | AC153: 10009 | AD153: 祁菲
O154: 10020 | P154: 司空染 | Q154: 10020 | R154: 2名治疗+减伤盾 | S154: 219 | T154: =VLOOKUP(V154,#REF!,3,TRUE) ->  | U154: 152 | V154: 219 | W154: 0.9 | X154: 0.1 | Y154: 218.5 | Z154: 3 | AA154: 10023 | AB154: =VLOOKUP(AA154,$AG:$AH,2,FALSE) -> 荧荧 | AC154: 10011 | AD154: 尹正霄 | AE154: 10005 | AF154: 兰卿
O155: 10021 | P155: 清然 | Q155: 10021 | R155: 减速+致盲 | S155: 221 | T155: =VLOOKUP(V155,#REF!,3,TRUE) ->  | U155: 153 | V155: 221 | W155: 0.9 | X155: 0.1 | Y155: 220.5 | Z155: 1 | AA155: 10002 | AB155: =VLOOKUP(AA155,$AG:$AH,2,FALSE) -> 石御霏
O156: 10022 | P156: 云灵 | Q156: 10022 | R156: 暴击+暴伤+击杀额外伤 | S156: 223 | T156: =VLOOKUP(V156,#REF!,3,TRUE) ->  | U156: 154 | V156: 223 | W156: 0.9 | X156: 0.1 | Y156: 222.5 | Z156: 2 | AA156: 10008 | AB156: =VLOOKUP(AA156,$AG:$AH,2,FALSE) -> 颜无雍 | AC156: 10015 | AD156: =VLOOKUP(AC156,$AG:$AH,2,FALSE) -> 凝儿
O157: 10023 | P157: 荧荧 | Q157: 10023 | R157: 秘法暴击+暴伤 | S157: 225 | T157: =VLOOKUP(V157,#REF!,3,TRUE) ->  | U157: 155 | V157: 225 | W157: 1 | X157: 0 | Y157: 224.5 | Z157: 3 | AA157: 10004 | AB157: 孔谦 | AC157: 10012 | AD157: 慕容子期 | AE157: 10012 | AF157: 慕容子期
S158: 227 | T158: =VLOOKUP(V158,#REF!,3,TRUE) ->  | U158: 156 | V158: 227 | W158: 0.9 | X158: 0.1 | Y158: 226.5 | Z158: =Z103 -> 1 | AA158: 10001 | AB158: 夏侯鸿天 | AC158: =AC103 -> 0 | AE158: =AE103 -> 0
S159: 229 | T159: =VLOOKUP(V159,#REF!,3,TRUE) ->  | U159: 157 | V159: 229 | W159: 0.9 | X159: 0.1 | Y159: 228.5 | Z159: =Z104 -> 2 | AA159: =AA104 -> 10002 | AB159: 石御霏 | AC159: 10008 | AD159: 颜无雍 | AE159: 0
S160: 231 | T160: =VLOOKUP(V160,#REF!,3,TRUE) ->  | U160: 158 | V160: 231 | W160: 0.9 | X160: 0.1 | Y160: 230.5 | Z160: =Z105 -> 3 | AA160: 10003 | AB160: 叶辽 | AC160: 10015 | AD160: 凝儿 | AE160: 10015 | AF160: 凝儿
S161: 233 | T161: =VLOOKUP(V161,#REF!,3,TRUE) ->  | U161: 159 | V161: 233 | W161: 0.9 | X161: 0.1 | Y161: 232.5 | Z161: =Z106 -> 2 | AA161: 10019 | AB161: 云 | AC161: 10021 | AD161: 清然 | AE161: 0
S162: 235 | T162: =VLOOKUP(V162,#REF!,3,TRUE) ->  | U162: 160 | V162: 235 | W162: 1 | X162: 0 | Y162: 234.5 | Z162: 3 | AA162: 10005 | AB162: 兰卿 | AC162: 10006 | AD162: 朱贺 | AE162: 10006 | AF162: 朱贺
S163: 237 | T163: =VLOOKUP(V163,#REF!,3,TRUE) ->  | U163: 161 | V163: 237 | W163: 0.9 | X163: 0.1 | Y163: 236.5 | Z163: 1 | AA163: 10018 | AB163: 紫苏 | AC163: 0 | AE163: 0
S164: 239 | T164: =VLOOKUP(V164,#REF!,3,TRUE) ->  | U164: 162 | V164: 239 | W164: 0.9 | X164: 0.1 | Y164: 238.5 | Z164: 2 | AA164: =AA109 -> 10022 | AB164: 云灵 | AC164: 10023 | AD164: 荧荧
S165: 241 | T165: =VLOOKUP(V165,#REF!,3,TRUE) ->  | U165: 163 | V165: 241 | W165: 0.9 | X165: 0.1 | Y165: 240.5 | Z165: 3 | AA165: 10011 | AB165: 尹正霄 | AC165: 10017 | AD165: 解幽 | AE165: 10009 | AF165: 祁菲
S166: 243 | T166: =VLOOKUP(V166,#REF!,3,TRUE) ->  | U166: 164 | V166: 243 | W166: 0.9 | X166: 0.1 | Y166: 242.5 | Z166: 2 | AA166: 10002 | AB166: 石御霏 | AC166: 10005 | AD166: 兰卿
S167: 245 | T167: =VLOOKUP(V167,#REF!,3,TRUE) ->  | U167: 165 | V167: 245 | W167: 1 | X167: 0 | Y167: 244.5 | Z167: 3 | AA167: 10003 | AB167: 叶辽 | AC167: 10009 | AD167: =VLOOKUP(AC167,$AG:$AH,2,FALSE) -> 祁菲 | AE167: 10009 | AF167: =VLOOKUP(AE167,$AG:$AH,2,FALSE) -> 祁菲
S168: 247 | T168: =VLOOKUP(V168,#REF!,3,TRUE) ->  | U168: 166 | V168: 247 | W168: 0.9 | X168: 0.1 | Y168: 246.5 | Z168: 1 | AA168: 10006 | AB168: 朱贺 | AC168: =AC113 -> 0 | AE168: =AE113 -> 0
S169: 249 | T169: =VLOOKUP(V169,#REF!,3,TRUE) ->  | U169: 167 | V169: 249 | W169: 0.9 | X169: 0.1 | Y169: 248.5 | Z169: 2 | AA169: 10020 | AB169: 司空染 | AC169: 10018 | AD169: 紫苏 | AE169: 0
S170: 251 | T170: =VLOOKUP(V170,#REF!,3,TRUE) ->  | U170: 168 | V170: 251 | W170: 0.9 | X170: 0.1 | Y170: 250.5 | Z170: 3 | AA170: 10008 | AB170: 颜无雍 | AC170: 10018 | AD170: 紫苏 | AE170: 10006 | AF170: 朱贺
S171: 253 | T171: =VLOOKUP(V171,#REF!,3,TRUE) ->  | U171: 169 | V171: 253 | W171: 0.9 | X171: 0.1 | Y171: 252.5 | Z171: 2 | AA171: 10012 | AB171: 慕容子期 | AC171: 10020 | AD171: 司空染
S172: 255 | T172: =VLOOKUP(V172,#REF!,3,TRUE) ->  | U172: 170 | V172: 255 | W172: 1 | X172: 0 | Y172: 254.5 | Z172: 3 | AA172: 10004 | AB172: =VLOOKUP(AA172,$AG:$AH,2,FALSE) -> 孔谦 | AC172: 10008 | AD172: 颜无雍 | AE172: 10016 | AF172: 枫元正
S173: 257 | T173: =VLOOKUP(V173,#REF!,3,TRUE) ->  | U173: 171 | V173: 257 | W173: 0.9 | X173: 0.1 | Y173: 256.5 | Z173: =Z118 -> 1 | AA173: =AA118 -> 10005 | AB173: 兰卿 | AC173: =AC118 -> 0 | AE173: =AE118 -> 0
S174: 259 | T174: =VLOOKUP(V174,#REF!,3,TRUE) ->  | U174: 172 | V174: 259 | W174: 0.9 | X174: 0.1 | Y174: 258.5 | Z174: 2 | AA174: 10019 | AB174: 云 | AC174: 10013 | AD174: 白梦凡
S175: 261 | T175: =VLOOKUP(V175,#REF!,3,TRUE) ->  | U175: 173 | V175: 261 | W175: 0.9 | X175: 0.1 | Y175: 260.5 | Z175: 3 | AA175: 10010 | AB175: 颜祈佳 | AC175: 10015 | AD175: 凝儿 | AE175: 10015 | AF175: 凝儿
S176: 263 | T176: =VLOOKUP(V176,#REF!,3,TRUE) ->  | U176: 174 | V176: 263 | W176: 0.9 | X176: 0.1 | Y176: 262.5 | Z176: 2 | AA176: 10007 | AB176: 应茹 | AC176: 10001 | AD176: 夏侯鸿天 | AE176: 0
S177: 265 | T177: =VLOOKUP(V177,#REF!,3,TRUE) ->  | U177: 175 | V177: 265 | W177: 1 | X177: 0 | Y177: 264.5 | Z177: 3 | AA177: 10006 | AB177: 朱贺 | AC177: 10009 | AD177: 祁菲 | AE177: 10009 | AF177: 祁菲
S178: 267 | T178: =VLOOKUP(V178,#REF!,3,TRUE) ->  | U178: 176 | V178: 267 | W178: 0.9 | X178: 0.1 | Y178: 266.5 | Z178: =Z123 -> 1 | AA178: =AA123 -> 10023 | AB178: 荧荧 | AC178: =AC123 -> 0 | AE178: =AE123 -> 0
S179: 269 | T179: =VLOOKUP(V179,#REF!,3,TRUE) ->  | U179: 177 | V179: 269 | W179: 0.9 | X179: 0.1 | Y179: 268.5 | Z179: 2 | AA179: 10018 | AB179: 紫苏 | AC179: 10001 | AD179: 夏侯鸿天
S180: 271 | T180: =VLOOKUP(V180,#REF!,3,TRUE) ->  | U180: 178 | V180: 271 | W180: 0.9 | X180: 0.1 | Y180: 270.5 | Z180: 3 | AA180: 10002 | AB180: 石御霏 | AC180: 10005 | AD180: 兰卿 | AE180: 10018 | AF180: 紫苏
S181: 273 | T181: =VLOOKUP(V181,#REF!,3,TRUE) ->  | U181: 179 | V181: 273 | W181: 0.9 | X181: 0.1 | Y181: 272.5 | Z181: 2 | AA181: 10017 | AB181: 解幽 | AC181: 10009 | AD181: 祁菲 | AE181: 0
S182: 275 | T182: =VLOOKUP(V182,#REF!,3,TRUE) ->  | U182: 180 | V182: 275 | W182: 1 | X182: 0 | Y182: 274.5 | Z182: 3 | AA182: 10002 | AB182: 石御霏 | AC182: 10018 | AD182: 紫苏 | AE182: 10018 | AF182: 紫苏
S183: 277 | T183: =VLOOKUP(V183,#REF!,3,TRUE) ->  | U183: 181 | V183: 277 | W183: 0.9 | X183: 0.1 | Y183: 276.5 | Z183: =Z128 -> 1 | AA183: =AA128 -> 10022 | AB183: 云灵 | AC183: =AC128 -> 0 | AE183: =AE128 -> 0
S184: 279 | T184: =VLOOKUP(V184,#REF!,3,TRUE) ->  | U184: 182 | V184: 279 | W184: 0.9 | X184: 0.1 | Y184: 278.5 | Z184: 2 | AA184: 10009 | AB184: 祁菲 | AC184: 10010 | AD184: 颜祈佳
S185: 281 | T185: =VLOOKUP(V185,#REF!,3,TRUE) ->  | U185: 183 | V185: 281 | W185: 0.9 | X185: 0.1 | Y185: 280.5 | Z185: 3 | AA185: 10018 | AB185: 紫苏 | AC185: 10019 | AD185: 云 | AE185: 10006 | AF185: 朱贺
S186: 283 | T186: =VLOOKUP(V186,#REF!,3,TRUE) ->  | U186: 184 | V186: 283 | W186: 0.9 | X186: 0.1 | Y186: 282.5 | Z186: 2 | AA186: 10022 | AB186: 云灵 | AC186: 10014 | AD186: 颜无诡
S187: 285 | T187: =VLOOKUP(V187,#REF!,3,TRUE) ->  | U187: 185 | V187: 285 | W187: 1 | X187: 0 | Y187: 284.5 | Z187: 3 | AA187: 10004 | AB187: 孔谦 | AC187: 10012 | AD187: 慕容子期 | AE187: 10012 | AF187: 慕容子期
S188: 287 | T188: =VLOOKUP(V188,#REF!,3,TRUE) ->  | U188: 186 | V188: 287 | W188: 0.9 | X188: 0.1 | Y188: 286.5 | Z188: =Z133 -> 1 | AA188: =AA133 -> 10014 | AB188: 颜无诡 | AC188: =AC133 -> 0 | AE188: =AE133 -> 
S189: 289 | T189: =VLOOKUP(V189,#REF!,3,TRUE) ->  | U189: 187 | V189: 289 | W189: 0.9 | X189: 0.1 | Y189: 288.5 | Z189: 2 | AA189: 10020 | AB189: 司空染 | AC189: 10016 | AD189: 枫元正 | AE189: 0
S190: 291 | T190: =VLOOKUP(V190,#REF!,3,TRUE) ->  | U190: 188 | V190: 291 | W190: 0.9 | X190: 0.1 | Y190: 290.5 | Z190: 3 | AA190: 10015 | AB190: 凝儿 | AC190: 10010 | AD190: 颜祈佳 | AE190: 10010 | AF190: 颜祈佳
S191: 293 | T191: =VLOOKUP(V191,#REF!,3,TRUE) ->  | U191: 189 | V191: 293 | W191: 0.9 | X191: 0.1 | Y191: 292.5 | Z191: 2 | AA191: 10006 | AB191: 朱贺 | AC191: 10017 | AD191: 解幽
S192: 295 | T192: =VLOOKUP(V192,#REF!,3,TRUE) ->  | U192: 190 | V192: 295 | W192: 1 | X192: 0 | Y192: 294.5 | Z192: 3 | AA192: 10005 | AB192: 兰卿 | AC192: 10006 | AD192: 朱贺 | AE192: 10006 | AF192: 朱贺
S193: 297 | T193: =VLOOKUP(V193,#REF!,3,TRUE) ->  | U193: 191 | V193: 297 | W193: 0.9 | X193: 0.1 | Y193: 296.5 | Z193: =Z138 -> 1 | AA193: =AA138 -> 10013 | AB193: 白梦凡 | AC193: =AC138 -> 0 | AE193: =AE138 -> 
S194: 299 | T194: =VLOOKUP(V194,#REF!,3,TRUE) ->  | U194: 192 | V194: 299 | W194: 0.9 | X194: 0.1 | Y194: 298.5 | Z194: 2 | AA194: 10019 | AB194: 云 | AC194: 10023 | AD194: 荧荧
S195: 301 | T195: =VLOOKUP(V195,#REF!,3,TRUE) ->  | U195: 193 | V195: 301 | W195: 0.9 | X195: 0.1 | Y195: 300.5 | Z195: 1 | AA195: 10023 | AB195: 荧荧
S196: 303 | T196: =VLOOKUP(V196,#REF!,3,TRUE) ->  | U196: 194 | V196: 303 | W196: 0.9 | X196: 0.1 | Y196: 302.5 | Z196: 2 | AA196: 10014 | AB196: 颜无诡 | AC196: 10008 | AD196: 颜无雍
S197: 305 | T197: =VLOOKUP(V197,#REF!,3,TRUE) ->  | U197: 195 | V197: 305 | W197: 1 | X197: 0 | Y197: 304.5 | Z197: 3 | AA197: 10004 | AB197: 孔谦 | AC197: 10006 | AD197: 朱贺 | AE197: 10012 | AF197: 慕容子期
S198: 307 | T198: =VLOOKUP(V198,#REF!,3,TRUE) ->  | U198: 196 | V198: 307 | W198: 0.9 | X198: 0.1 | Y198: 306.5 | Z198: =Z143 -> 2 | AA198: =AA143 -> 10006 | AB198: 朱贺 | AC198: =AC143 -> 10008 | AD198: 颜无雍 | AE198: =AE143 -> 0
S199: 309 | T199: =VLOOKUP(V199,#REF!,3,TRUE) ->  | U199: 197 | V199: 309 | W199: 0.9 | X199: 0.1 | Y199: 308.5 | Z199: 3 | AA199: 10020 | AB199: 司空染 | AC199: 10018 | AD199: =VLOOKUP(AC199,$AG:$AH,2,FALSE) -> 紫苏 | AE199: 10018 | AF199: =VLOOKUP(AE199,$AG:$AH,2,FALSE) -> 紫苏
S200: 311 | T200: =VLOOKUP(V200,#REF!,3,TRUE) ->  | U200: 198 | V200: 311 | W200: 0.9 | X200: 0.1 | Y200: 310.5 | Z200: 1 | AA200: 10008 | AB200: 颜无雍 | AC200: 0 | AD200: =VLOOKUP(AC200,$AG:$AH,2,FALSE) ->  | AE200: 0 | AF200: =VLOOKUP(AE200,$AG:$AH,2,FALSE) -> 
... 2 more rows

Sheet mappoint辅助表
E1: RandomMonsterType | H1: MonsterCount | I1: RandomBossType | K1: RandomMapPointId
E2: mut,int#int,2 | H2: mut,int#int,1 | I2: mut,int#int,2 | K2: mut,int#int,3
E3: 2 | H3: 4 | I3: 4 | K3: 4
A4: 1 | B4: 2 | C4: 3 | D4: 4 | E4: 类型#怪物MapPointid 1普通 2精英 | H4: 怪物数量 | I4: 类型#权重 1boss 2福利怪 3补给点 4商店 | K4: 对应MapPointid | L4: 10000 | O4: 0.2 | R4: 0.1
E5: null | H5: 1#1 | I5: null | K5: null | O5: 0.07 | R5: 0.03
O6: 0.07 | P6: 0.07 | Q6: =ROUND(P6/4*10000,0) -> 175 | R6: 0.04 | S6: =R6/4*10000 -> 100
O7: 0.06 | R7: 0.03 | S7: 其他事件 | T7: 战斗概率 | X7: 怪物组MapPoint | Y7: 扫荡奖励
E8: =$A$4&"#"&F8&"|"&$B$4&"#"&G8 -> 1#2001001|2#2001002 | F8: 2001001 | G8: 2001002 | H8: 5#3 | I8: 1#8000|2#700|3#700|4#600 | K8: =IF(S8=0,L8&"#"&$L$4&","&M8&"#"&$L$4&","&N8&"#"&$L$4&","&R8,L8&"#"&T8*100&","&M8&"#"&$L$4&","&N8&"#"&$L$4&","&R8) -> 2001003#80,2001004#10000,2001005#10000,2001009 | L8: 2001003 | M8: 2001004 | N8: 2001005 | O8: 2001006 | P8: =O8+1 -> 2001007 | Q8: =P8+1 -> 2001008 | R8: =Q8+1 -> 2001009 | S8: 0.2 | T8: 0.8 | U8: =IF(S8=0,L8&"#"&$L$4,"") ->  | V8: =O8&"#"&$Q$6&"|"&P8&"#"&$Q$6&"|"&Q8&"#"&$Q$6&"|"&R8&"#"&$Q$6 -> 2001006#175|2001007#175|2001008#175|2001009#175 | W8: =IF(S8=0,"",L8&"#"&T8*10000&","&M8&"#"&70&","&V8&","&N8&"#"&60) -> 2001003#8000,2001004#70,2001006#175|2001007#175|2001008#175|2001009#175,2001005#60 | X8: =_xlfn.TEXTJOIN("",TRUE,U8,W8) -> 2001003#8000,2001004#70,2001006#175|2001007#175|2001008#175|2001009#175,2001005#60 | Y8: =_xlfn.TEXTJOIN("#",TRUE,Z8:AC8) -> 60001#41#42#61000 | Z8: 60001 | AA8: 41 | AB8: 42 | AC8: 61000
E9: =$A$4&"#"&F9&"|"&$B$4&"#"&G9 -> 1#2002001|2#2002002 | F9: =F8+1000 -> 2002001 | G9: 2002002 | H9: 5#3 | I9: 1#8000|2#700|3#700|4#600 | K9: =L9&"#"&$L$4&","&M9&"#"&$L$4&","&N9&"#"&$L$4&","&R9&"#"&$L$4 -> 2002003#10000,2002004#10000,2002005#10000,2001009#10000 | L9: =L8+1000 -> 2002003 | M9: 2002004 | N9: 2002005 | O9: =O8 -> 2001006 | P9: =P8 -> 2001007 | Q9: =Q8 -> 2001008 | R9: =R8 -> 2001009 | S9: 0.2 | T9: 0.8 | U9: =IF(S9=0,L9&"#"&$L$4,"") ->  | V9: =O9&"#"&$Q$6&"|"&P9&"#"&$Q$6&"|"&Q9&"#"&$Q$6&"|"&R9&"#"&$Q$6 -> 2001006#175|2001007#175|2001008#175|2001009#175 | W9: =IF(S9=0,"",L9&"#"&T9*10000&","&M9&"#"&70&","&V9&","&N9&"#"&60) -> 2002003#8000,2002004#70,2001006#175|2001007#175|2001008#175|2001009#175,2002005#60 | X9: =_xlfn.TEXTJOIN("",TRUE,U9,W9) -> 2002003#8000,2002004#70,2001006#175|2001007#175|2001008#175|2001009#175,2002005#60 | Y9: =_xlfn.TEXTJOIN("#",TRUE,Z9:AC9) -> 60002#41#42#61000 | Z9: =Z8+1 -> 60002 | AA9: =AA8 -> 41 | AB9: =AB8 -> 42 | AC9: =AC8 -> 61000
E10: =$A$4&"#"&F10&"|"&$B$4&"#"&G10 -> 1#2003001|2#2003002 | F10: 2003001 | G10: 2003002 | H10: 5#3 | I10: 1#8000|2#700|3#700|4#600 | K10: =L10&"#"&$L$4&","&M10&"#"&$L$4&","&N10&"#"&$L$4&","&R10&"#"&$L$4 -> 2003003#10000,2003004#10000,2003005#10000,2001009#10000 | L10: 2003003 | M10: 2003004 | N10: 2003005 | O10: =O9 -> 2001006 | P10: =P9 -> 2001007 | Q10: =Q9 -> 2001008 | R10: =R9 -> 2001009 | S10: 0.2 | T10: 0.8 | V10: 2001006#175|2001007#175|2001008#175|2001009#175 | W10: 2003003#8000,2003004#70,2001006#175|2001007#175|2001008#175|2001009#175,2003005#60 | X10: 2003003#8000,2003004#70,2001006#175|2001007#175|2001008#175|2001009#175,2003005#60 | Y10: =_xlfn.TEXTJOIN("#",TRUE,Z10:AC10) -> 60003#41#42#61000 | Z10: =Z9+1 -> 60003 | AA10: =AA9 -> 41 | AB10: =AB9 -> 42 | AC10: =AC9 -> 61000
E11: =$A$4&"#"&F11&"|"&$B$4&"#"&G11 -> 1#2004001|2#2004002 | F11: 2004001 | G11: 2004002 | H11: 5#3 | I11: 1#8000|2#700|3#700|4#600 | K11: =L11&"#"&$L$4&","&M11&"#"&$L$4&","&N11&"#"&$L$4&","&R11&"#"&$L$4 -> 2004003#10000,2004004#10000,2004005#10000,2001009#10000 | L11: 2004003 | M11: 2004004 | N11: 2004005 | O11: 2001006 | P11: 2001007 | Q11: 2001008 | R11: 2001009 | S11: 0.2 | T11: 0.8 | V11: 2001006#175|2001007#175|2001008#175|2001009#175 | W11: 2004003#8000,2004004#70,2001006#175|2001007#175|2001008#175|2001009#175,2004005#60 | X11: 2004003#8000,2004004#70,2001006#175|2001007#175|2001008#175|2001009#175,2004005#60 | Y11: 60004#41#42#61000 | Z11: 60004 | AA11: 41 | AB11: 42 | AC11: 61000
E12: =$A$4&"#"&F12&"|"&$B$4&"#"&G12 -> 1#2005001|2#2005002 | F12: 2005001 | G12: 2005002 | H12: 5#3 | I12: 1#10000 | K12: =L12&"#"&$L$4&","&M12&"#"&$L$4&","&N12&"#"&$L$4&","&R12&"#"&$L$4 -> 2005003#10000,2005004#10000,2005005#10000,2001009#10000 | L12: 2005003 | M12: 2005004 | N12: 2005005 | O12: 2001006 | P12: 2001007 | Q12: 2001008 | R12: 2001009 | S12: 0 | T12: 1 | U12: 2005003#10000 | V12: 2001006#175|2001007#175|2001008#175|2001009#175 | X12: 2005003#10000 | Y12: 60005#41#42#61000 | Z12: 60005 | AA12: 41 | AB12: 42 | AC12: 61000
E13: =$A$4&"#"&F13&"|"&$B$4&"#"&G13 -> 1#2006001|2#2006002 | F13: =F12+1000 -> 2006001 | G13: =G12+1000 -> 2006002 | H13: 5#3 | I13: =I8 -> 1#8000|2#700|3#700|4#600 | K13: =L13&"#"&$L$4&","&M13&"#"&$L$4&","&N13&"#"&$L$4&","&R13&"#"&$L$4 -> 2006003#10000,2006004#10000,2006005#10000,2001009#10000 | L13: =L12+1000 -> 2006003 | M13: =M12+1000 -> 2006004 | N13: =N12+1000 -> 2006005 | O13: 2001006 | P13: 2001007 | Q13: 2001008 | R13: 2001009 | S13: 0.2 | T13: 0.8 | V13: 2001006#175|2001007#175|2001008#175|2001009#175 | W13: 2006003#8000,2006004#70,2001006#175|2001007#175|2001008#175|2001009#175,2006005#60 | X13: 2006003#8000,2006004#70,2001006#175|2001007#175|2001008#175|2001009#175,2006005#60 | Y13: 60006#41#42#61000 | Z13: 60006 | AA13: 41 | AB13: 42 | AC13: 61000
E14: 1#2007001|2#2007002 | F14: 2007001 | G14: 2007002 | H14: 5#3 | I14: =I9 -> 1#8000|2#700|3#700|4#600 | K14: 2007003#10000,2007004#10000,2007005#10000,2001009#10000 | L14: 2007003 | M14: 2007004 | N14: 2007005 | O14: 2001006 | P14: 2001007 | Q14: 2001008 | R14: 2001009 | S14: 0.2 | T14: 0.8 | V14: 2001006#175|2001007#175|2001008#175|2001009#175 | W14: 2007003#8000,2007004#70,2001006#175|2001007#175|2001008#175|2001009#175,2007005#60 | X14: 2007003#8000,2007004#70,2001006#175|2001007#175|2001008#175|2001009#175,2007005#60 | Y14: 60007#41#42#61000 | Z14: 60007 | AA14: 41 | AB14: 42 | AC14: 61000
E15: 1#2008001|2#2008002 | F15: 2008001 | G15: 2008002 | H15: 5#3 | I15: 1#8000|2#700|3#700|4#600 | K15: 2008003#10000,2008004#10000,2008005#10000,2001009#10000 | L15: 2008003 | M15: 2008004 | N15: 2008005 | O15: 2001006 | P15: 2001007 | Q15: 2001008 | R15: 2001009 | S15: 0.2 | T15: 0.8 | V15: 2001006#175|2001007#175|2001008#175|2001009#175 | W15: 2008003#8000,2008004#70,2001006#175|2001007#175|2001008#175|2001009#175,2008005#60 | X15: 2008003#8000,2008004#70,2001006#175|2001007#175|2001008#175|2001009#175,2008005#60 | Y15: 60008#41#42#61000 | Z15: 60008 | AA15: 41 | AB15: 42 | AC15: 61000
E16: 1#2009001|2#2009002 | F16: 2009001 | G16: 2009002 | H16: 5#3 | I16: 1#8000|2#700|3#700|4#600 | K16: 2009003#10000,2009004#10000,2009005#10000,2001009#10000 | L16: 2009003 | M16: 2009004 | N16: 2009005 | O16: 2001006 | P16: 2001007 | Q16: 2001008 | R16: 2001009 | S16: 0.2 | T16: 0.8 | V16: 2001006#175|2001007#175|2001008#175|2001009#175 | W16: 2009003#8000,2009004#70,2001006#175|2001007#175|2001008#175|2001009#175,2009005#60 | X16: 2009003#8000,2009004#70,2001006#175|2001007#175|2001008#175|2001009#175,2009005#60 | Y16: 60009#41#42#61000 | Z16: 60009 | AA16: 41 | AB16: 42 | AC16: 61000
E17: 1#2010001|2#2010002 | F17: 2010001 | G17: 2010002 | H17: 5#3 | I17: 1#10000 | K17: 2010003#10000,2010004#10000,2010005#10000,2001009#10000 | L17: 2010003 | M17: 2010004 | N17: 2010005 | O17: 2001006 | P17: 2001007 | Q17: 2001008 | R17: 2001009 | S17: 0 | T17: 1 | U17: 2010003#10000 | V17: 2001006#175|2001007#175|2001008#175|2001009#175 | X17: 2010003#10000 | Y17: 60010#41#42#61000 | Z17: 60010 | AA17: 41 | AB17: 42 | AC17: 61000
E18: 1#2011001|2#2011002 | F18: 2011001 | G18: 2011002 | H18: 5#3 | I18: 1#8000|2#700|3#700|4#600 | K18: 2011003#10000,2011004#10000,2011005#10000,2001009#10000 | L18: 2011003 | M18: 2011004 | N18: 2011005 | O18: 2001006 | P18: 2001007 | Q18: 2001008 | R18: 2001009 | S18: 0.2 | T18: 0.8 | V18: 2001006#175|2001007#175|2001008#175|2001009#175 | W18: 2011003#8000,2011004#70,2001006#175|2001007#175|2001008#175|2001009#175,2011005#60 | X18: 2011003#8000,2011004#70,2001006#175|2001007#175|2001008#175|2001009#175,2011005#60 | Y18: 60011#41#42#61000 | Z18: 60011 | AA18: 41 | AB18: 42 | AC18: 61000
E19: 1#2012001|2#2012002 | F19: 2012001 | G19: 2012002 | H19: 5#3 | I19: 1#8000|2#700|3#700|4#600 | K19: 2012003#10000,2012004#10000,2012005#10000,2001009#10000 | L19: 2012003 | M19: 2012004 | N19: 2012005 | O19: 2001006 | P19: 2001007 | Q19: 2001008 | R19: 2001009 | S19: 0.2 | T19: 0.8 | V19: 2001006#175|2001007#175|2001008#175|2001009#175 | W19: 2012003#8000,2012004#70,2001006#175|2001007#175|2001008#175|2001009#175,2012005#60 | X19: 2012003#8000,2012004#70,2001006#175|2001007#175|2001008#175|2001009#175,2012005#60 | Y19: 60012#41#42#61000 | Z19: 60012 | AA19: 41 | AB19: 42 | AC19: 61000
E20: 1#2013001|2#2013002 | F20: 2013001 | G20: 2013002 | H20: 5#3 | I20: 1#8000|2#700|3#700|4#600 | K20: 2013003#10000,2013004#10000,2013005#10000,2001009#10000 | L20: 2013003 | M20: 2013004 | N20: 2013005 | O20: 2001006 | P20: 2001007 | Q20: 2001008 | R20: 2001009 | S20: 0.2 | T20: 0.8 | V20: 2001006#175|2001007#175|2001008#175|2001009#175 | W20: 2013003#8000,2013004#70,2001006#175|2001007#175|2001008#175|2001009#175,2013005#60 | X20: 2013003#8000,2013004#70,2001006#175|2001007#175|2001008#175|2001009#175,2013005#60 | Y20: 60013#41#42#61000 | Z20: 60013 | AA20: 41 | AB20: 42 | AC20: 61000
E21: 1#2014001|2#2014002 | F21: 2014001 | G21: 2014002 | H21: 5#3 | I21: 1#8000|2#700|3#700|4#600 | K21: 2014003#10000,2014004#10000,2014005#10000,2001009#10000 | L21: 2014003 | M21: 2014004 | N21: 2014005 | O21: 2001006 | P21: 2001007 | Q21: 2001008 | R21: 2001009 | S21: 0.2 | T21: 0.8 | V21: 2001006#175|2001007#175|2001008#175|2001009#175 | W21: 2014003#8000,2014004#70,2001006#175|2001007#175|2001008#175|2001009#175,2014005#60 | X21: 2014003#8000,2014004#70,2001006#175|2001007#175|2001008#175|2001009#175,2014005#60 | Y21: 60014#41#42#61000 | Z21: 60014 | AA21: 41 | AB21: 42 | AC21: 61000
E22: 1#2015001|2#2015002 | F22: 2015001 | G22: 2015002 | H22: 5#3 | I22: 1#10000 | K22: 2015003#10000,2015004#10000,2015005#10000,2001009#10000 | L22: 2015003 | M22: 2015004 | N22: 2015005 | O22: 2001006 | P22: 2001007 | Q22: 2001008 | R22: 2001009 | S22: 0 | T22: 1 | U22: 2015003#10000 | V22: 2001006#175|2001007#175|2001008#175|2001009#175 | X22: 2015003#10000 | Y22: 60015#41#42#61000 | Z22: 60015 | AA22: 41 | AB22: 42 | AC22: 61000
E23: 1#2016001|2#2016002 | F23: 2016001 | G23: 2016002 | H23: 5#3 | I23: 1#8000|2#700|3#700|4#600 | K23: 2016003#10000,2016004#10000,2016005#10000,2001009#10000 | L23: 2016003 | M23: 2016004 | N23: 2016005 | O23: 2001006 | P23: 2001007 | Q23: 2001008 | R23: 2001009 | S23: 0.2 | T23: 0.8 | V23: 2001006#175|2001007#175|2001008#175|2001009#175 | W23: 2016003#8000,2016004#70,2001006#175|2001007#175|2001008#175|2001009#175,2016005#60 | X23: 2016003#8000,2016004#70,2001006#175|2001007#175|2001008#175|2001009#175,2016005#60 | Y23: 60016#41#42#61000 | Z23: 60016 | AA23: 41 | AB23: 42 | AC23: 61000
E24: 1#2017001|2#2017002 | F24: 2017001 | G24: 2017002 | H24: 5#3 | I24: 1#8000|2#700|3#700|4#600 | K24: 2017003#10000,2017004#10000,2017005#10000,2001009#10000 | L24: 2017003 | M24: 2017004 | N24: 2017005 | O24: 2001006 | P24: 2001007 | Q24: 2001008 | R24: 2001009 | S24: 0.2 | T24: 0.8 | V24: 2001006#175|2001007#175|2001008#175|2001009#175 | W24: 2017003#8000,2017004#70,2001006#175|2001007#175|2001008#175|2001009#175,2017005#60 | X24: 2017003#8000,2017004#70,2001006#175|2001007#175|2001008#175|2001009#175,2017005#60 | Y24: 60017#41#42#61000 | Z24: 60017 | AA24: 41 | AB24: 42 | AC24: 61000
E25: 1#2018001|2#2018002 | F25: 2018001 | G25: 2018002 | H25: 5#3 | I25: 1#8000|2#700|3#700|4#600 | K25: 2018003#10000,2018004#10000,2018005#10000,2001009#10000 | L25: 2018003 | M25: 2018004 | N25: 2018005 | O25: 2001006 | P25: 2001007 | Q25: 2001008 | R25: 2001009 | S25: 0.2 | T25: 0.8 | V25: 2001006#175|2001007#175|2001008#175|2001009#175 | W25: 2018003#8000,2018004#70,2001006#175|2001007#175|2001008#175|2001009#175,2018005#60 | X25: 2018003#8000,2018004#70,2001006#175|2001007#175|2001008#175|2001009#175,2018005#60 | Y25: 60018#41#42#61000 | Z25: 60018 | AA25: 41 | AB25: 42 | AC25: 61000
E26: 1#2019001|2#2019002 | F26: 2019001 | G26: 2019002 | H26: 5#3 | I26: 1#8000|2#700|3#700|4#600 | K26: 2019003#10000,2019004#10000,2019005#10000,2001009#10000 | L26: 2019003 | M26: 2019004 | N26: 2019005 | O26: 2001006 | P26: 2001007 | Q26: 2001008 | R26: 2001009 | S26: 0.2 | T26: 0.8 | V26: 2001006#175|2001007#175|2001008#175|2001009#175 | W26: 2019003#8000,2019004#70,2001006#175|2001007#175|2001008#175|2001009#175,2019005#60 | X26: 2019003#8000,2019004#70,2001006#175|2001007#175|2001008#175|2001009#175,2019005#60 | Y26: 60019#41#42#61000 | Z26: 60019 | AA26: 41 | AB26: 42 | AC26: 61000
E27: 1#2020001|2#2020002 | F27: 2020001 | G27: 2020002 | H27: 5#3 | I27: 1#10000 | K27: 2020003#10000,2020004#10000,2020005#10000,2001009#10000 | L27: 2020003 | M27: 2020004 | N27: 2020005 | O27: 2001006 | P27: 2001007 | Q27: 2001008 | R27: 2001009 | S27: 0 | T27: 1 | U27: 2020003#10000 | V27: 2001006#175|2001007#175|2001008#175|2001009#175 | X27: 2020003#10000 | Y27: 60020#41#42#61000 | Z27: 60020 | AA27: 41 | AB27: 42 | AC27: 61000
E28: 1#2021001|2#2021002 | F28: 2021001 | G28: 2021002 | H28: 5#3 | I28: 1#8000|2#700|3#700|4#600 | K28: 2021003#10000,2021004#10000,2021005#10000,2001009#10000 | L28: 2021003 | M28: 2021004 | N28: 2021005 | O28: 2001006 | P28: 2001007 | Q28: 2001008 | R28: 2001009 | S28: 0.2 | T28: 0.8 | V28: 2001006#175|2001007#175|2001008#175|2001009#175 | W28: 2021003#8000,2021004#70,2001006#175|2001007#175|2001008#175|2001009#175,2021005#60 | X28: 2021003#8000,2021004#70,2001006#175|2001007#175|2001008#175|2001009#175,2021005#60 | Y28: 60021#41#42#61000 | Z28: 60021 | AA28: 41 | AB28: 42 | AC28: 61000
E29: 1#2022001|2#2022002 | F29: 2022001 | G29: 2022002 | H29: 5#3 | I29: 1#8000|2#700|3#700|4#600 | K29: 2022003#10000,2022004#10000,2022005#10000,2001009#10000 | L29: 2022003 | M29: 2022004 | N29: 2022005 | O29: 2001006 | P29: 2001007 | Q29: 2001008 | R29: 2001009 | S29: 0.2 | T29: 0.8 | V29: 2001006#175|2001007#175|2001008#175|2001009#175 | W29: 2022003#8000,2022004#70,2001006#175|2001007#175|2001008#175|2001009#175,2022005#60 | X29: 2022003#8000,2022004#70,2001006#175|2001007#175|2001008#175|2001009#175,2022005#60 | Y29: 60022#41#42#61000 | Z29: 60022 | AA29: 41 | AB29: 42 | AC29: 61000
E30: 1#2023001|2#2023002 | F30: 2023001 | G30: 2023002 | H30: 5#3 | I30: 1#8000|2#700|3#700|4#600 | K30: 2023003#10000,2023004#10000,2023005#10000,2001009#10000 | L30: 2023003 | M30: 2023004 | N30: 2023005 | O30: 2001006 | P30: 2001007 | Q30: 2001008 | R30: 2001009 | S30: 0.2 | T30: 0.8 | V30: 2001006#175|2001007#175|2001008#175|2001009#175 | W30: 2023003#8000,2023004#70,2001006#175|2001007#175|2001008#175|2001009#175,2023005#60 | X30: 2023003#8000,2023004#70,2001006#175|2001007#175|2001008#175|2001009#175,2023005#60 | Y30: 60023#41#42#61000 | Z30: 60023 | AA30: 41 | AB30: 42 | AC30: 61000
E31: 1#2024001|2#2024002 | F31: 2024001 | G31: 2024002 | H31: 5#3 | I31: 1#8000|2#700|3#700|4#600 | K31: 2024003#10000,2024004#10000,2024005#10000,2001009#10000 | L31: 2024003 | M31: 2024004 | N31: 2024005 | O31: 2001006 | P31: 2001007 | Q31: 2001008 | R31: 2001009 | S31: 0.2 | T31: 0.8 | V31: 2001006#175|2001007#175|2001008#175|2001009#175 | W31: 2024003#8000,2024004#70,2001006#175|2001007#175|2001008#175|2001009#175,2024005#60 | X31: 2024003#8000,2024004#70,2001006#175|2001007#175|2001008#175|2001009#175,2024005#60 | Y31: 60024#41#42#61000 | Z31: 60024 | AA31: 41 | AB31: 42 | AC31: 61000
E32: 1#2025001|2#2025002 | F32: 2025001 | G32: 2025002 | H32: 5#3 | I32: 1#10000 | K32: 2025003#10000,2025004#10000,2025005#10000,2001009#10000 | L32: 2025003 | M32: 2025004 | N32: 2025005 | O32: 2001006 | P32: 2001007 | Q32: 2001008 | R32: 2001009 | S32: 0 | T32: 1 | U32: 2025003#10000 | V32: 2001006#175|2001007#175|2001008#175|2001009#175 | X32: 2025003#10000 | Y32: 60025#41#42#61000 | Z32: 60025 | AA32: 41 | AB32: 42 | AC32: 61000
E33: 1#2026001|2#2026002 | F33: 2026001 | G33: 2026002 | H33: 5#3 | I33: 1#8000|2#700|3#700|4#600 | K33: 2026003#10000,2026004#10000,2026005#10000,2001009#10000 | L33: 2026003 | M33: 2026004 | N33: 2026005 | O33: 2001006 | P33: 2001007 | Q33: 2001008 | R33: 2001009 | S33: 0.2 | T33: 0.8 | V33: 2001006#175|2001007#175|2001008#175|2001009#175 | W33: 2026003#8000,2026004#70,2001006#175|2001007#175|2001008#175|2001009#175,2026005#60 | X33: 2026003#8000,2026004#70,2001006#175|2001007#175|2001008#175|2001009#175,2026005#60 | Y33: 60026#41#42#61000 | Z33: 60026 | AA33: 41 | AB33: 42 | AC33: 61000
E34: 1#2027001|2#2027002 | F34: 2027001 | G34: 2027002 | H34: 5#3 | I34: 1#8000|2#700|3#700|4#600 | K34: 2027003#10000,2027004#10000,2027005#10000,2001009#10000 | L34: 2027003 | M34: 2027004 | N34: 2027005 | O34: 2001006 | P34: 2001007 | Q34: 2001008 | R34: 2001009 | S34: 0.2 | T34: 0.8 | V34: 2001006#175|2001007#175|2001008#175|2001009#175 | W34: 2027003#8000,2027004#70,2001006#175|2001007#175|2001008#175|2001009#175,2027005#60 | X34: 2027003#8000,2027004#70,2001006#175|2001007#175|2001008#175|2001009#175,2027005#60 | Y34: 60027#41#42#61000 | Z34: 60027 | AA34: 41 | AB34: 42 | AC34: 61000
E35: 1#2028001|2#2028002 | F35: 2028001 | G35: 2028002 | H35: 5#3 | I35: 1#8000|2#700|3#700|4#600 | K35: 2028003#10000,2028004#10000,2028005#10000,2001009#10000 | L35: 2028003 | M35: 2028004 | N35: 2028005 | O35: 2001006 | P35: 2001007 | Q35: 2001008 | R35: 2001009 | S35: 0.2 | T35: 0.8 | V35: 2001006#175|2001007#175|2001008#175|2001009#175 | W35: 2028003#8000,2028004#70,2001006#175|2001007#175|2001008#175|2001009#175,2028005#60 | X35: 2028003#8000,2028004#70,2001006#175|2001007#175|2001008#175|2001009#175,2028005#60 | Y35: 60028#41#42#61000 | Z35: 60028 | AA35: 41 | AB35: 42 | AC35: 61000
E36: 1#2029001|2#2029002 | F36: 2029001 | G36: 2029002 | H36: 5#3 | I36: 1#8000|2#700|3#700|4#600 | K36: 2029003#10000,2029004#10000,2029005#10000,2001009#10000 | L36: 2029003 | M36: 2029004 | N36: 2029005 | O36: 2001006 | P36: 2001007 | Q36: 2001008 | R36: 2001009 | S36: 0.2 | T36: 0.8 | V36: 2001006#175|2001007#175|2001008#175|2001009#175 | W36: 2029003#8000,2029004#70,2001006#175|2001007#175|2001008#175|2001009#175,2029005#60 | X36: 2029003#8000,2029004#70,2001006#175|2001007#175|2001008#175|2001009#175,2029005#60 | Y36: 60029#41#42#61000 | Z36: 60029 | AA36: 41 | AB36: 42 | AC36: 61000
E37: 1#2030001|2#2030002 | F37: 2030001 | G37: 2030002 | H37: 5#3 | I37: 1#10000 | K37: 2030003#10000,2030004#10000,2030005#10000,2001009#10000 | L37: 2030003 | M37: 2030004 | N37: 2030005 | O37: 2001006 | P37: 2001007 | Q37: 2001008 | R37: 2001009 | S37: 0 | T37: 1 | U37: 2030003#10000 | V37: 2001006#175|2001007#175|2001008#175|2001009#175 | X37: 2030003#10000 | Y37: 60030#41#42#61000 | Z37: 60030 | AA37: 41 | AB37: 42 | AC37: 61000
E38: 1#2031001|2#2031002 | F38: 2031001 | G38: 2031002 | H38: 5#3 | I38: 1#8000|2#700|3#700|4#600 | K38: 2031003#10000,2031004#10000,2031005#10000,2001009#10000 | L38: 2031003 | M38: 2031004 | N38: 2031005 | O38: 2001006 | P38: 2001007 | Q38: 2001008 | R38: 2001009 | S38: 0.2 | T38: 0.8 | V38: 2001006#175|2001007#175|2001008#175|2001009#175 | W38: 2031003#8000,2031004#70,2001006#175|2001007#175|2001008#175|2001009#175,2031005#60 | X38: 2031003#8000,2031004#70,2001006#175|2001007#175|2001008#175|2001009#175,2031005#60 | Y38: 60031#41#42#61000 | Z38: 60031 | AA38: 41 | AB38: 42 | AC38: 61000
E39: 1#2032001|2#2032002 | F39: 2032001 | G39: 2032002 | H39: 5#3 | I39: 1#8000|2#700|3#700|4#600 | K39: 2032003#10000,2032004#10000,2032005#10000,2001009#10000 | L39: 2032003 | M39: 2032004 | N39: 2032005 | O39: 2001006 | P39: 2001007 | Q39: 2001008 | R39: 2001009 | S39: 0.2 | T39: 0.8 | V39: 2001006#175|2001007#175|2001008#175|2001009#175 | W39: 2032003#8000,2032004#70,2001006#175|2001007#175|2001008#175|2001009#175,2032005#60 | X39: 2032003#8000,2032004#70,2001006#175|2001007#175|2001008#175|2001009#175,2032005#60 | Y39: 60032#41#42#61000 | Z39: 60032 | AA39: 41 | AB39: 42 | AC39: 61000
E40: 1#2033001|2#2033002 | F40: 2033001 | G40: 2033002 | H40: 5#3 | I40: 1#8000|2#700|3#700|4#600 | K40: 2033003#10000,2033004#10000,2033005#10000,2001009#10000 | L40: 2033003 | M40: 2033004 | N40: 2033005 | O40: 2001006 | P40: 2001007 | Q40: 2001008 | R40: 2001009 | S40: 0.2 | T40: 0.8 | V40: 2001006#175|2001007#175|2001008#175|2001009#175 | W40: 2033003#8000,2033004#70,2001006#175|2001007#175|2001008#175|2001009#175,2033005#60 | X40: 2033003#8000,2033004#70,2001006#175|2001007#175|2001008#175|2001009#175,2033005#60 | Y40: 60033#41#42#61000 | Z40: 60033 | AA40: 41 | AB40: 42 | AC40: 61000
E41: 1#2034001|2#2034002 | F41: 2034001 | G41: 2034002 | H41: 5#3 | I41: 1#8000|2#700|3#700|4#600 | K41: 2034003#10000,2034004#10000,2034005#10000,2001009#10000 | L41: 2034003 | M41: 2034004 | N41: 2034005 | O41: 2001006 | P41: 2001007 | Q41: 2001008 | R41: 2001009 | S41: 0.2 | T41: 0.8 | U41: =IF(S41=0,L41&"#"&$L$4,"") ->  | V41: =O41&"#"&$Q$6&"|"&P41&"#"&$Q$6&"|"&Q41&"#"&$Q$6&"|"&R41&"#"&$Q$6 -> 2001006#175|2001007#175|2001008#175|2001009#175 | W41: =IF(S41=0,"",L41&"#"&T41*10000&","&M41&"#"&70&","&V41&","&N41&"#"&60) -> 2034003#8000,2034004#70,2001006#175|2001007#175|2001008#175|2001009#175,2034005#60 | X41: =_xlfn.TEXTJOIN("",TRUE,U41,W41) -> 2034003#8000,2034004#70,2001006#175|2001007#175|2001008#175|2001009#175,2034005#60 | Y41: 60034#41#42#61000 | Z41: 60034 | AA41: 41 | AB41: 42 | AC41: 61000
E42: 1#2035001|2#2035002 | F42: 2035001 | G42: 2035002 | H42: 5#3 | I42: 1#10000 | K42: 2035003#10000,2035004#10000,2035005#10000,2001009#10000 | L42: 2035003 | M42: 2035004 | N42: 2035005 | O42: =O41 -> 2001006 | P42: =P41 -> 2001007 | Q42: =Q41 -> 2001008 | R42: =R41 -> 2001009 | S42: 0 | T42: 1 | U42: 2035003#10000 | V42: 2001006#175|2001007#175|2001008#175|2001009#175 | X42: 2035003#10000 | Y42: =_xlfn.TEXTJOIN("#",TRUE,Z42:AC42) -> 60035#41#42#61000 | Z42: =Z41+1 -> 60035 | AA42: =AA41 -> 41 | AB42: =AB41 -> 42 | AC42: =AC41 -> 61000
E43: 1#2036001|2#2036002 | F43: 2036001 | G43: 2036002 | H43: 5#3 | I43: 1#8000|2#700|3#700|4#600 | K43: 2036003#10000,2036004#10000,2036005#10000,2001009#10000 | L43: 2036003 | M43: 2036004 | N43: 2036005 | O43: 2001006 | P43: 2001007 | Q43: 2001008 | R43: 2001009 | S43: 0.2 | T43: 0.8 | V43: 2001006#175|2001007#175|2001008#175|2001009#175 | W43: 2036003#8000,2036004#70,2001006#175|2001007#175|2001008#175|2001009#175,2036005#60 | X43: 2036003#8000,2036004#70,2001006#175|2001007#175|2001008#175|2001009#175,2036005#60 | Y43: 60036#41#42#61000 | Z43: 60036 | AA43: 41 | AB43: 42 | AC43: 61000
E44: 1#2037001|2#2037002 | F44: 2037001 | G44: 2037002 | H44: 5#3 | I44: 1#8000|2#700|3#700|4#600 | K44: 2037003#10000,2037004#10000,2037005#10000,2001009#10000 | L44: 2037003 | M44: 2037004 | N44: 2037005 | O44: 2001006 | P44: 2001007 | Q44: 2001008 | R44: 2001009 | S44: 0.2 | T44: 0.8 | V44: 2001006#175|2001007#175|2001008#175|2001009#175 | W44: 2037003#8000,2037004#70,2001006#175|2001007#175|2001008#175|2001009#175,2037005#60 | X44: 2037003#8000,2037004#70,2001006#175|2001007#175|2001008#175|2001009#175,2037005#60 | Y44: 60037#41#42#61000 | Z44: 60037 | AA44: 41 | AB44: 42 | AC44: 61000
E45: =$A$4&"#"&F45&"|"&$B$4&"#"&G45 -> 1#2038001|2#2038002 | F45: =F44+1000 -> 2038001 | G45: =G44+1000 -> 2038002 | H45: 5#3 | I45: 1#8000|2#700|3#700|4#600 | K45: =L45&"#"&$L$4&","&M45&"#"&$L$4&","&N45&"#"&$L$4&","&R45&"#"&$L$4 -> 2038003#10000,2038004#10000,2038005#10000,2001009#10000 | L45: =L44+1000 -> 2038003 | M45: =M44+1000 -> 2038004 | N45: =N44+1000 -> 2038005 | O45: 2001006 | P45: 2001007 | Q45: 2001008 | R45: 2001009 | S45: 0.2 | T45: 0.8 | V45: 2001006#175|2001007#175|2001008#175|2001009#175 | W45: 2038003#8000,2038004#70,2001006#175|2001007#175|2001008#175|2001009#175,2038005#60 | X45: 2038003#8000,2038004#70,2001006#175|2001007#175|2001008#175|2001009#175,2038005#60 | Y45: 60038#41#42#61000 | Z45: 60038 | AA45: 41 | AB45: 42 | AC45: 61000
E46: 1#2039001|2#2039002 | F46: 2039001 | G46: 2039002 | H46: 5#3 | I46: =I41 -> 1#8000|2#700|3#700|4#600 | K46: 2039003#10000,2039004#10000,2039005#10000,2001009#10000 | L46: 2039003 | M46: 2039004 | N46: 2039005 | O46: 2001006 | P46: 2001007 | Q46: 2001008 | R46: 2001009 | S46: 0.2 | T46: 0.8 | V46: 2001006#175|2001007#175|2001008#175|2001009#175 | W46: 2039003#8000,2039004#70,2001006#175|2001007#175|2001008#175|2001009#175,2039005#60 | X46: 2039003#8000,2039004#70,2001006#175|2001007#175|2001008#175|2001009#175,2039005#60 | Y46: 60039#41#42#61000 | Z46: 60039 | AA46: 41 | AB46: 42 | AC46: 61000
E47: 1#2040001|2#2040002 | F47: 2040001 | G47: 2040002 | H47: 5#3 | I47: 1#10000 | K47: 2040003#10000,2040004#10000,2040005#10000,2001009#10000 | L47: 2040003 | M47: 2040004 | N47: 2040005 | O47: 2001006 | P47: 2001007 | Q47: 2001008 | R47: 2001009 | S47: 0 | T47: 1 | U47: 2040003#10000 | V47: 2001006#175|2001007#175|2001008#175|2001009#175 | X47: 2040003#10000 | Y47: 60040#41#42#61000 | Z47: 60040 | AA47: 41 | AB47: 42 | AC47: 61000
E48: 1#2041001|2#2041002 | F48: 2041001 | G48: 2041002 | H48: 5#3 | I48: 1#8000|2#700|3#700|4#600 | K48: 2041003#10000,2041004#10000,2041005#10000,2001009#10000 | L48: 2041003 | M48: 2041004 | N48: 2041005 | O48: 2001006 | P48: 2001007 | Q48: 2001008 | R48: 2001009 | S48: 0.2 | T48: 0.8 | V48: 2001006#175|2001007#175|2001008#175|2001009#175 | W48: 2041003#8000,2041004#70,2001006#175|2001007#175|2001008#175|2001009#175,2041005#60 | X48: 2041003#8000,2041004#70,2001006#175|2001007#175|2001008#175|2001009#175,2041005#60 | Y48: 60041#41#42#61000 | Z48: 60041 | AA48: 41 | AB48: 42 | AC48: 61000
E49: 1#2042001|2#2042002 | F49: 2042001 | G49: 2042002 | H49: 5#3 | I49: 1#8000|2#700|3#700|4#600 | K49: 2042003#10000,2042004#10000,2042005#10000,2001009#10000 | L49: 2042003 | M49: 2042004 | N49: 2042005 | O49: 2001006 | P49: 2001007 | Q49: 2001008 | R49: 2001009 | S49: 0.2 | T49: 0.8 | V49: 2001006#175|2001007#175|2001008#175|2001009#175 | W49: 2042003#8000,2042004#70,2001006#175|2001007#175|2001008#175|2001009#175,2042005#60 | X49: 2042003#8000,2042004#70,2001006#175|2001007#175|2001008#175|2001009#175,2042005#60 | Y49: 60042#41#42#61000 | Z49: 60042 | AA49: 41 | AB49: 42 | AC49: 61000
E50: 1#2043001|2#2043002 | F50: 2043001 | G50: 2043002 | H50: 5#3 | I50: 1#8000|2#700|3#700|4#600 | K50: 2043003#10000,2043004#10000,2043005#10000,2001009#10000 | L50: 2043003 | M50: 2043004 | N50: 2043005 | O50: 2001006 | P50: 2001007 | Q50: 2001008 | R50: 2001009 | S50: 0.2 | T50: 0.8 | V50: 2001006#175|2001007#175|2001008#175|2001009#175 | W50: 2043003#8000,2043004#70,2001006#175|2001007#175|2001008#175|2001009#175,2043005#60 | X50: 2043003#8000,2043004#70,2001006#175|2001007#175|2001008#175|2001009#175,2043005#60 | Y50: 60043#41#42#61000 | Z50: 60043 | AA50: 41 | AB50: 42 | AC50: 61000
E51: 1#2044001|2#2044002 | F51: 2044001 | G51: 2044002 | H51: 5#3 | I51: 1#8000|2#700|3#700|4#600 | K51: 2044003#10000,2044004#10000,2044005#10000,2001009#10000 | L51: 2044003 | M51: 2044004 | N51: 2044005 | O51: 2001006 | P51: 2001007 | Q51: 2001008 | R51: 2001009 | S51: 0.2 | T51: 0.8 | V51: 2001006#175|2001007#175|2001008#175|2001009#175 | W51: 2044003#8000,2044004#70,2001006#175|2001007#175|2001008#175|2001009#175,2044005#60 | X51: 2044003#8000,2044004#70,2001006#175|2001007#175|2001008#175|2001009#175,2044005#60 | Y51: 60044#41#42#61000 | Z51: 60044 | AA51: 41 | AB51: 42 | AC51: 61000
E52: 1#2045001|2#2045002 | F52: 2045001 | G52: 2045002 | H52: 5#3 | I52: 1#10000 | K52: 2045003#10000,2045004#10000,2045005#10000,2001009#10000 | L52: 2045003 | M52: 2045004 | N52: 2045005 | O52: 2001006 | P52: 2001007 | Q52: 2001008 | R52: 2001009 | S52: 0 | T52: 1 | U52: 2045003#10000 | V52: 2001006#175|2001007#175|2001008#175|2001009#175 | X52: 2045003#10000 | Y52: 60045#41#42#61000 | Z52: 60045 | AA52: 41 | AB52: 42 | AC52: 61000
E53: 1#2046001|2#2046002 | F53: 2046001 | G53: 2046002 | H53: 5#3 | I53: 1#8000|2#700|3#700|4#600 | K53: 2046003#10000,2046004#10000,2046005#10000,2001009#10000 | L53: 2046003 | M53: 2046004 | N53: 2046005 | O53: 2001006 | P53: 2001007 | Q53: 2001008 | R53: 2001009 | S53: 0.2 | T53: 0.8 | V53: 2001006#175|2001007#175|2001008#175|2001009#175 | W53: 2046003#8000,2046004#70,2001006#175|2001007#175|2001008#175|2001009#175,2046005#60 | X53: 2046003#8000,2046004#70,2001006#175|2001007#175|2001008#175|2001009#175,2046005#60 | Y53: 60046#41#42#61000 | Z53: 60046 | AA53: 41 | AB53: 42 | AC53: 61000
E54: 1#2047001|2#2047002 | F54: 2047001 | G54: 2047002 | H54: 5#3 | I54: 1#8000|2#700|3#700|4#600 | K54: 2047003#10000,2047004#10000,2047005#10000,2001009#10000 | L54: 2047003 | M54: 2047004 | N54: 2047005 | O54: 2001006 | P54: 2001007 | Q54: 2001008 | R54: 2001009 | S54: 0.2 | T54: 0.8 | V54: 2001006#175|2001007#175|2001008#175|2001009#175 | W54: 2047003#8000,2047004#70,2001006#175|2001007#175|2001008#175|2001009#175,2047005#60 | X54: 2047003#8000,2047004#70,2001006#175|2001007#175|2001008#175|2001009#175,2047005#60 | Y54: 60047#41#42#61000 | Z54: 60047 | AA54: 41 | AB54: 42 | AC54: 61000
E55: 1#2048001|2#2048002 | F55: 2048001 | G55: 2048002 | H55: 5#3 | I55: 1#8000|2#700|3#700|4#600 | K55: 2048003#10000,2048004#10000,2048005#10000,2001009#10000 | L55: 2048003 | M55: 2048004 | N55: 2048005 | O55: 2001006 | P55: 2001007 | Q55: 2001008 | R55: 2001009 | S55: 0.2 | T55: 0.8 | V55: 2001006#175|2001007#175|2001008#175|2001009#175 | W55: 2048003#8000,2048004#70,2001006#175|2001007#175|2001008#175|2001009#175,2048005#60 | X55: 2048003#8000,2048004#70,2001006#175|2001007#175|2001008#175|2001009#175,2048005#60 | Y55: 60048#41#42#61000 | Z55: 60048 | AA55: 41 | AB55: 42 | AC55: 61000
E56: 1#2049001|2#2049002 | F56: 2049001 | G56: 2049002 | H56: 5#3 | I56: 1#8000|2#700|3#700|4#600 | K56: 2049003#10000,2049004#10000,2049005#10000,2001009#10000 | L56: 2049003 | M56: 2049004 | N56: 2049005 | O56: 2001006 | P56: 2001007 | Q56: 2001008 | R56: 2001009 | S56: 0.2 | T56: 0.8 | V56: 2001006#175|2001007#175|2001008#175|2001009#175 | W56: 2049003#8000,2049004#70,2001006#175|2001007#175|2001008#175|2001009#175,2049005#60 | X56: 2049003#8000,2049004#70,2001006#175|2001007#175|2001008#175|2001009#175,2049005#60 | Y56: 60049#41#42#61000 | Z56: 60049 | AA56: 41 | AB56: 42 | AC56: 61000
E57: 1#2050001|2#2050002 | F57: 2050001 | G57: 2050002 | H57: 5#3 | I57: 1#10000 | K57: 2050003#10000,2050004#10000,2050005#10000,2001009#10000 | L57: 2050003 | M57: 2050004 | N57: 2050005 | O57: 2001006 | P57: 2001007 | Q57: 2001008 | R57: 2001009 | S57: 0 | T57: 1 | U57: 2050003#10000 | V57: 2001006#175|2001007#175|2001008#175|2001009#175 | X57: 2050003#10000 | Y57: 60050#41#42#61000 | Z57: 60050 | AA57: 41 | AB57: 42 | AC57: 61000
E58: 1#2051001|2#2051002 | F58: 2051001 | G58: 2051002 | H58: 5#3 | I58: 1#8000|2#700|3#700|4#600 | K58: 2051003#10000,2051004#10000,2051005#10000,2001009#10000 | L58: 2051003 | M58: 2051004 | N58: 2051005 | O58: 2001006 | P58: 2001007 | Q58: 2001008 | R58: 2001009 | S58: 0.2 | T58: 0.8 | V58: 2001006#175|2001007#175|2001008#175|2001009#175 | W58: 2051003#8000,2051004#70,2001006#175|2001007#175|2001008#175|2001009#175,2051005#60 | X58: 2051003#8000,2051004#70,2001006#175|2001007#175|2001008#175|2001009#175,2051005#60 | Y58: 60051#41#42#61000 | Z58: 60051 | AA58: 41 | AB58: 42 | AC58: 61000
E59: 1#2052001|2#2052002 | F59: 2052001 | G59: 2052002 | H59: 5#3 | I59: 1#8000|2#700|3#700|4#600 | K59: 2052003#10000,2052004#10000,2052005#10000,2001009#10000 | L59: 2052003 | M59: 2052004 | N59: 2052005 | O59: 2001006 | P59: 2001007 | Q59: 2001008 | R59: 2001009 | S59: 0.2 | T59: 0.8 | V59: 2001006#175|2001007#175|2001008#175|2001009#175 | W59: 2052003#8000,2052004#70,2001006#175|2001007#175|2001008#175|2001009#175,2052005#60 | X59: 2052003#8000,2052004#70,2001006#175|2001007#175|2001008#175|2001009#175,2052005#60 | Y59: 60052#41#42#61000 | Z59: 60052 | AA59: 41 | AB59: 42 | AC59: 61000
E60: 1#2053001|2#2053002 | F60: 2053001 | G60: 2053002 | H60: 5#3 | I60: 1#8000|2#700|3#700|4#600 | K60: 2053003#10000,2053004#10000,2053005#10000,2001009#10000 | L60: 2053003 | M60: 2053004 | N60: 2053005 | O60: 2001006 | P60: 2001007 | Q60: 2001008 | R60: 2001009 | S60: 0.2 | T60: 0.8 | V60: 2001006#175|2001007#175|2001008#175|2001009#175 | W60: 2053003#8000,2053004#70,2001006#175|2001007#175|2001008#175|2001009#175,2053005#60 | X60: 2053003#8000,2053004#70,2001006#175|2001007#175|2001008#175|2001009#175,2053005#60 | Y60: 60053#41#42#61000 | Z60: 60053 | AA60: 41 | AB60: 42 | AC60: 61000
E61: 1#2054001|2#2054002 | F61: 2054001 | G61: 2054002 | H61: 5#3 | I61: 1#8000|2#700|3#700|4#600 | K61: 2054003#10000,2054004#10000,2054005#10000,2001009#10000 | L61: 2054003 | M61: 2054004 | N61: 2054005 | O61: 2001006 | P61: 2001007 | Q61: 2001008 | R61: 2001009 | S61: 0.2 | T61: 0.8 | V61: 2001006#175|2001007#175|2001008#175|2001009#175 | W61: 2054003#8000,2054004#70,2001006#175|2001007#175|2001008#175|2001009#175,2054005#60 | X61: 2054003#8000,2054004#70,2001006#175|2001007#175|2001008#175|2001009#175,2054005#60 | Y61: 60054#41#42#61000 | Z61: 60054 | AA61: 41 | AB61: 42 | AC61: 61000
E62: 1#2055001|2#2055002 | F62: 2055001 | G62: 2055002 | H62: 5#3 | I62: 1#10000 | K62: 2055003#10000,2055004#10000,2055005#10000,2001009#10000 | L62: 2055003 | M62: 2055004 | N62: 2055005 | O62: 2001006 | P62: 2001007 | Q62: 2001008 | R62: 2001009 | S62: 0 | T62: 1 | U62: 2055003#10000 | V62: 2001006#175|2001007#175|2001008#175|2001009#175 | X62: 2055003#10000 | Y62: 60055#41#42#61000 | Z62: 60055 | AA62: 41 | AB62: 42 | AC62: 61000
E63: 1#2056001|2#2056002 | F63: 2056001 | G63: 2056002 | H63: 5#3 | I63: 1#8000|2#700|3#700|4#600 | K63: 2056003#10000,2056004#10000,2056005#10000,2001009#10000 | L63: 2056003 | M63: 2056004 | N63: 2056005 | O63: 2001006 | P63: 2001007 | Q63: 2001008 | R63: 2001009 | S63: 0.2 | T63: 0.8 | V63: 2001006#175|2001007#175|2001008#175|2001009#175 | W63: 2056003#8000,2056004#70,2001006#175|2001007#175|2001008#175|2001009#175,2056005#60 | X63: 2056003#8000,2056004#70,2001006#175|2001007#175|2001008#175|2001009#175,2056005#60 | Y63: 60056#41#42#61000 | Z63: 60056 | AA63: 41 | AB63: 42 | AC63: 61000
E64: 1#2057001|2#2057002 | F64: 2057001 | G64: 2057002 | H64: 5#3 | I64: 1#8000|2#700|3#700|4#600 | K64: 2057003#10000,2057004#10000,2057005#10000,2001009#10000 | L64: 2057003 | M64: 2057004 | N64: 2057005 | O64: 2001006 | P64: 2001007 | Q64: 2001008 | R64: 2001009 | S64: 0.2 | T64: 0.8 | V64: 2001006#175|2001007#175|2001008#175|2001009#175 | W64: 2057003#8000,2057004#70,2001006#175|2001007#175|2001008#175|2001009#175,2057005#60 | X64: 2057003#8000,2057004#70,2001006#175|2001007#175|2001008#175|2001009#175,2057005#60 | Y64: 60057#41#42#61000 | Z64: 60057 | AA64: 41 | AB64: 42 | AC64: 61000
E65: 1#2058001|2#2058002 | F65: 2058001 | G65: 2058002 | H65: 5#3 | I65: 1#8000|2#700|3#700|4#600 | K65: 2058003#10000,2058004#10000,2058005#10000,2001009#10000 | L65: 2058003 | M65: 2058004 | N65: 2058005 | O65: 2001006 | P65: 2001007 | Q65: 2001008 | R65: 2001009 | S65: 0.2 | T65: 0.8 | V65: 2001006#175|2001007#175|2001008#175|2001009#175 | W65: 2058003#8000,2058004#70,2001006#175|2001007#175|2001008#175|2001009#175,2058005#60 | X65: 2058003#8000,2058004#70,2001006#175|2001007#175|2001008#175|2001009#175,2058005#60 | Y65: 60058#41#42#61000 | Z65: 60058 | AA65: 41 | AB65: 42 | AC65: 61000
E66: 1#2059001|2#2059002 | F66: 2059001 | G66: 2059002 | H66: 5#3 | I66: 1#8000|2#700|3#700|4#600 | K66: 2059003#10000,2059004#10000,2059005#10000,2001009#10000 | L66: 2059003 | M66: 2059004 | N66: 2059005 | O66: 2001006 | P66: 2001007 | Q66: 2001008 | R66: 2001009 | S66: 0.2 | T66: 0.8 | V66: 2001006#175|2001007#175|2001008#175|2001009#175 | W66: 2059003#8000,2059004#70,2001006#175|2001007#175|2001008#175|2001009#175,2059005#60 | X66: 2059003#8000,2059004#70,2001006#175|2001007#175|2001008#175|2001009#175,2059005#60 | Y66: 60059#41#42#61000 | Z66: 60059 | AA66: 41 | AB66: 42 | AC66: 61000
E67: 1#2060001|2#2060002 | F67: 2060001 | G67: 2060002 | H67: 5#3 | I67: 1#10000 | K67: 2060003#10000,2060004#10000,2060005#10000,2001009#10000 | L67: 2060003 | M67: 2060004 | N67: 2060005 | O67: 2001006 | P67: 2001007 | Q67: 2001008 | R67: 2001009 | S67: 0 | T67: 1 | U67: 2060003#10000 | V67: 2001006#175|2001007#175|2001008#175|2001009#175 | X67: 2060003#10000 | Y67: 60060#41#42#61000 | Z67: 60060 | AA67: 41 | AB67: 42 | AC67: 61000
E68: 1#2061001|2#2061002 | F68: 2061001 | G68: 2061002 | H68: 5#3 | I68: 1#8000|2#700|3#700|4#600 | K68: 2061003#10000,2061004#10000,2061005#10000,2001009#10000 | L68: 2061003 | M68: 2061004 | N68: 2061005 | O68: 2001006 | P68: 2001007 | Q68: 2001008 | R68: 2001009 | S68: 0.2 | T68: 0.8 | V68: 2001006#175|2001007#175|2001008#175|2001009#175 | W68: 2061003#8000,2061004#70,2001006#175|2001007#175|2001008#175|2001009#175,2061005#60 | X68: 2061003#8000,2061004#70,2001006#175|2001007#175|2001008#175|2001009#175,2061005#60 | Y68: 60061#41#42#61000 | Z68: 60061 | AA68: 41 | AB68: 42 | AC68: 61000
E69: 1#2062001|2#2062002 | F69: 2062001 | G69: 2062002 | H69: 5#3 | I69: 1#8000|2#700|3#700|4#600 | K69: 2062003#10000,2062004#10000,2062005#10000,2001009#10000 | L69: 2062003 | M69: 2062004 | N69: 2062005 | O69: 2001006 | P69: 2001007 | Q69: 2001008 | R69: 2001009 | S69: 0.2 | T69: 0.8 | V69: 2001006#175|2001007#175|2001008#175|2001009#175 | W69: 2062003#8000,2062004#70,2001006#175|2001007#175|2001008#175|2001009#175,2062005#60 | X69: 2062003#8000,2062004#70,2001006#175|2001007#175|2001008#175|2001009#175,2062005#60 | Y69: 60062#41#42#61000 | Z69: 60062 | AA69: 41 | AB69: 42 | AC69: 61000
E70: 1#2063001|2#2063002 | F70: 2063001 | G70: 2063002 | H70: 5#3 | I70: 1#8000|2#700|3#700|4#600 | K70: 2063003#10000,2063004#10000,2063005#10000,2001009#10000 | L70: 2063003 | M70: 2063004 | N70: 2063005 | O70: 2001006 | P70: 2001007 | Q70: 2001008 | R70: 2001009 | S70: 0.2 | T70: 0.8 | V70: 2001006#175|2001007#175|2001008#175|2001009#175 | W70: 2063003#8000,2063004#70,2001006#175|2001007#175|2001008#175|2001009#175,2063005#60 | X70: 2063003#8000,2063004#70,2001006#175|2001007#175|2001008#175|2001009#175,2063005#60 | Y70: 60063#41#42#61000 | Z70: 60063 | AA70: 41 | AB70: 42 | AC70: 61000
E71: 1#2064001|2#2064002 | F71: 2064001 | G71: 2064002 | H71: 5#3 | I71: 1#8000|2#700|3#700|4#600 | K71: 2064003#10000,2064004#10000,2064005#10000,2001009#10000 | L71: 2064003 | M71: 2064004 | N71: 2064005 | O71: 2001006 | P71: 2001007 | Q71: 2001008 | R71: 2001009 | S71: 0.2 | T71: 0.8 | V71: 2001006#175|2001007#175|2001008#175|2001009#175 | W71: 2064003#8000,2064004#70,2001006#175|2001007#175|2001008#175|2001009#175,2064005#60 | X71: 2064003#8000,2064004#70,2001006#175|2001007#175|2001008#175|2001009#175,2064005#60 | Y71: 60064#41#42#61000 | Z71: 60064 | AA71: 41 | AB71: 42 | AC71: 61000
E72: 1#2065001|2#2065002 | F72: 2065001 | G72: 2065002 | H72: 5#3 | I72: 1#10000 | K72: 2065003#10000,2065004#10000,2065005#10000,2001009#10000 | L72: 2065003 | M72: 2065004 | N72: 2065005 | O72: 2001006 | P72: 2001007 | Q72: 2001008 | R72: 2001009 | S72: 0 | T72: 1 | U72: 2065003#10000 | V72: 2001006#175|2001007#175|2001008#175|2001009#175 | X72: 2065003#10000 | Y72: 60065#41#42#61000 | Z72: 60065 | AA72: 41 | AB72: 42 | AC72: 61000
E73: 1#2066001|2#2066002 | F73: 2066001 | G73: 2066002 | H73: 5#3 | I73: 1#8000|2#700|3#700|4#600 | K73: 2066003#10000,2066004#10000,2066005#10000,2001009#10000 | L73: 2066003 | M73: 2066004 | N73: 2066005 | O73: 2001006 | P73: 2001007 | Q73: 2001008 | R73: 2001009 | S73: 0.2 | T73: 0.8 | U73: =IF(S73=0,L73&"#"&$L$4,"") ->  | V73: =O73&"#"&$Q$6&"|"&P73&"#"&$Q$6&"|"&Q73&"#"&$Q$6&"|"&R73&"#"&$Q$6 -> 2001006#175|2001007#175|2001008#175|2001009#175 | W73: =IF(S73=0,"",L73&"#"&T73*10000&","&M73&"#"&70&","&V73&","&N73&"#"&60) -> 2066003#8000,2066004#70,2001006#175|2001007#175|2001008#175|2001009#175,2066005#60 | X73: =_xlfn.TEXTJOIN("",TRUE,U73,W73) -> 2066003#8000,2066004#70,2001006#175|2001007#175|2001008#175|2001009#175,2066005#60 | Y73: 60066#41#42#61000 | Z73: 60066 | AA73: 41 | AB73: 42 | AC73: 61000
E74: 1#2067001|2#2067002 | F74: 2067001 | G74: 2067002 | H74: 5#3 | I74: 1#8000|2#700|3#700|4#600 | K74: 2067003#10000,2067004#10000,2067005#10000,2001009#10000 | L74: 2067003 | M74: 2067004 | N74: 2067005 | O74: =O73 -> 2001006 | P74: =P73 -> 2001007 | Q74: =Q73 -> 2001008 | R74: =R73 -> 2001009 | S74: 0.2 | T74: 0.8 | V74: 2001006#175|2001007#175|2001008#175|2001009#175 | W74: 2067003#8000,2067004#70,2001006#175|2001007#175|2001008#175|2001009#175,2067005#60 | X74: 2067003#8000,2067004#70,2001006#175|2001007#175|2001008#175|2001009#175,2067005#60 | Y74: =_xlfn.TEXTJOIN("#",TRUE,Z74:AC74) -> 60067#41#42#61000 | Z74: =Z73+1 -> 60067 | AA74: =AA73 -> 41 | AB74: =AB73 -> 42 | AC74: =AC73 -> 61000
E75: 1#2068001|2#2068002 | F75: 2068001 | G75: 2068002 | H75: 5#3 | I75: 1#8000|2#700|3#700|4#600 | K75: 2068003#10000,2068004#10000,2068005#10000,2001009#10000 | L75: 2068003 | M75: 2068004 | N75: 2068005 | O75: 2001006 | P75: 2001007 | Q75: 2001008 | R75: 2001009 | S75: 0.2 | T75: 0.8 | V75: 2001006#175|2001007#175|2001008#175|2001009#175 | W75: 2068003#8000,2068004#70,2001006#175|2001007#175|2001008#175|2001009#175,2068005#60 | X75: 2068003#8000,2068004#70,2001006#175|2001007#175|2001008#175|2001009#175,2068005#60 | Y75: 60068#41#42#61000 | Z75: 60068 | AA75: 41 | AB75: 42 | AC75: 61000
E76: 1#2069001|2#2069002 | F76: 2069001 | G76: 2069002 | H76: 5#3 | I76: 1#8000|2#700|3#700|4#600 | K76: 2069003#10000,2069004#10000,2069005#10000,2001009#10000 | L76: 2069003 | M76: 2069004 | N76: 2069005 | O76: 2001006 | P76: 2001007 | Q76: 2001008 | R76: 2001009 | S76: 0.2 | T76: 0.8 | V76: 2001006#175|2001007#175|2001008#175|2001009#175 | W76: 2069003#8000,2069004#70,2001006#175|2001007#175|2001008#175|2001009#175,2069005#60 | X76: 2069003#8000,2069004#70,2001006#175|2001007#175|2001008#175|2001009#175,2069005#60 | Y76: 60069#41#42#61000 | Z76: 60069 | AA76: 41 | AB76: 42 | AC76: 61000
E77: =$A$4&"#"&F77&"|"&$B$4&"#"&G77 -> 1#2070001|2#2070002 | F77: =F76+1000 -> 2070001 | G77: =G76+1000 -> 2070002 | H77: 5#3 | I77: 1#10000 | K77: =L77&"#"&$L$4&","&M77&"#"&$L$4&","&N77&"#"&$L$4&","&R77&"#"&$L$4 -> 2070003#10000,2070004#10000,2070005#10000,2001009#10000 | L77: =L76+1000 -> 2070003 | M77: =M76+1000 -> 2070004 | N77: =N76+1000 -> 2070005 | O77: 2001006 | P77: 2001007 | Q77: 2001008 | R77: 2001009 | S77: 0 | T77: 1 | U77: 2070003#10000 | V77: 2001006#175|2001007#175|2001008#175|2001009#175 | X77: 2070003#10000 | Y77: 60070#41#42#61000 | Z77: 60070 | AA77: 41 | AB77: 42 | AC77: 61000
E78: 1#2071001|2#2071002 | F78: 2071001 | G78: 2071002 | H78: 5#3 | I78: =I73 -> 1#8000|2#700|3#700|4#600 | K78: 2071003#10000,2071004#10000,2071005#10000,2001009#10000 | L78: 2071003 | M78: 2071004 | N78: 2071005 | O78: 2001006 | P78: 2001007 | Q78: 2001008 | R78: 2001009 | S78: 0.2 | T78: 0.8 | V78: 2001006#175|2001007#175|2001008#175|2001009#175 | W78: 2071003#8000,2071004#70,2001006#175|2001007#175|2001008#175|2001009#175,2071005#60 | X78: 2071003#8000,2071004#70,2001006#175|2001007#175|2001008#175|2001009#175,2071005#60 | Y78: 60071#41#42#61000 | Z78: 60071 | AA78: 41 | AB78: 42 | AC78: 61000
E79: 1#2072001|2#2072002 | F79: 2072001 | G79: 2072002 | H79: 5#3 | I79: 1#8000|2#700|3#700|4#600 | K79: 2072003#10000,2072004#10000,2072005#10000,2001009#10000 | L79: 2072003 | M79: 2072004 | N79: 2072005 | O79: 2001006 | P79: 2001007 | Q79: 2001008 | R79: 2001009 | S79: 0.2 | T79: 0.8 | V79: 2001006#175|2001007#175|2001008#175|2001009#175 | W79: 2072003#8000,2072004#70,2001006#175|2001007#175|2001008#175|2001009#175,2072005#60 | X79: 2072003#8000,2072004#70,2001006#175|2001007#175|2001008#175|2001009#175,2072005#60 | Y79: 60072#41#42#61000 | Z79: 60072 | AA79: 41 | AB79: 42 | AC79: 61000
E80: 1#2073001|2#2073002 | F80: 2073001 | G80: 2073002 | H80: 5#3 | I80: 1#8000|2#700|3#700|4#600 | K80: 2073003#10000,2073004#10000,2073005#10000,2001009#10000 | L80: 2073003 | M80: 2073004 | N80: 2073005 | O80: 2001006 | P80: 2001007 | Q80: 2001008 | R80: 2001009 | S80: 0.2 | T80: 0.8 | V80: 2001006#175|2001007#175|2001008#175|2001009#175 | W80: 2073003#8000,2073004#70,2001006#175|2001007#175|2001008#175|2001009#175,2073005#60 | X80: 2073003#8000,2073004#70,2001006#175|2001007#175|2001008#175|2001009#175,2073005#60 | Y80: 60073#41#42#61000 | Z80: 60073 | AA80: 41 | AB80: 42 | AC80: 61000
E81: 1#2074001|2#2074002 | F81: 2074001 | G81: 2074002 | H81: 5#3 | I81: 1#8000|2#700|3#700|4#600 | K81: 2074003#10000,2074004#10000,2074005#10000,2001009#10000 | L81: 2074003 | M81: 2074004 | N81: 2074005 | O81: 2001006 | P81: 2001007 | Q81: 2001008 | R81: 2001009 | S81: 0.2 | T81: 0.8 | V81: 2001006#175|2001007#175|2001008#175|2001009#175 | W81: 2074003#8000,2074004#70,2001006#175|2001007#175|2001008#175|2001009#175,2074005#60 | X81: 2074003#8000,2074004#70,2001006#175|2001007#175|2001008#175|2001009#175,2074005#60 | Y81: 60074#41#42#61000 | Z81: 60074 | AA81: 41 | AB81: 42 | AC81: 61000
E82: 1#2075001|2#2075002 | F82: 2075001 | G82: 2075002 | H82: 5#3 | I82: 1#10000 | K82: 2075003#10000,2075004#10000,2075005#10000,2001009#10000 | L82: 2075003 | M82: 2075004 | N82: 2075005 | O82: 2001006 | P82: 2001007 | Q82: 2001008 | R82: 2001009 | S82: 0 | T82: 1 | U82: 2075003#10000 | V82: 2001006#175|2001007#175|2001008#175|2001009#175 | X82: 2075003#10000 | Y82: 60075#41#42#61000 | Z82: 60075 | AA82: 41 | AB82: 42 | AC82: 61000
E83: 1#2076001|2#2076002 | F83: 2076001 | G83: 2076002 | H83: 5#3 | I83: 1#8000|2#700|3#700|4#600 | K83: 2076003#10000,2076004#10000,2076005#10000,2001009#10000 | L83: 2076003 | M83: 2076004 | N83: 2076005 | O83: 2001006 | P83: 2001007 | Q83: 2001008 | R83: 2001009 | S83: 0.2 | T83: 0.8 | V83: 2001006#175|2001007#175|2001008#175|2001009#175 | W83: 2076003#8000,2076004#70,2001006#175|2001007#175|2001008#175|2001009#175,2076005#60 | X83: 2076003#8000,2076004#70,2001006#175|2001007#175|2001008#175|2001009#175,2076005#60 | Y83: 60076#41#42#61000 | Z83: 60076 | AA83: 41 | AB83: 42 | AC83: 61000
E84: 1#2077001|2#2077002 | F84: 2077001 | G84: 2077002 | H84: 5#3 | I84: 1#8000|2#700|3#700|4#600 | K84: 2077003#10000,2077004#10000,2077005#10000,2001009#10000 | L84: 2077003 | M84: 2077004 | N84: 2077005 | O84: 2001006 | P84: 2001007 | Q84: 2001008 | R84: 2001009 | S84: 0.2 | T84: 0.8 | V84: 2001006#175|2001007#175|2001008#175|2001009#175 | W84: 2077003#8000,2077004#70,2001006#175|2001007#175|2001008#175|2001009#175,2077005#60 | X84: 2077003#8000,2077004#70,2001006#175|2001007#175|2001008#175|2001009#175,2077005#60 | Y84: 60077#41#42#61000 | Z84: 60077 | AA84: 41 | AB84: 42 | AC84: 61000
E85: 1#2078001|2#2078002 | F85: 2078001 | G85: 2078002 | H85: 5#3 | I85: 1#8000|2#700|3#700|4#600 | K85: 2078003#10000,2078004#10000,2078005#10000,2001009#10000 | L85: 2078003 | M85: 2078004 | N85: 2078005 | O85: 2001006 | P85: 2001007 | Q85: 2001008 | R85: 2001009 | S85: 0.2 | T85: 0.8 | V85: 2001006#175|2001007#175|2001008#175|2001009#175 | W85: 2078003#8000,2078004#70,2001006#175|2001007#175|2001008#175|2001009#175,2078005#60 | X85: 2078003#8000,2078004#70,2001006#175|2001007#175|2001008#175|2001009#175,2078005#60 | Y85: 60078#41#42#61000 | Z85: 60078 | AA85: 41 | AB85: 42 | AC85: 61000
E86: 1#2079001|2#2079002 | F86: 2079001 | G86: 2079002 | H86: 5#3 | I86: 1#8000|2#700|3#700|4#600 | K86: 2079003#10000,2079004#10000,2079005#10000,2001009#10000 | L86: 2079003 | M86: 2079004 | N86: 2079005 | O86: 2001006 | P86: 2001007 | Q86: 2001008 | R86: 2001009 | S86: 0.2 | T86: 0.8 | V86: 2001006#175|2001007#175|2001008#175|2001009#175 | W86: 2079003#8000,2079004#70,2001006#175|2001007#175|2001008#175|2001009#175,2079005#60 | X86: 2079003#8000,2079004#70,2001006#175|2001007#175|2001008#175|2001009#175,2079005#60 | Y86: 60079#41#42#61000 | Z86: 60079 | AA86: 41 | AB86: 42 | AC86: 61000
E87: 1#2080001|2#2080002 | F87: 2080001 | G87: 2080002 | H87: 5#3 | I87: 1#10000 | K87: 2080003#10000,2080004#10000,2080005#10000,2001009#10000 | L87: 2080003 | M87: 2080004 | N87: 2080005 | O87: 2001006 | P87: 2001007 | Q87: 2001008 | R87: 2001009 | S87: 0 | T87: 1 | U87: 2080003#10000 | V87: 2001006#175|2001007#175|2001008#175|2001009#175 | X87: 2080003#10000 | Y87: 60080#41#42#61000 | Z87: 60080 | AA87: 41 | AB87: 42 | AC87: 61000
E88: 1#2081001|2#2081002 | F88: 2081001 | G88: 2081002 | H88: 5#3 | I88: 1#8000|2#700|3#700|4#600 | K88: 2081003#10000,2081004#10000,2081005#10000,2001009#10000 | L88: 2081003 | M88: 2081004 | N88: 2081005 | O88: 2001006 | P88: 2001007 | Q88: 2001008 | R88: 2001009 | S88: 0.2 | T88: 0.8 | V88: 2001006#175|2001007#175|2001008#175|2001009#175 | W88: 2081003#8000,2081004#70,2001006#175|2001007#175|2001008#175|2001009#175,2081005#60 | X88: 2081003#8000,2081004#70,2001006#175|2001007#175|2001008#175|2001009#175,2081005#60 | Y88: 60081#41#42#61000 | Z88: 60081 | AA88: 41 | AB88: 42 | AC88: 61000
E89: 1#2082001|2#2082002 | F89: 2082001 | G89: 2082002 | H89: 5#3 | I89: 1#8000|2#700|3#700|4#600 | K89: 2082003#10000,2082004#10000,2082005#10000,2001009#10000 | L89: 2082003 | M89: 2082004 | N89: 2082005 | O89: 2001006 | P89: 2001007 | Q89: 2001008 | R89: 2001009 | S89: 0.2 | T89: 0.8 | V89: 2001006#175|2001007#175|2001008#175|2001009#175 | W89: 2082003#8000,2082004#70,2001006#175|2001007#175|2001008#175|2001009#175,2082005#60 | X89: 2082003#8000,2082004#70,2001006#175|2001007#175|2001008#175|2001009#175,2082005#60 | Y89: 60082#41#42#61000 | Z89: 60082 | AA89: 41 | AB89: 42 | AC89: 61000
E90: 1#2083001|2#2083002 | F90: 2083001 | G90: 2083002 | H90: 5#3 | I90: 1#8000|2#700|3#700|4#600 | K90: 2083003#10000,2083004#10000,2083005#10000,2001009#10000 | L90: 2083003 | M90: 2083004 | N90: 2083005 | O90: 2001006 | P90: 2001007 | Q90: 2001008 | R90: 2001009 | S90: 0.2 | T90: 0.8 | V90: 2001006#175|2001007#175|2001008#175|2001009#175 | W90: 2083003#8000,2083004#70,2001006#175|2001007#175|2001008#175|2001009#175,2083005#60 | X90: 2083003#8000,2083004#70,2001006#175|2001007#175|2001008#175|2001009#175,2083005#60 | Y90: 60083#41#42#61000 | Z90: 60083 | AA90: 41 | AB90: 42 | AC90: 61000
E91: 1#2084001|2#2084002 | F91: 2084001 | G91: 2084002 | H91: 5#3 | I91: 1#8000|2#700|3#700|4#600 | K91: 2084003#10000,2084004#10000,2084005#10000,2001009#10000 | L91: 2084003 | M91: 2084004 | N91: 2084005 | O91: 2001006 | P91: 2001007 | Q91: 2001008 | R91: 2001009 | S91: 0.2 | T91: 0.8 | V91: 2001006#175|2001007#175|2001008#175|2001009#175 | W91: 2084003#8000,2084004#70,2001006#175|2001007#175|2001008#175|2001009#175,2084005#60 | X91: 2084003#8000,2084004#70,2001006#175|2001007#175|2001008#175|2001009#175,2084005#60 | Y91: 60084#41#42#61000 | Z91: 60084 | AA91: 41 | AB91: 42 | AC91: 61000
E92: 1#2085001|2#2085002 | F92: 2085001 | G92: 2085002 | H92: 5#3 | I92: 1#10000 | K92: 2085003#10000,2085004#10000,2085005#10000,2001009#10000 | L92: 2085003 | M92: 2085004 | N92: 2085005 | O92: 2001006 | P92: 2001007 | Q92: 2001008 | R92: 2001009 | S92: 0 | T92: 1 | U92: 2085003#10000 | V92: 2001006#175|2001007#175|2001008#175|2001009#175 | X92: 2085003#10000 | Y92: 60085#41#42#61000 | Z92: 60085 | AA92: 41 | AB92: 42 | AC92: 61000
E93: 1#2086001|2#2086002 | F93: 2086001 | G93: 2086002 | H93: 5#3 | I93: 1#8000|2#700|3#700|4#600 | K93: 2086003#10000,2086004#10000,2086005#10000,2001009#10000 | L93: 2086003 | M93: 2086004 | N93: 2086005 | O93: 2001006 | P93: 2001007 | Q93: 2001008 | R93: 2001009 | S93: 0.2 | T93: 0.8 | V93: 2001006#175|2001007#175|2001008#175|2001009#175 | W93: 2086003#8000,2086004#70,2001006#175|2001007#175|2001008#175|2001009#175,2086005#60 | X93: 2086003#8000,2086004#70,2001006#175|2001007#175|2001008#175|2001009#175,2086005#60 | Y93: 60086#41#42#61000 | Z93: 60086 | AA93: 41 | AB93: 42 | AC93: 61000
E94: 1#2087001|2#2087002 | F94: 2087001 | G94: 2087002 | H94: 5#3 | I94: 1#8000|2#700|3#700|4#600 | K94: 2087003#10000,2087004#10000,2087005#10000,2001009#10000 | L94: 2087003 | M94: 2087004 | N94: 2087005 | O94: 2001006 | P94: 2001007 | Q94: 2001008 | R94: 2001009 | S94: 0.2 | T94: 0.8 | V94: 2001006#175|2001007#175|2001008#175|2001009#175 | W94: 2087003#8000,2087004#70,2001006#175|2001007#175|2001008#175|2001009#175,2087005#60 | X94: 2087003#8000,2087004#70,2001006#175|2001007#175|2001008#175|2001009#175,2087005#60 | Y94: 60087#41#42#61000 | Z94: 60087 | AA94: 41 | AB94: 42 | AC94: 61000
E95: 1#2088001|2#2088002 | F95: 2088001 | G95: 2088002 | H95: 5#3 | I95: 1#8000|2#700|3#700|4#600 | K95: 2088003#10000,2088004#10000,2088005#10000,2001009#10000 | L95: 2088003 | M95: 2088004 | N95: 2088005 | O95: 2001006 | P95: 2001007 | Q95: 2001008 | R95: 2001009 | S95: 0.2 | T95: 0.8 | V95: 2001006#175|2001007#175|2001008#175|2001009#175 | W95: 2088003#8000,2088004#70,2001006#175|2001007#175|2001008#175|2001009#175,2088005#60 | X95: 2088003#8000,2088004#70,2001006#175|2001007#175|2001008#175|2001009#175,2088005#60 | Y95: 60088#41#42#61000 | Z95: 60088 | AA95: 41 | AB95: 42 | AC95: 61000
E96: 1#2089001|2#2089002 | F96: 2089001 | G96: 2089002 | H96: 5#3 | I96: 1#8000|2#700|3#700|4#600 | K96: 2089003#10000,2089004#10000,2089005#10000,2001009#10000 | L96: 2089003 | M96: 2089004 | N96: 2089005 | O96: 2001006 | P96: 2001007 | Q96: 2001008 | R96: 2001009 | S96: 0.2 | T96: 0.8 | V96: 2001006#175|2001007#175|2001008#175|2001009#175 | W96: 2089003#8000,2089004#70,2001006#175|2001007#175|2001008#175|2001009#175,2089005#60 | X96: 2089003#8000,2089004#70,2001006#175|2001007#175|2001008#175|2001009#175,2089005#60 | Y96: 60089#41#42#61000 | Z96: 60089 | AA96: 41 | AB96: 42 | AC96: 61000
E97: 1#2090001|2#2090002 | F97: 2090001 | G97: 2090002 | H97: 5#3 | I97: 1#10000 | K97: 2090003#10000,2090004#10000,2090005#10000,2001009#10000 | L97: 2090003 | M97: 2090004 | N97: 2090005 | O97: 2001006 | P97: 2001007 | Q97: 2001008 | R97: 2001009 | S97: 0 | T97: 1 | U97: 2090003#10000 | V97: 2001006#175|2001007#175|2001008#175|2001009#175 | X97: 2090003#10000 | Y97: 60090#41#42#61000 | Z97: 60090 | AA97: 41 | AB97: 42 | AC97: 61000
E98: 1#2091001|2#2091002 | F98: 2091001 | G98: 2091002 | H98: 5#3 | I98: 1#8000|2#700|3#700|4#600 | K98: 2091003#10000,2091004#10000,2091005#10000,2001009#10000 | L98: 2091003 | M98: 2091004 | N98: 2091005 | O98: 2001006 | P98: 2001007 | Q98: 2001008 | R98: 2001009 | S98: 0.2 | T98: 0.8 | V98: 2001006#175|2001007#175|2001008#175|2001009#175 | W98: 2091003#8000,2091004#70,2001006#175|2001007#175|2001008#175|2001009#175,2091005#60 | X98: 2091003#8000,2091004#70,2001006#175|2001007#175|2001008#175|2001009#175,2091005#60 | Y98: 60091#41#42#61000 | Z98: 60091 | AA98: 41 | AB98: 42 | AC98: 61000
E99: 1#2092001|2#2092002 | F99: 2092001 | G99: 2092002 | H99: 5#3 | I99: 1#8000|2#700|3#700|4#600 | K99: 2092003#10000,2092004#10000,2092005#10000,2001009#10000 | L99: 2092003 | M99: 2092004 | N99: 2092005 | O99: 2001006 | P99: 2001007 | Q99: 2001008 | R99: 2001009 | S99: 0.2 | T99: 0.8 | V99: 2001006#175|2001007#175|2001008#175|2001009#175 | W99: 2092003#8000,2092004#70,2001006#175|2001007#175|2001008#175|2001009#175,2092005#60 | X99: 2092003#8000,2092004#70,2001006#175|2001007#175|2001008#175|2001009#175,2092005#60 | Y99: 60092#41#42#61000 | Z99: 60092 | AA99: 41 | AB99: 42 | AC99: 61000
E100: 1#2093001|2#2093002 | F100: 2093001 | G100: 2093002 | H100: 5#3 | I100: 1#8000|2#700|3#700|4#600 | K100: 2093003#10000,2093004#10000,2093005#10000,2001009#10000 | L100: 2093003 | M100: 2093004 | N100: 2093005 | O100: 2001006 | P100: 2001007 | Q100: 2001008 | R100: 2001009 | S100: 0.2 | T100: 0.8 | V100: 2001006#175|2001007#175|2001008#175|2001009#175 | W100: 2093003#8000,2093004#70,2001006#175|2001007#175|2001008#175|2001009#175,2093005#60 | X100: 2093003#8000,2093004#70,2001006#175|2001007#175|2001008#175|2001009#175,2093005#60 | Y100: 60093#41#42#61000 | Z100: 60093 | AA100: 41 | AB100: 42 | AC100: 61000
E101: 1#2094001|2#2094002 | F101: 2094001 | G101: 2094002 | H101: 5#3 | I101: 1#8000|2#700|3#700|4#600 | K101: 2094003#10000,2094004#10000,2094005#10000,2001009#10000 | L101: 2094003 | M101: 2094004 | N101: 2094005 | O101: 2001006 | P101: 2001007 | Q101: 2001008 | R101: 2001009 | S101: 0.2 | T101: 0.8 | V101: 2001006#175|2001007#175|2001008#175|2001009#175 | W101: 2094003#8000,2094004#70,2001006#175|2001007#175|2001008#175|2001009#175,2094005#60 | X101: 2094003#8000,2094004#70,2001006#175|2001007#175|2001008#175|2001009#175,2094005#60 | Y101: 60094#41#42#61000 | Z101: 60094 | AA101: 41 | AB101: 42 | AC101: 61000
E102: 1#2095001|2#2095002 | F102: 2095001 | G102: 2095002 | H102: 5#3 | I102: 1#10000 | K102: 2095003#10000,2095004#10000,2095005#10000,2001009#10000 | L102: 2095003 | M102: 2095004 | N102: 2095005 | O102: 2001006 | P102: 2001007 | Q102: 2001008 | R102: 2001009 | S102: 0 | T102: 1 | U102: 2095003#10000 | V102: 2001006#175|2001007#175|2001008#175|2001009#175 | X102: 2095003#10000 | Y102: 60095#41#42#61000 | Z102: 60095 | AA102: 41 | AB102: 42 | AC102: 61000
E103: 1#2096001|2#2096002 | F103: 2096001 | G103: 2096002 | H103: 5#3 | I103: 1#8000|2#700|3#700|4#600 | K103: 2096003#10000,2096004#10000,2096005#10000,2001009#10000 | L103: 2096003 | M103: 2096004 | N103: 2096005 | O103: 2001006 | P103: 2001007 | Q103: 2001008 | R103: 2001009 | S103: 0.2 | T103: 0.8 | V103: 2001006#175|2001007#175|2001008#175|2001009#175 | W103: 2096003#8000,2096004#70,2001006#175|2001007#175|2001008#175|2001009#175,2096005#60 | X103: 2096003#8000,2096004#70,2001006#175|2001007#175|2001008#175|2001009#175,2096005#60 | Y103: 60096#41#42#61000 | Z103: 60096 | AA103: 41 | AB103: 42 | AC103: 61000
E104: 1#2097001|2#2097002 | F104: 2097001 | G104: 2097002 | H104: 5#3 | I104: 1#8000|2#700|3#700|4#600 | K104: 2097003#10000,2097004#10000,2097005#10000,2001009#10000 | L104: 2097003 | M104: 2097004 | N104: 2097005 | O104: 2001006 | P104: 2001007 | Q104: 2001008 | R104: 2001009 | S104: 0.2 | T104: 0.8 | V104: 2001006#175|2001007#175|2001008#175|2001009#175 | W104: 2097003#8000,2097004#70,2001006#175|2001007#175|2001008#175|2001009#175,2097005#60 | X104: 2097003#8000,2097004#70,2001006#175|2001007#175|2001008#175|2001009#175,2097005#60 | Y104: 60097#41#42#61000 | Z104: 60097 | AA104: 41 | AB104: 42 | AC104: 61000
E105: 1#2098001|2#2098002 | F105: 2098001 | G105: 2098002 | H105: 5#3 | I105: 1#8000|2#700|3#700|4#600 | K105: 2098003#10000,2098004#10000,2098005#10000,2001009#10000 | L105: 2098003 | M105: 2098004 | N105: 2098005 | O105: 2001006 | P105: 2001007 | Q105: 2001008 | R105: 2001009 | S105: 0.2 | T105: 0.8 | V105: 2001006#175|2001007#175|2001008#175|2001009#175 | W105: 2098003#8000,2098004#70,2001006#175|2001007#175|2001008#175|2001009#175,2098005#60 | X105: 2098003#8000,2098004#70,2001006#175|2001007#175|2001008#175|2001009#175,2098005#60 | Y105: 60098#41#42#61000 | Z105: 60098 | AA105: 41 | AB105: 42 | AC105: 61000
E106: 1#2099001|2#2099002 | F106: 2099001 | G106: 2099002 | H106: 5#3 | I106: 1#8000|2#700|3#700|4#600 | K106: 2099003#10000,2099004#10000,2099005#10000,2001009#10000 | L106: 2099003 | M106: 2099004 | N106: 2099005 | O106: =O105 -> 2001006 | P106: 2001007 | Q106: 2001008 | R106: 2001009 | S106: 0.2 | T106: 0.8 | V106: 2001006#175|2001007#175|2001008#175|2001009#175 | W106: 2099003#8000,2099004#70,2001006#175|2001007#175|2001008#175|2001009#175,2099005#60 | X106: 2099003#8000,2099004#70,2001006#175|2001007#175|2001008#175|2001009#175,2099005#60 | Y106: =_xlfn.TEXTJOIN("#",TRUE,Z106:AC106) -> 60099#41#42#61000 | Z106: =Z105+1 -> 60099 | AA106: =AA105 -> 41 | AB106: =AB105 -> 42 | AC106: =AC105 -> 61000
E107: 1#2100001|2#2100002 | F107: 2100001 | G107: 2100002 | H107: 5#3 | I107: 1#10000 | K107: 2100003#10000,2100004#10000,2100005#10000,2001009#10000 | L107: 2100003 | M107: 2100004 | N107: 2100005 | O107: 2001006 | P107: 2001007 | Q107: 2001008 | R107: 2001009 | S107: 0 | T107: 1 | U107: 2100003#10000 | V107: 2001006#175|2001007#175|2001008#175|2001009#175 | X107: 2100003#10000 | Y107: 60100#41#42#61000 | Z107: 60100 | AA107: 41 | AB107: 42 | AC107: 61000
E108: =$A$4&"#"&F108&"|"&$B$4&"#"&G108 -> 1#2101001|2#2101002 | F108: 2101001 | G108: 2101002 | H108: 5#3 | I108: 1#9000|2#300|3#400|4#300 | K108: =L108&"#"&$L$4&","&M108&"#"&$L$4&","&N108&"#"&$L$4&","&R108&"#"&$L$4 -> 2101003#10000,2101004#10000,2101005#10000,2001009#10000 | L108: =L107+1000 -> 2101003 | M108: =M107+1000 -> 2101004 | N108: =N107+1000 -> 2101005 | O108: =O107 -> 2001006 | P108: =P107 -> 2001007 | Q108: =Q107 -> 2001008 | R108: =R107 -> 2001009 | S108: 0.1 | T108: 0.9 | U108: =IF(S108=0,L108&"#"&$L$4,"") ->  | V108: =O108&"#"&$S$6&"|"&P108&"#"&$S$6&"|"&Q108&"#"&$S$6&"|"&R108&"#"&$S$6 -> 2001006#100|2001007#100|2001008#100|2001009#100 | W108: =IF(S108=0,"",L108&"#"&T108*10000&","&M108&"#"&$R$5*10000&","&V108&","&N108&"#"&$R$7*10000) -> 2101003#9000,2101004#300,2001006#100|2001007#100|2001008#100|2001009#100,2101005#300 | X108: =_xlfn.TEXTJOIN("",TRUE,U108,W108) -> 2101003#9000,2101004#300,2001006#100|2001007#100|2001008#100|2001009#100,2101005#300 | Y108: 60101#41#42#61000 | Z108: 60101 | AA108: 41 | AB108: 42 | AC108: 61000
E109: 1#2102001|2#2102002 | F109: 2102001 | G109: 2102002 | H109: 5#3 | I109: 1#9000|2#300|3#400|4#300 | K109: 2102003#10000,2102004#10000,2102005#10000,2001009#10000 | L109: 2102003 | M109: 2102004 | N109: 2102005 | O109: 2001006 | P109: 2001007 | Q109: 2001008 | R109: 2001009 | S109: 0.1 | T109: 0.9 | V109: =O109&"#"&$S$6&"|"&P109&"#"&$S$6&"|"&Q109&"#"&$S$6&"|"&R109&"#"&$S$6 -> 2001006#100|2001007#100|2001008#100|2001009#100 | W109: =IF(S109=0,"",L109&"#"&T109*10000&","&M109&"#"&$R$5*10000&","&V109&","&N109&"#"&$R$7*10000) -> 2102003#9000,2102004#300,2001006#100|2001007#100|2001008#100|2001009#100,2102005#300 | X109: 2102003#9000,2102004#300,2001006#100|2001007#100|2001008#100|2001009#100,2102005#300 | Y109: 60102#41#42#61000 | Z109: 60102 | AA109: 41 | AB109: 42 | AC109: 61000
E110: 1#2103001|2#2103002 | F110: 2103001 | G110: 2103002 | H110: 5#3 | I110: 1#9000|2#300|3#400|4#300 | K110: 2103003#10000,2103004#10000,2103005#10000,2001009#10000 | L110: 2103003 | M110: 2103004 | N110: 2103005 | O110: 2001006 | P110: 2001007 | Q110: 2001008 | R110: 2001009 | S110: 0.1 | T110: 0.9 | V110: 2001006#100|2001007#100|2001008#100|2001009#100 | W110: 2103003#9000,2103004#300,2001006#100|2001007#100|2001008#100|2001009#100,2103005#300 | X110: 2103003#9000,2103004#300,2001006#100|2001007#100|2001008#100|2001009#100,2103005#300 | Y110: 60103#41#42#61000 | Z110: 60103 | AA110: 41 | AB110: 42 | AC110: 61000
E111: 1#2104001|2#2104002 | F111: 2104001 | G111: 2104002 | H111: 5#3 | I111: 1#9000|2#300|3#400|4#300 | K111: 2104003#10000,2104004#10000,2104005#10000,2001009#10000 | L111: 2104003 | M111: 2104004 | N111: 2104005 | O111: 2001006 | P111: 2001007 | Q111: 2001008 | R111: 2001009 | S111: 0.1 | T111: 0.9 | V111: 2001006#100|2001007#100|2001008#100|2001009#100 | W111: 2104003#9000,2104004#300,2001006#100|2001007#100|2001008#100|2001009#100,2104005#300 | X111: 2104003#9000,2104004#300,2001006#100|2001007#100|2001008#100|2001009#100,2104005#300 | Y111: 60104#41#42#61000 | Z111: 60104 | AA111: 41 | AB111: 42 | AC111: 61000
E112: 1#2105001|2#2105002 | F112: =F111+1000 -> 2105001 | G112: =G111+1000 -> 2105002 | H112: 5#3 | I112: =I107 -> 1#10000 | K112: 2105003#10000,2105004#10000,2105005#10000,2001009#10000 | L112: 2105003 | M112: 2105004 | N112: 2105005 | O112: 2001006 | P112: 2001007 | Q112: 2001008 | R112: 2001009 | S112: 0 | T112: 1 | U112: 2105003#10000 | V112: 2001006#100|2001007#100|2001008#100|2001009#100 | X112: 2105003#10000 | Y112: 60105#41#42#61000 | Z112: 60105 | AA112: 41 | AB112: 42 | AC112: 61000
E113: 1#2106001|2#2106002 | F113: 2106001 | G113: 2106002 | H113: 5#3 | I113: 1#9000|2#300|3#400|4#300 | K113: 2106003#10000,2106004#10000,2106005#10000,2001009#10000 | L113: 2106003 | M113: 2106004 | N113: 2106005 | O113: 2001006 | P113: 2001007 | Q113: 2001008 | R113: 2001009 | S113: 0.1 | T113: 0.9 | V113: 2001006#100|2001007#100|2001008#100|2001009#100 | W113: 2106003#9000,2106004#300,2001006#100|2001007#100|2001008#100|2001009#100,2106005#300 | X113: 2106003#9000,2106004#300,2001006#100|2001007#100|2001008#100|2001009#100,2106005#300 | Y113: 60106#41#42#61000 | Z113: 60106 | AA113: 41 | AB113: 42 | AC113: 61000
E114: 1#2107001|2#2107002 | F114: 2107001 | G114: 2107002 | H114: 5#3 | I114: 1#9000|2#300|3#400|4#300 | K114: 2107003#10000,2107004#10000,2107005#10000,2001009#10000 | L114: 2107003 | M114: 2107004 | N114: 2107005 | O114: 2001006 | P114: 2001007 | Q114: 2001008 | R114: 2001009 | S114: 0.1 | T114: 0.9 | V114: 2001006#100|2001007#100|2001008#100|2001009#100 | W114: 2107003#9000,2107004#300,2001006#100|2001007#100|2001008#100|2001009#100,2107005#300 | X114: 2107003#9000,2107004#300,2001006#100|2001007#100|2001008#100|2001009#100,2107005#300 | Y114: 60107#41#42#61000 | Z114: 60107 | AA114: 41 | AB114: 42 | AC114: 61000
E115: 1#2108001|2#2108002 | F115: 2108001 | G115: 2108002 | H115: 5#3 | I115: 1#9000|2#300|3#400|4#300 | K115: 2108003#10000,2108004#10000,2108005#10000,2001009#10000 | L115: 2108003 | M115: 2108004 | N115: 2108005 | O115: 2001006 | P115: 2001007 | Q115: 2001008 | R115: 2001009 | S115: 0.1 | T115: 0.9 | V115: 2001006#100|2001007#100|2001008#100|2001009#100 | W115: 2108003#9000,2108004#300,2001006#100|2001007#100|2001008#100|2001009#100,2108005#300 | X115: 2108003#9000,2108004#300,2001006#100|2001007#100|2001008#100|2001009#100,2108005#300 | Y115: 60108#41#42#61000 | Z115: 60108 | AA115: 41 | AB115: 42 | AC115: 61000
E116: 1#2109001|2#2109002 | F116: 2109001 | G116: 2109002 | H116: 5#3 | I116: 1#9000|2#300|3#400|4#300 | K116: 2109003#10000,2109004#10000,2109005#10000,2001009#10000 | L116: 2109003 | M116: 2109004 | N116: 2109005 | O116: 2001006 | P116: 2001007 | Q116: 2001008 | R116: 2001009 | S116: 0.1 | T116: 0.9 | V116: 2001006#100|2001007#100|2001008#100|2001009#100 | W116: 2109003#9000,2109004#300,2001006#100|2001007#100|2001008#100|2001009#100,2109005#300 | X116: 2109003#9000,2109004#300,2001006#100|2001007#100|2001008#100|2001009#100,2109005#300 | Y116: 60109#41#42#61000 | Z116: 60109 | AA116: 41 | AB116: 42 | AC116: 61000
E117: 1#2110001|2#2110002 | F117: 2110001 | G117: 2110002 | H117: 5#3 | I117: 1#10000 | K117: 2110003#10000,2110004#10000,2110005#10000,2001009#10000 | L117: 2110003 | M117: 2110004 | N117: 2110005 | O117: 2001006 | P117: 2001007 | Q117: 2001008 | R117: 2001009 | S117: 0 | T117: 1 | U117: 2110003#10000 | V117: 2001006#100|2001007#100|2001008#100|2001009#100 | X117: 2110003#10000 | Y117: 60110#41#42#61000 | Z117: 60110 | AA117: 41 | AB117: 42 | AC117: 61000
E118: 1#2111001|2#2111002 | F118: =F117+1000 -> 2111001 | G118: =G117+1000 -> 2111002 | H118: 5#3 | I118: 1#9000|2#300|3#400|4#300 | K118: 2111003#10000,2111004#10000,2111005#10000,2001009#10000 | L118: 2111003 | M118: 2111004 | N118: 2111005 | O118: 2001006 | P118: 2001007 | Q118: 2001008 | R118: 2001009 | S118: 0.1 | T118: 0.9 | V118: 2001006#100|2001007#100|2001008#100|2001009#100 | W118: 2111003#9000,2111004#300,2001006#100|2001007#100|2001008#100|2001009#100,2111005#300 | X118: 2111003#9000,2111004#300,2001006#100|2001007#100|2001008#100|2001009#100,2111005#300 | Y118: 60111#41#42#61000 | Z118: 60111 | AA118: 41 | AB118: 42 | AC118: 61000
E119: 1#2112001|2#2112002 | F119: 2112001 | G119: 2112002 | H119: 5#3 | I119: 1#9000|2#300|3#400|4#300 | K119: 2112003#10000,2112004#10000,2112005#10000,2001009#10000 | L119: 2112003 | M119: 2112004 | N119: 2112005 | O119: 2001006 | P119: 2001007 | Q119: 2001008 | R119: 2001009 | S119: 0.1 | T119: 0.9 | V119: 2001006#100|2001007#100|2001008#100|2001009#100 | W119: 2112003#9000,2112004#300,2001006#100|2001007#100|2001008#100|2001009#100,2112005#300 | X119: 2112003#9000,2112004#300,2001006#100|2001007#100|2001008#100|2001009#100,2112005#300 | Y119: 60112#41#42#61000 | Z119: 60112 | AA119: 41 | AB119: 42 | AC119: 61000
E120: 1#2113001|2#2113002 | F120: 2113001 | G120: 2113002 | H120: 5#3 | I120: 1#9000|2#300|3#400|4#300 | K120: 2113003#10000,2113004#10000,2113005#10000,2001009#10000 | L120: 2113003 | M120: 2113004 | N120: 2113005 | O120: 2001006 | P120: 2001007 | Q120: 2001008 | R120: 2001009 | S120: 0.1 | T120: 0.9 | V120: 2001006#100|2001007#100|2001008#100|2001009#100 | W120: 2113003#9000,2113004#300,2001006#100|2001007#100|2001008#100|2001009#100,2113005#300 | X120: 2113003#9000,2113004#300,2001006#100|2001007#100|2001008#100|2001009#100,2113005#300 | Y120: 60113#41#42#61000 | Z120: 60113 | AA120: 41 | AB120: 42 | AC120: 61000
E121: 1#2114001|2#2114002 | F121: 2114001 | G121: 2114002 | H121: 5#3 | I121: 1#9000|2#300|3#400|4#300 | K121: 2114003#10000,2114004#10000,2114005#10000,2001009#10000 | L121: 2114003 | M121: 2114004 | N121: 2114005 | O121: 2001006 | P121: 2001007 | Q121: 2001008 | R121: 2001009 | S121: 0.1 | T121: 0.9 | V121: 2001006#100|2001007#100|2001008#100|2001009#100 | W121: 2114003#9000,2114004#300,2001006#100|2001007#100|2001008#100|2001009#100,2114005#300 | X121: 2114003#9000,2114004#300,2001006#100|2001007#100|2001008#100|2001009#100,2114005#300 | Y121: 60114#41#42#61000 | Z121: 60114 | AA121: 41 | AB121: 42 | AC121: 61000
E122: 1#2115001|2#2115002 | F122: 2115001 | G122: 2115002 | H122: 5#3 | I122: 1#10000 | K122: 2115003#10000,2115004#10000,2115005#10000,2001009#10000 | L122: 2115003 | M122: 2115004 | N122: 2115005 | O122: 2001006 | P122: 2001007 | Q122: 2001008 | R122: 2001009 | S122: 0 | T122: 1 | U122: 2115003#10000 | V122: 2001006#100|2001007#100|2001008#100|2001009#100 | X122: 2115003#10000 | Y122: 60115#41#42#61000 | Z122: 60115 | AA122: 41 | AB122: 42 | AC122: 61000
E123: 1#2116001|2#2116002 | F123: 2116001 | G123: 2116002 | H123: 5#3 | I123: 1#9000|2#300|3#400|4#300 | K123: 2116003#10000,2116004#10000,2116005#10000,2001009#10000 | L123: 2116003 | M123: 2116004 | N123: 2116005 | O123: 2001006 | P123: 2001007 | Q123: 2001008 | R123: 2001009 | S123: 0.1 | T123: 0.9 | V123: 2001006#100|2001007#100|2001008#100|2001009#100 | W123: 2116003#9000,2116004#300,2001006#100|2001007#100|2001008#100|2001009#100,2116005#300 | X123: 2116003#9000,2116004#300,2001006#100|2001007#100|2001008#100|2001009#100,2116005#300 | Y123: 60116#41#42#61000 | Z123: 60116 | AA123: 41 | AB123: 42 | AC123: 61000
E124: 1#2117001|2#2117002 | F124: 2117001 | G124: 2117002 | H124: 5#3 | I124: 1#9000|2#300|3#400|4#300 | K124: 2117003#10000,2117004#10000,2117005#10000,2001009#10000 | L124: 2117003 | M124: 2117004 | N124: 2117005 | O124: 2001006 | P124: 2001007 | Q124: 2001008 | R124: 2001009 | S124: 0.1 | T124: 0.9 | V124: 2001006#100|2001007#100|2001008#100|2001009#100 | W124: 2117003#9000,2117004#300,2001006#100|2001007#100|2001008#100|2001009#100,2117005#300 | X124: 2117003#9000,2117004#300,2001006#100|2001007#100|2001008#100|2001009#100,2117005#300 | Y124: 60117#41#42#61000 | Z124: 60117 | AA124: 41 | AB124: 42 | AC124: 61000
E125: 1#2118001|2#2118002 | F125: 2118001 | G125: 2118002 | H125: 5#3 | I125: 1#9000|2#300|3#400|4#300 | K125: 2118003#10000,2118004#10000,2118005#10000,2001009#10000 | L125: 2118003 | M125: 2118004 | N125: 2118005 | O125: 2001006 | P125: 2001007 | Q125: 2001008 | R125: 2001009 | S125: 0.1 | T125: 0.9 | V125: 2001006#100|2001007#100|2001008#100|2001009#100 | W125: 2118003#9000,2118004#300,2001006#100|2001007#100|2001008#100|2001009#100,2118005#300 | X125: 2118003#9000,2118004#300,2001006#100|2001007#100|2001008#100|2001009#100,2118005#300 | Y125: 60118#41#42#61000 | Z125: 60118 | AA125: 41 | AB125: 42 | AC125: 61000
E126: 1#2119001|2#2119002 | F126: 2119001 | G126: 2119002 | H126: 5#3 | I126: 1#9000|2#300|3#400|4#300 | K126: 2119003#10000,2119004#10000,2119005#10000,2001009#10000 | L126: =L125+1000 -> 2119003 | M126: =M125+1000 -> 2119004 | N126: =N125+1000 -> 2119005 | O126: =O125 -> 2001006 | P126: =P125 -> 2001007 | Q126: =Q125 -> 2001008 | R126: =R125 -> 2001009 | S126: 0.1 | T126: 0.9 | V126: 2001006#100|2001007#100|2001008#100|2001009#100 | W126: 2119003#9000,2119004#300,2001006#100|2001007#100|2001008#100|2001009#100,2119005#300 | X126: 2119003#9000,2119004#300,2001006#100|2001007#100|2001008#100|2001009#100,2119005#300 | Y126: 60119#41#42#61000 | Z126: 60119 | AA126: 41 | AB126: 42 | AC126: 61000
E127: 1#2120001|2#2120002 | F127: 2120001 | G127: 2120002 | H127: 5#3 | I127: 1#10000 | K127: 2120003#10000,2120004#10000,2120005#10000,2001009#10000 | L127: 2120003 | M127: 2120004 | N127: 2120005 | O127: 2001006 | P127: 2001007 | Q127: 2001008 | R127: 2001009 | S127: 0 | T127: 1 | U127: 2120003#10000 | V127: 2001006#100|2001007#100|2001008#100|2001009#100 | X127: 2120003#10000 | Y127: 60120#41#42#61000 | Z127: 60120 | AA127: 41 | AB127: 42 | AC127: 61000
E128: 1#2121001|2#2121002 | F128: 2121001 | G128: 2121002 | H128: 5#3 | I128: 1#9000|2#300|3#400|4#300 | K128: 2121003#10000,2121004#10000,2121005#10000,2001009#10000 | L128: 2121003 | M128: 2121004 | N128: 2121005 | O128: 2001006 | P128: 2001007 | Q128: 2001008 | R128: 2001009 | S128: 0.1 | T128: 0.9 | V128: 2001006#100|2001007#100|2001008#100|2001009#100 | W128: 2121003#9000,2121004#300,2001006#100|2001007#100|2001008#100|2001009#100,2121005#300 | X128: 2121003#9000,2121004#300,2001006#100|2001007#100|2001008#100|2001009#100,2121005#300 | Y128: 60121#41#42#61000 | Z128: 60121 | AA128: 41 | AB128: 42 | AC128: 61000
E129: 1#2122001|2#2122002 | F129: 2122001 | G129: 2122002 | H129: 5#3 | I129: 1#9000|2#300|3#400|4#300 | K129: 2122003#10000,2122004#10000,2122005#10000,2001009#10000 | L129: 2122003 | M129: 2122004 | N129: 2122005 | O129: 2001006 | P129: 2001007 | Q129: 2001008 | R129: 2001009 | S129: 0.1 | T129: 0.9 | V129: 2001006#100|2001007#100|2001008#100|2001009#100 | W129: 2122003#9000,2122004#300,2001006#100|2001007#100|2001008#100|2001009#100,2122005#300 | X129: 2122003#9000,2122004#300,2001006#100|2001007#100|2001008#100|2001009#100,2122005#300 | Y129: 60122#41#42#61000 | Z129: 60122 | AA129: 41 | AB129: 42 | AC129: 61000
E130: 1#2123001|2#2123002 | F130: 2123001 | G130: 2123002 | H130: 5#3 | I130: 1#9000|2#300|3#400|4#300 | K130: 2123003#10000,2123004#10000,2123005#10000,2001009#10000 | L130: 2123003 | M130: 2123004 | N130: 2123005 | O130: 2001006 | P130: 2001007 | Q130: 2001008 | R130: 2001009 | S130: 0.1 | T130: 0.9 | V130: 2001006#100|2001007#100|2001008#100|2001009#100 | W130: 2123003#9000,2123004#300,2001006#100|2001007#100|2001008#100|2001009#100,2123005#300 | X130: 2123003#9000,2123004#300,2001006#100|2001007#100|2001008#100|2001009#100,2123005#300 | Y130: 60123#41#42#61000 | Z130: 60123 | AA130: 41 | AB130: 42 | AC130: 61000
E131: 1#2124001|2#2124002 | F131: 2124001 | G131: 2124002 | H131: 5#3 | I131: 1#9000|2#300|3#400|4#300 | K131: 2124003#10000,2124004#10000,2124005#10000,2001009#10000 | L131: 2124003 | M131: 2124004 | N131: 2124005 | O131: 2001006 | P131: 2001007 | Q131: 2001008 | R131: 2001009 | S131: 0.1 | T131: 0.9 | V131: 2001006#100|2001007#100|2001008#100|2001009#100 | W131: 2124003#9000,2124004#300,2001006#100|2001007#100|2001008#100|2001009#100,2124005#300 | X131: 2124003#9000,2124004#300,2001006#100|2001007#100|2001008#100|2001009#100,2124005#300 | Y131: 60124#41#42#61000 | Z131: 60124 | AA131: 41 | AB131: 42 | AC131: 61000
E132: 1#2125001|2#2125002 | F132: 2125001 | G132: 2125002 | H132: 5#3 | I132: 1#10000 | K132: 2125003#10000,2125004#10000,2125005#10000,2001009#10000 | L132: 2125003 | M132: 2125004 | N132: 2125005 | O132: 2001006 | P132: 2001007 | Q132: 2001008 | R132: 2001009 | S132: 0 | T132: 1 | U132: 2125003#10000 | V132: 2001006#100|2001007#100|2001008#100|2001009#100 | X132: 2125003#10000 | Y132: 60125#41#42#61000 | Z132: 60125 | AA132: 41 | AB132: 42 | AC132: 61000
E133: 1#2126001|2#2126002 | F133: 2126001 | G133: 2126002 | H133: 5#3 | I133: 1#9000|2#300|3#400|4#300 | K133: 2126003#10000,2126004#10000,2126005#10000,2001009#10000 | L133: 2126003 | M133: 2126004 | N133: 2126005 | O133: 2001006 | P133: 2001007 | Q133: 2001008 | R133: 2001009 | S133: 0.1 | T133: 0.9 | V133: 2001006#100|2001007#100|2001008#100|2001009#100 | W133: 2126003#9000,2126004#300,2001006#100|2001007#100|2001008#100|2001009#100,2126005#300 | X133: 2126003#9000,2126004#300,2001006#100|2001007#100|2001008#100|2001009#100,2126005#300 | Y133: 60126#41#42#61000 | Z133: 60126 | AA133: 41 | AB133: 42 | AC133: 61000
E134: 1#2127001|2#2127002 | F134: 2127001 | G134: 2127002 | H134: 5#3 | I134: 1#9000|2#300|3#400|4#300 | K134: 2127003#10000,2127004#10000,2127005#10000,2001009#10000 | L134: 2127003 | M134: 2127004 | N134: 2127005 | O134: 2001006 | P134: 2001007 | Q134: 2001008 | R134: 2001009 | S134: 0.1 | T134: 0.9 | V134: 2001006#100|2001007#100|2001008#100|2001009#100 | W134: 2127003#9000,2127004#300,2001006#100|2001007#100|2001008#100|2001009#100,2127005#300 | X134: 2127003#9000,2127004#300,2001006#100|2001007#100|2001008#100|2001009#100,2127005#300 | Y134: 60127#41#42#61000 | Z134: 60127 | AA134: 41 | AB134: 42 | AC134: 61000
E135: 1#2128001|2#2128002 | F135: 2128001 | G135: 2128002 | H135: 5#3 | I135: 1#9000|2#300|3#400|4#300 | K135: 2128003#10000,2128004#10000,2128005#10000,2001009#10000 | L135: 2128003 | M135: 2128004 | N135: 2128005 | O135: 2001006 | P135: 2001007 | Q135: 2001008 | R135: 2001009 | S135: 0.1 | T135: 0.9 | V135: 2001006#100|2001007#100|2001008#100|2001009#100 | W135: 2128003#9000,2128004#300,2001006#100|2001007#100|2001008#100|2001009#100,2128005#300 | X135: 2128003#9000,2128004#300,2001006#100|2001007#100|2001008#100|2001009#100,2128005#300 | Y135: 60128#41#42#61000 | Z135: 60128 | AA135: 41 | AB135: 42 | AC135: 61000
E136: 1#2129001|2#2129002 | F136: 2129001 | G136: 2129002 | H136: 5#3 | I136: 1#9000|2#300|3#400|4#300 | K136: 2129003#10000,2129004#10000,2129005#10000,2001009#10000 | L136: 2129003 | M136: 2129004 | N136: 2129005 | O136: 2001006 | P136: 2001007 | Q136: 2001008 | R136: 2001009 | S136: 0.1 | T136: 0.9 | V136: 2001006#100|2001007#100|2001008#100|2001009#100 | W136: 2129003#9000,2129004#300,2001006#100|2001007#100|2001008#100|2001009#100,2129005#300 | X136: 2129003#9000,2129004#300,2001006#100|2001007#100|2001008#100|2001009#100,2129005#300 | Y136: 60129#41#42#61000 | Z136: 60129 | AA136: 41 | AB136: 42 | AC136: 61000
E137: 1#2130001|2#2130002 | F137: 2130001 | G137: 2130002 | H137: 5#3 | I137: 1#10000 | K137: 2130003#10000,2130004#10000,2130005#10000,2001009#10000 | L137: 2130003 | M137: 2130004 | N137: 2130005 | O137: 2001006 | P137: 2001007 | Q137: 2001008 | R137: 2001009 | S137: 0 | T137: 1 | U137: 2130003#10000 | V137: 2001006#100|2001007#100|2001008#100|2001009#100 | X137: 2130003#10000 | Y137: 60130#41#42#61000 | Z137: 60130 | AA137: 41 | AB137: 42 | AC137: 61000
E138: 1#2131001|2#2131002 | F138: 2131001 | G138: 2131002 | H138: 5#3 | I138: 1#9000|2#300|3#400|4#300 | K138: 2131003#10000,2131004#10000,2131005#10000,2001009#10000 | L138: 2131003 | M138: 2131004 | N138: 2131005 | O138: 2001006 | P138: 2001007 | Q138: 2001008 | R138: 2001009 | S138: 0.1 | T138: 0.9 | V138: 2001006#100|2001007#100|2001008#100|2001009#100 | W138: 2131003#9000,2131004#300,2001006#100|2001007#100|2001008#100|2001009#100,2131005#300 | X138: 2131003#9000,2131004#300,2001006#100|2001007#100|2001008#100|2001009#100,2131005#300 | Y138: =_xlfn.TEXTJOIN("#",TRUE,Z138:AC138) -> 60131#41#42#61000 | Z138: =Z137+1 -> 60131 | AA138: =AA137 -> 41 | AB138: =AB137 -> 42 | AC138: =AC137 -> 61000
E139: 1#2132001|2#2132002 | F139: 2132001 | G139: 2132002 | H139: 5#3 | I139: 1#9000|2#300|3#400|4#300 | K139: 2132003#10000,2132004#10000,2132005#10000,2001009#10000 | L139: 2132003 | M139: 2132004 | N139: 2132005 | O139: 2001006 | P139: 2001007 | Q139: 2001008 | R139: 2001009 | S139: 0.1 | T139: 0.9 | V139: 2001006#100|2001007#100|2001008#100|2001009#100 | W139: 2132003#9000,2132004#300,2001006#100|2001007#100|2001008#100|2001009#100,2132005#300 | X139: 2132003#9000,2132004#300,2001006#100|2001007#100|2001008#100|2001009#100,2132005#300 | Y139: 60132#41#42#61000 | Z139: 60132 | AA139: 41 | AB139: 42 | AC139: 61000
E140: =$A$4&"#"&F140&"|"&$B$4&"#"&G140 -> 1#2133001|2#2133002 | F140: 2133001 | G140: 2133002 | H140: 5#3 | I140: =I135 -> 1#9000|2#300|3#400|4#300 | K140: =L140&"#"&$L$4&","&M140&"#"&$L$4&","&N140&"#"&$L$4&","&R140&"#"&$L$4 -> 2133003#10000,2133004#10000,2133005#10000,2001009#10000 | L140: 2133003 | M140: 2133004 | N140: 2133005 | O140: 2001006 | P140: 2001007 | Q140: 2001008 | R140: 2001009 | S140: 0.1 | T140: 0.9 | U140: =IF(S140=0,L140&"#"&$L$4,"") ->  | V140: 2001006#100|2001007#100|2001008#100|2001009#100 | W140: 2133003#9000,2133004#300,2001006#100|2001007#100|2001008#100|2001009#100,2133005#300 | X140: =_xlfn.TEXTJOIN("",TRUE,U140,W140) -> 2133003#9000,2133004#300,2001006#100|2001007#100|2001008#100|2001009#100,2133005#300 | Y140: 60133#41#42#61000 | Z140: 60133 | AA140: 41 | AB140: 42 | AC140: 61000
E141: 1#2134001|2#2134002 | F141: 2134001 | G141: 2134002 | H141: 5#3 | I141: 1#9000|2#300|3#400|4#300 | K141: 2134003#10000,2134004#10000,2134005#10000,2001009#10000 | L141: 2134003 | M141: 2134004 | N141: 2134005 | O141: 2001006 | P141: 2001007 | Q141: 2001008 | R141: 2001009 | S141: 0.1 | T141: 0.9 | V141: =O141&"#"&$S$6&"|"&P141&"#"&$S$6&"|"&Q141&"#"&$S$6&"|"&R141&"#"&$S$6 -> 2001006#100|2001007#100|2001008#100|2001009#100 | W141: =IF(S141=0,"",L141&"#"&T141*10000&","&M141&"#"&$R$5*10000&","&V141&","&N141&"#"&$R$7*10000) -> 2134003#9000,2134004#300,2001006#100|2001007#100|2001008#100|2001009#100,2134005#300 | X141: 2134003#9000,2134004#300,2001006#100|2001007#100|2001008#100|2001009#100,2134005#300 | Y141: 60134#41#42#61000 | Z141: 60134 | AA141: 41 | AB141: 42 | AC141: 61000
E142: 1#2135001|2#2135002 | F142: 2135001 | G142: 2135002 | H142: 5#3 | I142: 1#10000 | K142: 2135003#10000,2135004#10000,2135005#10000,2001009#10000 | L142: 2135003 | M142: 2135004 | N142: 2135005 | O142: 2001006 | P142: 2001007 | Q142: 2001008 | R142: 2001009 | S142: 0 | T142: 1 | U142: 2135003#10000 | V142: 2001006#100|2001007#100|2001008#100|2001009#100 | X142: 2135003#10000 | Y142: 60135#41#42#61000 | Z142: 60135 | AA142: 41 | AB142: 42 | AC142: 61000
E143: 1#2136001|2#2136002 | F143: 2136001 | G143: 2136002 | H143: 5#3 | I143: 1#9000|2#300|3#400|4#300 | K143: 2136003#10000,2136004#10000,2136005#10000,2001009#10000 | L143: 2136003 | M143: 2136004 | N143: 2136005 | O143: 2001006 | P143: 2001007 | Q143: 2001008 | R143: 2001009 | S143: 0.1 | T143: 0.9 | V143: 2001006#100|2001007#100|2001008#100|2001009#100 | W143: 2136003#9000,2136004#300,2001006#100|2001007#100|2001008#100|2001009#100,2136005#300 | X143: 2136003#9000,2136004#300,2001006#100|2001007#100|2001008#100|2001009#100,2136005#300 | Y143: 60136#41#42#61000 | Z143: 60136 | AA143: 41 | AB143: 42 | AC143: 61000
E144: 1#2137001|2#2137002 | F144: 2137001 | G144: 2137002 | H144: 5#3 | I144: 1#9000|2#300|3#400|4#300 | K144: 2137003#10000,2137004#10000,2137005#10000,2001009#10000 | L144: 2137003 | M144: 2137004 | N144: 2137005 | O144: 2001006 | P144: 2001007 | Q144: 2001008 | R144: 2001009 | S144: 0.1 | T144: 0.9 | V144: 2001006#100|2001007#100|2001008#100|2001009#100 | W144: 2137003#9000,2137004#300,2001006#100|2001007#100|2001008#100|2001009#100,2137005#300 | X144: 2137003#9000,2137004#300,2001006#100|2001007#100|2001008#100|2001009#100,2137005#300 | Y144: 60137#41#42#61000 | Z144: 60137 | AA144: 41 | AB144: 42 | AC144: 61000
E145: 1#2138001|2#2138002 | F145: 2138001 | G145: 2138002 | H145: 5#3 | I145: 1#9000|2#300|3#400|4#300 | K145: 2138003#10000,2138004#10000,2138005#10000,2001009#10000 | L145: 2138003 | M145: 2138004 | N145: 2138005 | O145: 2001006 | P145: 2001007 | Q145: 2001008 | R145: 2001009 | S145: 0.1 | T145: 0.9 | V145: 2001006#100|2001007#100|2001008#100|2001009#100 | W145: 2138003#9000,2138004#300,2001006#100|2001007#100|2001008#100|2001009#100,2138005#300 | X145: 2138003#9000,2138004#300,2001006#100|2001007#100|2001008#100|2001009#100,2138005#300 | Y145: 60138#41#42#61000 | Z145: 60138 | AA145: 41 | AB145: 42 | AC145: 61000
E146: 1#2139001|2#2139002 | F146: 2139001 | G146: 2139002 | H146: 5#3 | I146: 1#9000|2#300|3#400|4#300 | K146: 2139003#10000,2139004#10000,2139005#10000,2001009#10000 | L146: 2139003 | M146: 2139004 | N146: 2139005 | O146: 2001006 | P146: 2001007 | Q146: 2001008 | R146: 2001009 | S146: 0.1 | T146: 0.9 | V146: 2001006#100|2001007#100|2001008#100|2001009#100 | W146: 2139003#9000,2139004#300,2001006#100|2001007#100|2001008#100|2001009#100,2139005#300 | X146: 2139003#9000,2139004#300,2001006#100|2001007#100|2001008#100|2001009#100,2139005#300 | Y146: 60139#41#42#61000 | Z146: 60139 | AA146: 41 | AB146: 42 | AC146: 61000
E147: 1#2140001|2#2140002 | F147: 2140001 | G147: 2140002 | H147: 5#3 | I147: 1#10000 | K147: 2140003#10000,2140004#10000,2140005#10000,2001009#10000 | L147: 2140003 | M147: 2140004 | N147: 2140005 | O147: 2001006 | P147: 2001007 | Q147: 2001008 | R147: 2001009 | S147: 0 | T147: 1 | U147: 2140003#10000 | V147: 2001006#100|2001007#100|2001008#100|2001009#100 | X147: 2140003#10000 | Y147: 60140#41#42#61000 | Z147: 60140 | AA147: 41 | AB147: 42 | AC147: 61000
E148: 1#2141001|2#2141002 | F148: 2141001 | G148: 2141002 | H148: 5#3 | I148: 1#9000|2#300|3#400|4#300 | K148: 2141003#10000,2141004#10000,2141005#10000,2001009#10000 | L148: 2141003 | M148: 2141004 | N148: 2141005 | O148: 2001006 | P148: 2001007 | Q148: 2001008 | R148: 2001009 | S148: 0.1 | T148: 0.9 | V148: 2001006#100|2001007#100|2001008#100|2001009#100 | W148: 2141003#9000,2141004#300,2001006#100|2001007#100|2001008#100|2001009#100,2141005#300 | X148: 2141003#9000,2141004#300,2001006#100|2001007#100|2001008#100|2001009#100,2141005#300 | Y148: 60141#41#42#61000 | Z148: 60141 | AA148: 41 | AB148: 42 | AC148: 61000
E149: 1#2142001|2#2142002 | F149: 2142001 | G149: 2142002 | H149: 5#3 | I149: 1#9000|2#300|3#400|4#300 | K149: 2142003#10000,2142004#10000,2142005#10000,2001009#10000 | L149: 2142003 | M149: 2142004 | N149: 2142005 | O149: 2001006 | P149: 2001007 | Q149: 2001008 | R149: 2001009 | S149: 0.1 | T149: 0.9 | V149: 2001006#100|2001007#100|2001008#100|2001009#100 | W149: 2142003#9000,2142004#300,2001006#100|2001007#100|2001008#100|2001009#100,2142005#300 | X149: 2142003#9000,2142004#300,2001006#100|2001007#100|2001008#100|2001009#100,2142005#300 | Y149: 60142#41#42#61000 | Z149: 60142 | AA149: 41 | AB149: 42 | AC149: 61000
E150: 1#2143001|2#2143002 | F150: =F149+1000 -> 2143001 | G150: =G149+1000 -> 2143002 | H150: 5#3 | I150: 1#9000|2#300|3#400|4#300 | K150: 2143003#10000,2143004#10000,2143005#10000,2001009#10000 | L150: 2143003 | M150: 2143004 | N150: 2143005 | O150: 2001006 | P150: 2001007 | Q150: 2001008 | R150: 2001009 | S150: 0.1 | T150: 0.9 | V150: 2001006#100|2001007#100|2001008#100|2001009#100 | W150: 2143003#9000,2143004#300,2001006#100|2001007#100|2001008#100|2001009#100,2143005#300 | X150: 2143003#9000,2143004#300,2001006#100|2001007#100|2001008#100|2001009#100,2143005#300 | Y150: 60143#41#42#61000 | Z150: 60143 | AA150: 41 | AB150: 42 | AC150: 61000
E151: 1#2144001|2#2144002 | F151: 2144001 | G151: 2144002 | H151: 5#3 | I151: 1#9000|2#300|3#400|4#300 | K151: 2144003#10000,2144004#10000,2144005#10000,2001009#10000 | L151: 2144003 | M151: 2144004 | N151: 2144005 | O151: 2001006 | P151: 2001007 | Q151: 2001008 | R151: 2001009 | S151: 0.1 | T151: 0.9 | V151: 2001006#100|2001007#100|2001008#100|2001009#100 | W151: 2144003#9000,2144004#300,2001006#100|2001007#100|2001008#100|2001009#100,2144005#300 | X151: 2144003#9000,2144004#300,2001006#100|2001007#100|2001008#100|2001009#100,2144005#300 | Y151: 60144#41#42#61000 | Z151: 60144 | AA151: 41 | AB151: 42 | AC151: 61000
E152: 1#2145001|2#2145002 | F152: 2145001 | G152: 2145002 | H152: 5#3 | I152: 1#10000 | K152: 2145003#10000,2145004#10000,2145005#10000,2001009#10000 | L152: 2145003 | M152: 2145004 | N152: 2145005 | O152: 2001006 | P152: 2001007 | Q152: 2001008 | R152: 2001009 | S152: 0 | T152: 1 | U152: 2145003#10000 | V152: 2001006#100|2001007#100|2001008#100|2001009#100 | X152: 2145003#10000 | Y152: 60145#41#42#61000 | Z152: 60145 | AA152: 41 | AB152: 42 | AC152: 61000
E153: 1#2146001|2#2146002 | F153: 2146001 | G153: 2146002 | H153: 5#3 | I153: 1#9000|2#300|3#400|4#300 | K153: 2146003#10000,2146004#10000,2146005#10000,2001009#10000 | L153: 2146003 | M153: 2146004 | N153: 2146005 | O153: 2001006 | P153: 2001007 | Q153: 2001008 | R153: 2001009 | S153: 0.1 | T153: 0.9 | V153: 2001006#100|2001007#100|2001008#100|2001009#100 | W153: 2146003#9000,2146004#300,2001006#100|2001007#100|2001008#100|2001009#100,2146005#300 | X153: 2146003#9000,2146004#300,2001006#100|2001007#100|2001008#100|2001009#100,2146005#300 | Y153: 60146#41#42#61000 | Z153: 60146 | AA153: 41 | AB153: 42 | AC153: 61000
E154: 1#2147001|2#2147002 | F154: 2147001 | G154: 2147002 | H154: 5#3 | I154: 1#9000|2#300|3#400|4#300 | K154: 2147003#10000,2147004#10000,2147005#10000,2001009#10000 | L154: 2147003 | M154: 2147004 | N154: 2147005 | O154: 2001006 | P154: 2001007 | Q154: 2001008 | R154: 2001009 | S154: 0.1 | T154: 0.9 | V154: 2001006#100|2001007#100|2001008#100|2001009#100 | W154: 2147003#9000,2147004#300,2001006#100|2001007#100|2001008#100|2001009#100,2147005#300 | X154: 2147003#9000,2147004#300,2001006#100|2001007#100|2001008#100|2001009#100,2147005#300 | Y154: 60147#41#42#61000 | Z154: 60147 | AA154: 41 | AB154: 42 | AC154: 61000
E155: 1#2148001|2#2148002 | F155: 2148001 | G155: 2148002 | H155: 5#3 | I155: 1#9000|2#300|3#400|4#300 | K155: 2148003#10000,2148004#10000,2148005#10000,2001009#10000 | L155: 2148003 | M155: 2148004 | N155: 2148005 | O155: 2001006 | P155: 2001007 | Q155: 2001008 | R155: 2001009 | S155: 0.1 | T155: 0.9 | V155: 2001006#100|2001007#100|2001008#100|2001009#100 | W155: 2148003#9000,2148004#300,2001006#100|2001007#100|2001008#100|2001009#100,2148005#300 | X155: 2148003#9000,2148004#300,2001006#100|2001007#100|2001008#100|2001009#100,2148005#300 | Y155: 60148#41#42#61000 | Z155: 60148 | AA155: 41 | AB155: 42 | AC155: 61000
E156: 1#2149001|2#2149002 | F156: 2149001 | G156: 2149002 | H156: 5#3 | I156: 1#9000|2#300|3#400|4#300 | K156: 2149003#10000,2149004#10000,2149005#10000,2001009#10000 | L156: 2149003 | M156: 2149004 | N156: 2149005 | O156: 2001006 | P156: 2001007 | Q156: 2001008 | R156: 2001009 | S156: 0.1 | T156: 0.9 | V156: 2001006#100|2001007#100|2001008#100|2001009#100 | W156: 2149003#9000,2149004#300,2001006#100|2001007#100|2001008#100|2001009#100,2149005#300 | X156: 2149003#9000,2149004#300,2001006#100|2001007#100|2001008#100|2001009#100,2149005#300 | Y156: 60149#41#42#61000 | Z156: 60149 | AA156: 41 | AB156: 42 | AC156: 61000
E157: 1#2150001|2#2150002 | F157: 2150001 | G157: 2150002 | H157: 5#3 | I157: 1#10000 | K157: 2150003#10000,2150004#10000,2150005#10000,2001009#10000 | L157: 2150003 | M157: 2150004 | N157: 2150005 | O157: 2001006 | P157: 2001007 | Q157: 2001008 | R157: 2001009 | S157: 0 | T157: 1 | U157: 2150003#10000 | V157: 2001006#100|2001007#100|2001008#100|2001009#100 | X157: 2150003#10000 | Y157: 60150#41#42#61000 | Z157: 60150 | AA157: 41 | AB157: 42 | AC157: 61000
E158: 1#2151001|2#2151002 | F158: 2151001 | G158: 2151002 | H158: 5#3 | I158: 1#9000|2#300|3#400|4#300 | K158: 2151003#10000,2151004#10000,2151005#10000,2001009#10000 | L158: 2151003 | M158: 2151004 | N158: 2151005 | O158: 2001006 | P158: 2001007 | Q158: 2001008 | R158: 2001009 | S158: 0.1 | T158: 0.9 | V158: 2001006#100|2001007#100|2001008#100|2001009#100 | W158: 2151003#9000,2151004#300,2001006#100|2001007#100|2001008#100|2001009#100,2151005#300 | X158: 2151003#9000,2151004#300,2001006#100|2001007#100|2001008#100|2001009#100,2151005#300 | Y158: 60151#41#42#61000 | Z158: 60151 | AA158: 41 | AB158: 42 | AC158: 61000
E159: 1#2152001|2#2152002 | F159: 2152001 | G159: 2152002 | H159: 5#3 | I159: 1#9000|2#300|3#400|4#300 | K159: 2152003#10000,2152004#10000,2152005#10000,2001009#10000 | L159: 2152003 | M159: 2152004 | N159: 2152005 | O159: 2001006 | P159: 2001007 | Q159: 2001008 | R159: 2001009 | S159: 0.1 | T159: 0.9 | V159: 2001006#100|2001007#100|2001008#100|2001009#100 | W159: 2152003#9000,2152004#300,2001006#100|2001007#100|2001008#100|2001009#100,2152005#300 | X159: 2152003#9000,2152004#300,2001006#100|2001007#100|2001008#100|2001009#100,2152005#300 | Y159: 60152#41#42#61000 | Z159: 60152 | AA159: 41 | AB159: 42 | AC159: 61000
E160: 1#2153001|2#2153002 | F160: 2153001 | G160: 2153002 | H160: 5#3 | I160: 1#9000|2#300|3#400|4#300 | K160: 2153003#10000,2153004#10000,2153005#10000,2001009#10000 | L160: 2153003 | M160: 2153004 | N160: 2153005 | O160: 2001006 | P160: 2001007 | Q160: 2001008 | R160: 2001009 | S160: 0.1 | T160: 0.9 | V160: 2001006#100|2001007#100|2001008#100|2001009#100 | W160: 2153003#9000,2153004#300,2001006#100|2001007#100|2001008#100|2001009#100,2153005#300 | X160: 2153003#9000,2153004#300,2001006#100|2001007#100|2001008#100|2001009#100,2153005#300 | Y160: 60153#41#42#61000 | Z160: 60153 | AA160: 41 | AB160: 42 | AC160: 61000
E161: 1#2154001|2#2154002 | F161: 2154001 | G161: 2154002 | H161: 5#3 | I161: 1#9000|2#300|3#400|4#300 | K161: 2154003#10000,2154004#10000,2154005#10000,2001009#10000 | L161: 2154003 | M161: 2154004 | N161: 2154005 | O161: 2001006 | P161: 2001007 | Q161: 2001008 | R161: 2001009 | S161: 0.1 | T161: 0.9 | V161: 2001006#100|2001007#100|2001008#100|2001009#100 | W161: 2154003#9000,2154004#300,2001006#100|2001007#100|2001008#100|2001009#100,2154005#300 | X161: 2154003#9000,2154004#300,2001006#100|2001007#100|2001008#100|2001009#100,2154005#300 | Y161: 60154#41#42#61000 | Z161: 60154 | AA161: 41 | AB161: 42 | AC161: 61000
E162: 1#2155001|2#2155002 | F162: 2155001 | G162: 2155002 | H162: 5#3 | I162: 1#10000 | K162: 2155003#10000,2155004#10000,2155005#10000,2001009#10000 | L162: 2155003 | M162: 2155004 | N162: 2155005 | O162: 2001006 | P162: 2001007 | Q162: 2001008 | R162: 2001009 | S162: 0 | T162: 1 | U162: 2155003#10000 | V162: 2001006#100|2001007#100|2001008#100|2001009#100 | X162: 2155003#10000 | Y162: 60155#41#42#61000 | Z162: 60155 | AA162: 41 | AB162: 42 | AC162: 61000
E163: 1#2156001|2#2156002 | F163: 2156001 | G163: 2156002 | H163: 5#3 | I163: 1#9000|2#300|3#400|4#300 | K163: 2156003#10000,2156004#10000,2156005#10000,2001009#10000 | L163: 2156003 | M163: 2156004 | N163: 2156005 | O163: 2001006 | P163: 2001007 | Q163: 2001008 | R163: 2001009 | S163: 0.1 | T163: 0.9 | V163: 2001006#100|2001007#100|2001008#100|2001009#100 | W163: 2156003#9000,2156004#300,2001006#100|2001007#100|2001008#100|2001009#100,2156005#300 | X163: 2156003#9000,2156004#300,2001006#100|2001007#100|2001008#100|2001009#100,2156005#300 | Y163: 60156#41#42#61000 | Z163: 60156 | AA163: 41 | AB163: 42 | AC163: 61000
E164: 1#2157001|2#2157002 | F164: 2157001 | G164: 2157002 | H164: 5#3 | I164: 1#9000|2#300|3#400|4#300 | K164: 2157003#10000,2157004#10000,2157005#10000,2001009#10000 | L164: 2157003 | M164: 2157004 | N164: 2157005 | O164: 2001006 | P164: 2001007 | Q164: 2001008 | R164: 2001009 | S164: 0.1 | T164: 0.9 | V164: 2001006#100|2001007#100|2001008#100|2001009#100 | W164: 2157003#9000,2157004#300,2001006#100|2001007#100|2001008#100|2001009#100,2157005#300 | X164: 2157003#9000,2157004#300,2001006#100|2001007#100|2001008#100|2001009#100,2157005#300 | Y164: 60157#41#42#61000 | Z164: 60157 | AA164: 41 | AB164: 42 | AC164: 61000
E165: 1#2158001|2#2158002 | F165: 2158001 | G165: 2158002 | H165: 5#3 | I165: 1#9000|2#300|3#400|4#300 | K165: 2158003#10000,2158004#10000,2158005#10000,2001009#10000 | L165: 2158003 | M165: 2158004 | N165: 2158005 | O165: 2001006 | P165: 2001007 | Q165: 2001008 | R165: 2001009 | S165: 0.1 | T165: 0.9 | V165: 2001006#100|2001007#100|2001008#100|2001009#100 | W165: 2158003#9000,2158004#300,2001006#100|2001007#100|2001008#100|2001009#100,2158005#300 | X165: 2158003#9000,2158004#300,2001006#100|2001007#100|2001008#100|2001009#100,2158005#300 | Y165: 60158#41#42#61000 | Z165: 60158 | AA165: 41 | AB165: 42 | AC165: 61000
E166: 1#2159001|2#2159002 | F166: 2159001 | G166: 2159002 | H166: 5#3 | I166: 1#9000|2#300|3#400|4#300 | K166: 2159003#10000,2159004#10000,2159005#10000,2001009#10000 | L166: 2159003 | M166: 2159004 | N166: 2159005 | O166: 2001006 | P166: 2001007 | Q166: 2001008 | R166: 2001009 | S166: 0.1 | T166: 0.9 | V166: 2001006#100|2001007#100|2001008#100|2001009#100 | W166: 2159003#9000,2159004#300,2001006#100|2001007#100|2001008#100|2001009#100,2159005#300 | X166: 2159003#9000,2159004#300,2001006#100|2001007#100|2001008#100|2001009#100,2159005#300 | Y166: 60159#41#42#61000 | Z166: 60159 | AA166: 41 | AB166: 42 | AC166: 61000
E167: 1#2160001|2#2160002 | F167: 2160001 | G167: 2160002 | H167: 5#3 | I167: 1#10000 | K167: 2160003#10000,2160004#10000,2160005#10000,2001009#10000 | L167: 2160003 | M167: 2160004 | N167: 2160005 | O167: 2001006 | P167: 2001007 | Q167: 2001008 | R167: 2001009 | S167: 0 | T167: 1 | U167: 2160003#10000 | V167: 2001006#100|2001007#100|2001008#100|2001009#100 | X167: 2160003#10000 | Y167: 60160#41#42#61000 | Z167: 60160 | AA167: 41 | AB167: 42 | AC167: 61000
E168: 1#2161001|2#2161002 | F168: 2161001 | G168: 2161002 | H168: 5#3 | I168: 1#9000|2#300|3#400|4#300 | K168: 2161003#10000,2161004#10000,2161005#10000,2001009#10000 | L168: 2161003 | M168: 2161004 | N168: 2161005 | O168: 2001006 | P168: 2001007 | Q168: 2001008 | R168: 2001009 | S168: 0.1 | T168: 0.9 | V168: 2001006#100|2001007#100|2001008#100|2001009#100 | W168: 2161003#9000,2161004#300,2001006#100|2001007#100|2001008#100|2001009#100,2161005#300 | X168: 2161003#9000,2161004#300,2001006#100|2001007#100|2001008#100|2001009#100,2161005#300 | Y168: 60161#41#42#61000 | Z168: 60161 | AA168: 41 | AB168: 42 | AC168: 61000
E169: 1#2162001|2#2162002 | F169: 2162001 | G169: 2162002 | H169: 5#3 | I169: 1#9000|2#300|3#400|4#300 | K169: 2162003#10000,2162004#10000,2162005#10000,2001009#10000 | L169: 2162003 | M169: 2162004 | N169: 2162005 | O169: 2001006 | P169: 2001007 | Q169: 2001008 | R169: 2001009 | S169: 0.1 | T169: 0.9 | V169: 2001006#100|2001007#100|2001008#100|2001009#100 | W169: 2162003#9000,2162004#300,2001006#100|2001007#100|2001008#100|2001009#100,2162005#300 | X169: 2162003#9000,2162004#300,2001006#100|2001007#100|2001008#100|2001009#100,2162005#300 | Y169: 60162#41#42#61000 | Z169: 60162 | AA169: 41 | AB169: 42 | AC169: 61000
E170: 1#2163001|2#2163002 | F170: 2163001 | G170: 2163002 | H170: 5#3 | I170: 1#9000|2#300|3#400|4#300 | K170: 2163003#10000,2163004#10000,2163005#10000,2001009#10000 | L170: 2163003 | M170: 2163004 | N170: 2163005 | O170: 2001006 | P170: 2001007 | Q170: 2001008 | R170: 2001009 | S170: 0.1 | T170: 0.9 | V170: 2001006#100|2001007#100|2001008#100|2001009#100 | W170: 2163003#9000,2163004#300,2001006#100|2001007#100|2001008#100|2001009#100,2163005#300 | X170: 2163003#9000,2163004#300,2001006#100|2001007#100|2001008#100|2001009#100,2163005#300 | Y170: =_xlfn.TEXTJOIN("#",TRUE,Z170:AC170) -> 60163#41#42#61000 | Z170: =Z169+1 -> 60163 | AA170: =AA169 -> 41 | AB170: =AB169 -> 42 | AC170: =AC169 -> 61000
E171: 1#2164001|2#2164002 | F171: 2164001 | G171: 2164002 | H171: 5#3 | I171: 1#9000|2#300|3#400|4#300 | K171: 2164003#10000,2164004#10000,2164005#10000,2001009#10000 | L171: 2164003 | M171: 2164004 | N171: 2164005 | O171: 2001006 | P171: 2001007 | Q171: 2001008 | R171: 2001009 | S171: 0.1 | T171: 0.9 | V171: 2001006#100|2001007#100|2001008#100|2001009#100 | W171: 2164003#9000,2164004#300,2001006#100|2001007#100|2001008#100|2001009#100,2164005#300 | X171: 2164003#9000,2164004#300,2001006#100|2001007#100|2001008#100|2001009#100,2164005#300 | Y171: 60164#41#42#61000 | Z171: 60164 | AA171: 41 | AB171: 42 | AC171: 61000
E172: =$A$4&"#"&F172&"|"&$B$4&"#"&G172 -> 1#2165001|2#2165002 | F172: 2165001 | G172: 2165002 | H172: 5#3 | I172: =I167 -> 1#10000 | K172: =L172&"#"&$L$4&","&M172&"#"&$L$4&","&N172&"#"&$L$4&","&R172&"#"&$L$4 -> 2165003#10000,2165004#10000,2165005#10000,2001009#10000 | L172: 2165003 | M172: 2165004 | N172: 2165005 | O172: 2001006 | P172: 2001007 | Q172: 2001008 | R172: 2001009 | S172: 0 | T172: 1 | U172: =IF(S172=0,L172&"#"&$L$4,"") -> 2165003#10000 | V172: 2001006#100|2001007#100|2001008#100|2001009#100 | X172: =_xlfn.TEXTJOIN("",TRUE,U172,W172) -> 2165003#10000 | Y172: 60165#41#42#61000 | Z172: 60165 | AA172: 41 | AB172: 42 | AC172: 61000
E173: 1#2166001|2#2166002 | F173: 2166001 | G173: 2166002 | H173: 5#3 | I173: 1#9000|2#300|3#400|4#300 | K173: 2166003#10000,2166004#10000,2166005#10000,2001009#10000 | L173: 2166003 | M173: 2166004 | N173: 2166005 | O173: 2001006 | P173: 2001007 | Q173: 2001008 | R173: 2001009 | S173: 0.1 | T173: 0.9 | V173: =O173&"#"&$S$6&"|"&P173&"#"&$S$6&"|"&Q173&"#"&$S$6&"|"&R173&"#"&$S$6 -> 2001006#100|2001007#100|2001008#100|2001009#100 | W173: =IF(S173=0,"",L173&"#"&T173*10000&","&M173&"#"&$R$5*10000&","&V173&","&N173&"#"&$R$7*10000) -> 2166003#9000,2166004#300,2001006#100|2001007#100|2001008#100|2001009#100,2166005#300 | X173: 2166003#9000,2166004#300,2001006#100|2001007#100|2001008#100|2001009#100,2166005#300 | Y173: 60166#41#42#61000 | Z173: 60166 | AA173: 41 | AB173: 42 | AC173: 61000
E174: 1#2167001|2#2167002 | F174: 2167001 | G174: 2167002 | H174: 5#3 | I174: 1#9000|2#300|3#400|4#300 | K174: 2167003#10000,2167004#10000,2167005#10000,2001009#10000 | L174: 2167003 | M174: 2167004 | N174: 2167005 | O174: 2001006 | P174: 2001007 | Q174: 2001008 | R174: 2001009 | S174: 0.1 | T174: 0.9 | V174: 2001006#100|2001007#100|2001008#100|2001009#100 | W174: 2167003#9000,2167004#300,2001006#100|2001007#100|2001008#100|2001009#100,2167005#300 | X174: 2167003#9000,2167004#300,2001006#100|2001007#100|2001008#100|2001009#100,2167005#300 | Y174: 60167#41#42#61000 | Z174: 60167 | AA174: 41 | AB174: 42 | AC174: 61000
E175: 1#2168001|2#2168002 | F175: 2168001 | G175: 2168002 | H175: 5#3 | I175: 1#9000|2#300|3#400|4#300 | K175: 2168003#10000,2168004#10000,2168005#10000,2001009#10000 | L175: 2168003 | M175: 2168004 | N175: 2168005 | O175: 2001006 | P175: 2001007 | Q175: 2001008 | R175: 2001009 | S175: 0.1 | T175: 0.9 | V175: 2001006#100|2001007#100|2001008#100|2001009#100 | W175: 2168003#9000,2168004#300,2001006#100|2001007#100|2001008#100|2001009#100,2168005#300 | X175: 2168003#9000,2168004#300,2001006#100|2001007#100|2001008#100|2001009#100,2168005#300 | Y175: 60168#41#42#61000 | Z175: 60168 | AA175: 41 | AB175: 42 | AC175: 61000
E176: 1#2169001|2#2169002 | F176: 2169001 | G176: 2169002 | H176: 5#3 | I176: 1#9000|2#300|3#400|4#300 | K176: 2169003#10000,2169004#10000,2169005#10000,2001009#10000 | L176: 2169003 | M176: 2169004 | N176: 2169005 | O176: 2001006 | P176: 2001007 | Q176: 2001008 | R176: 2001009 | S176: 0.1 | T176: 0.9 | V176: 2001006#100|2001007#100|2001008#100|2001009#100 | W176: 2169003#9000,2169004#300,2001006#100|2001007#100|2001008#100|2001009#100,2169005#300 | X176: 2169003#9000,2169004#300,2001006#100|2001007#100|2001008#100|2001009#100,2169005#300 | Y176: 60169#41#42#61000 | Z176: 60169 | AA176: 41 | AB176: 42 | AC176: 61000
E177: 1#2170001|2#2170002 | F177: 2170001 | G177: 2170002 | H177: 5#3 | I177: 1#10000 | K177: 2170003#10000,2170004#10000,2170005#10000,2001009#10000 | L177: 2170003 | M177: 2170004 | N177: 2170005 | O177: 2001006 | P177: 2001007 | Q177: 2001008 | R177: 2001009 | S177: 0 | T177: 1 | U177: 2170003#10000 | V177: 2001006#100|2001007#100|2001008#100|2001009#100 | X177: 2170003#10000 | Y177: 60170#41#42#61000 | Z177: 60170 | AA177: 41 | AB177: 42 | AC177: 61000
E178: 1#2171001|2#2171002 | F178: 2171001 | G178: 2171002 | H178: 5#3 | I178: 1#9000|2#300|3#400|4#300 | K178: 2171003#10000,2171004#10000,2171005#10000,2001009#10000 | L178: 2171003 | M178: 2171004 | N178: 2171005 | O178: 2001006 | P178: 2001007 | Q178: 2001008 | R178: 2001009 | S178: 0.1 | T178: 0.9 | V178: 2001006#100|2001007#100|2001008#100|2001009#100 | W178: 2171003#9000,2171004#300,2001006#100|2001007#100|2001008#100|2001009#100,2171005#300 | X178: 2171003#9000,2171004#300,2001006#100|2001007#100|2001008#100|2001009#100,2171005#300 | Y178: 60171#41#42#61000 | Z178: 60171 | AA178: 41 | AB178: 42 | AC178: 61000
E179: 1#2172001|2#2172002 | F179: 2172001 | G179: 2172002 | H179: 5#3 | I179: 1#9000|2#300|3#400|4#300 | K179: 2172003#10000,2172004#10000,2172005#10000,2001009#10000 | L179: 2172003 | M179: 2172004 | N179: 2172005 | O179: 2001006 | P179: 2001007 | Q179: 2001008 | R179: 2001009 | S179: 0.1 | T179: 0.9 | V179: 2001006#100|2001007#100|2001008#100|2001009#100 | W179: 2172003#9000,2172004#300,2001006#100|2001007#100|2001008#100|2001009#100,2172005#300 | X179: 2172003#9000,2172004#300,2001006#100|2001007#100|2001008#100|2001009#100,2172005#300 | Y179: 60172#41#42#61000 | Z179: 60172 | AA179: 41 | AB179: 42 | AC179: 61000
E180: 1#2173001|2#2173002 | F180: 2173001 | G180: 2173002 | H180: 5#3 | I180: 1#9000|2#300|3#400|4#300 | K180: 2173003#10000,2173004#10000,2173005#10000,2001009#10000 | L180: 2173003 | M180: 2173004 | N180: 2173005 | O180: 2001006 | P180: 2001007 | Q180: 2001008 | R180: 2001009 | S180: 0.1 | T180: 0.9 | V180: 2001006#100|2001007#100|2001008#100|2001009#100 | W180: 2173003#9000,2173004#300,2001006#100|2001007#100|2001008#100|2001009#100,2173005#300 | X180: 2173003#9000,2173004#300,2001006#100|2001007#100|2001008#100|2001009#100,2173005#300 | Y180: 60173#41#42#61000 | Z180: 60173 | AA180: 41 | AB180: 42 | AC180: 61000
E181: 1#2174001|2#2174002 | F181: 2174001 | G181: 2174002 | H181: 5#3 | I181: 1#9000|2#300|3#400|4#300 | K181: 2174003#10000,2174004#10000,2174005#10000,2001009#10000 | L181: 2174003 | M181: 2174004 | N181: 2174005 | O181: 2001006 | P181: 2001007 | Q181: 2001008 | R181: 2001009 | S181: 0.1 | T181: 0.9 | V181: 2001006#100|2001007#100|2001008#100|2001009#100 | W181: 2174003#9000,2174004#300,2001006#100|2001007#100|2001008#100|2001009#100,2174005#300 | X181: 2174003#9000,2174004#300,2001006#100|2001007#100|2001008#100|2001009#100,2174005#300 | Y181: 60174#41#42#61000 | Z181: 60174 | AA181: 41 | AB181: 42 | AC181: 61000
E182: 1#2175001|2#2175002 | F182: =F181+1000 -> 2175001 | G182: =G181+1000 -> 2175002 | H182: 5#3 | I182: 1#10000 | K182: 2175003#10000,2175004#10000,2175005#10000,2001009#10000 | L182: 2175003 | M182: 2175004 | N182: 2175005 | O182: 2001006 | P182: 2001007 | Q182: 2001008 | R182: 2001009 | S182: 0 | T182: 1 | U182: 2175003#10000 | V182: 2001006#100|2001007#100|2001008#100|2001009#100 | X182: 2175003#10000 | Y182: 60175#41#42#61000 | Z182: 60175 | AA182: 41 | AB182: 42 | AC182: 61000
E183: 1#2176001|2#2176002 | F183: 2176001 | G183: 2176002 | H183: 5#3 | I183: 1#9000|2#300|3#400|4#300 | K183: 2176003#10000,2176004#10000,2176005#10000,2001009#10000 | L183: 2176003 | M183: 2176004 | N183: 2176005 | O183: 2001006 | P183: 2001007 | Q183: 2001008 | R183: 2001009 | S183: 0.1 | T183: 0.9 | V183: 2001006#100|2001007#100|2001008#100|2001009#100 | W183: 2176003#9000,2176004#300,2001006#100|2001007#100|2001008#100|2001009#100,2176005#300 | X183: 2176003#9000,2176004#300,2001006#100|2001007#100|2001008#100|2001009#100,2176005#300 | Y183: 60176#41#42#61000 | Z183: 60176 | AA183: 41 | AB183: 42 | AC183: 61000
E184: 1#2177001|2#2177002 | F184: 2177001 | G184: 2177002 | H184: 5#3 | I184: 1#9000|2#300|3#400|4#300 | K184: 2177003#10000,2177004#10000,2177005#10000,2001009#10000 | L184: 2177003 | M184: 2177004 | N184: 2177005 | O184: 2001006 | P184: 2001007 | Q184: 2001008 | R184: 2001009 | S184: 0.1 | T184: 0.9 | V184: 2001006#100|2001007#100|2001008#100|2001009#100 | W184: 2177003#9000,2177004#300,2001006#100|2001007#100|2001008#100|2001009#100,2177005#300 | X184: 2177003#9000,2177004#300,2001006#100|2001007#100|2001008#100|2001009#100,2177005#300 | Y184: 60177#41#42#61000 | Z184: 60177 | AA184: 41 | AB184: 42 | AC184: 61000
E185: 1#2178001|2#2178002 | F185: 2178001 | G185: 2178002 | H185: 5#3 | I185: 1#9000|2#300|3#400|4#300 | K185: 2178003#10000,2178004#10000,2178005#10000,2001009#10000 | L185: 2178003 | M185: 2178004 | N185: 2178005 | O185: 2001006 | P185: 2001007 | Q185: 2001008 | R185: 2001009 | S185: 0.1 | T185: 0.9 | V185: 2001006#100|2001007#100|2001008#100|2001009#100 | W185: 2178003#9000,2178004#300,2001006#100|2001007#100|2001008#100|2001009#100,2178005#300 | X185: 2178003#9000,2178004#300,2001006#100|2001007#100|2001008#100|2001009#100,2178005#300 | Y185: 60178#41#42#61000 | Z185: 60178 | AA185: 41 | AB185: 42 | AC185: 61000
E186: 1#2179001|2#2179002 | F186: 2179001 | G186: 2179002 | H186: 5#3 | I186: 1#9000|2#300|3#400|4#300 | K186: 2179003#10000,2179004#10000,2179005#10000,2001009#10000 | L186: 2179003 | M186: 2179004 | N186: 2179005 | O186: 2001006 | P186: 2001007 | Q186: 2001008 | R186: 2001009 | S186: 0.1 | T186: 0.9 | V186: 2001006#100|2001007#100|2001008#100|2001009#100 | W186: 2179003#9000,2179004#300,2001006#100|2001007#100|2001008#100|2001009#100,2179005#300 | X186: 2179003#9000,2179004#300,2001006#100|2001007#100|2001008#100|2001009#100,2179005#300 | Y186: 60179#41#42#61000 | Z186: 60179 | AA186: 41 | AB186: 42 | AC186: 61000
E187: 1#2180001|2#2180002 | F187: 2180001 | G187: 2180002 | H187: 5#3 | I187: 1#10000 | K187: 2180003#10000,2180004#10000,2180005#10000,2001009#10000 | L187: 2180003 | M187: 2180004 | N187: 2180005 | O187: 2001006 | P187: 2001007 | Q187: 2001008 | R187: 2001009 | S187: 0 | T187: 1 | U187: 2180003#10000 | V187: 2001006#100|2001007#100|2001008#100|2001009#100 | X187: 2180003#10000 | Y187: 60180#41#42#61000 | Z187: 60180 | AA187: 41 | AB187: 42 | AC187: 61000
E188: 1#2181001|2#2181002 | F188: 2181001 | G188: 2181002 | H188: 5#3 | I188: 1#9000|2#300|3#400|4#300 | K188: 2181003#10000,2181004#10000,2181005#10000,2001009#10000 | L188: 2181003 | M188: 2181004 | N188: 2181005 | O188: 2001006 | P188: 2001007 | Q188: 2001008 | R188: 2001009 | S188: 0.1 | T188: 0.9 | V188: 2001006#100|2001007#100|2001008#100|2001009#100 | W188: 2181003#9000,2181004#300,2001006#100|2001007#100|2001008#100|2001009#100,2181005#300 | X188: 2181003#9000,2181004#300,2001006#100|2001007#100|2001008#100|2001009#100,2181005#300 | Y188: 60181#41#42#61000 | Z188: 60181 | AA188: 41 | AB188: 42 | AC188: 61000
E189: 1#2182001|2#2182002 | F189: 2182001 | G189: 2182002 | H189: 5#3 | I189: 1#9000|2#300|3#400|4#300 | K189: 2182003#10000,2182004#10000,2182005#10000,2001009#10000 | L189: 2182003 | M189: 2182004 | N189: 2182005 | O189: 2001006 | P189: 2001007 | Q189: 2001008 | R189: 2001009 | S189: 0.1 | T189: 0.9 | V189: 2001006#100|2001007#100|2001008#100|2001009#100 | W189: 2182003#9000,2182004#300,2001006#100|2001007#100|2001008#100|2001009#100,2182005#300 | X189: 2182003#9000,2182004#300,2001006#100|2001007#100|2001008#100|2001009#100,2182005#300 | Y189: 60182#41#42#61000 | Z189: 60182 | AA189: 41 | AB189: 42 | AC189: 61000
E190: 1#2183001|2#2183002 | F190: 2183001 | G190: 2183002 | H190: 5#3 | I190: 1#9000|2#300|3#400|4#300 | K190: 2183003#10000,2183004#10000,2183005#10000,2001009#10000 | L190: =L189+1000 -> 2183003 | M190: 2183004 | N190: 2183005 | O190: =O189 -> 2001006 | P190: 2001007 | Q190: 2001008 | R190: 2001009 | S190: 0.1 | T190: 0.9 | V190: 2001006#100|2001007#100|2001008#100|2001009#100 | W190: 2183003#9000,2183004#300,2001006#100|2001007#100|2001008#100|2001009#100,2183005#300 | X190: 2183003#9000,2183004#300,2001006#100|2001007#100|2001008#100|2001009#100,2183005#300 | Y190: 60183#41#42#61000 | Z190: 60183 | AA190: 41 | AB190: 42 | AC190: 61000
E191: 1#2184001|2#2184002 | F191: 2184001 | G191: 2184002 | H191: 5#3 | I191: 1#9000|2#300|3#400|4#300 | K191: 2184003#10000,2184004#10000,2184005#10000,2001009#10000 | L191: =L190+1000 -> 2184003 | M191: 2184004 | N191: 2184005 | O191: =O190 -> 2001006 | P191: 2001007 | Q191: 2001008 | R191: 2001009 | S191: 0.1 | T191: 0.9 | V191: 2001006#100|2001007#100|2001008#100|2001009#100 | W191: 2184003#9000,2184004#300,2001006#100|2001007#100|2001008#100|2001009#100,2184005#300 | X191: 2184003#9000,2184004#300,2001006#100|2001007#100|2001008#100|2001009#100,2184005#300 | Y191: 60184#41#42#61000 | Z191: 60184 | AA191: 41 | AB191: 42 | AC191: 61000
E192: 1#2185001|2#2185002 | F192: 2185001 | G192: 2185002 | H192: 5#3 | I192: 1#10000 | K192: 2185003#10000,2185004#10000,2185005#10000,2001009#10000 | L192: =L191+1000 -> 2185003 | M192: 2185004 | N192: 2185005 | O192: =O191 -> 2001006 | P192: 2001007 | Q192: 2001008 | R192: 2001009 | S192: 0 | T192: 1 | U192: 2185003#10000 | V192: 2001006#100|2001007#100|2001008#100|2001009#100 | X192: 2185003#10000 | Y192: 60185#41#42#61000 | Z192: 60185 | AA192: 41 | AB192: 42 | AC192: 61000
E193: 1#2186001|2#2186002 | F193: 2186001 | G193: 2186002 | H193: 5#3 | I193: 1#9000|2#300|3#400|4#300 | K193: 2186003#10000,2186004#10000,2186005#10000,2001009#10000 | L193: =L192+1000 -> 2186003 | M193: 2186004 | N193: 2186005 | O193: =O192 -> 2001006 | P193: 2001007 | Q193: 2001008 | R193: 2001009 | S193: 0.1 | T193: 0.9 | V193: 2001006#100|2001007#100|2001008#100|2001009#100 | W193: 2186003#9000,2186004#300,2001006#100|2001007#100|2001008#100|2001009#100,2186005#300 | X193: 2186003#9000,2186004#300,2001006#100|2001007#100|2001008#100|2001009#100,2186005#300 | Y193: 60186#41#42#61000 | Z193: 60186 | AA193: 41 | AB193: 42 | AC193: 61000
E194: 1#2187001|2#2187002 | F194: 2187001 | G194: 2187002 | H194: 5#3 | I194: 1#9000|2#300|3#400|4#300 | K194: 2187003#10000,2187004#10000,2187005#10000,2001009#10000 | L194: =L193+1000 -> 2187003 | M194: 2187004 | N194: 2187005 | O194: =O193 -> 2001006 | P194: 2001007 | Q194: 2001008 | R194: 2001009 | S194: 0.1 | T194: 0.9 | V194: 2001006#100|2001007#100|2001008#100|2001009#100 | W194: 2187003#9000,2187004#300,2001006#100|2001007#100|2001008#100|2001009#100,2187005#300 | X194: 2187003#9000,2187004#300,2001006#100|2001007#100|2001008#100|2001009#100,2187005#300 | Y194: 60187#41#42#61000 | Z194: 60187 | AA194: 41 | AB194: 42 | AC194: 61000
E195: 1#2188001|2#2188002 | F195: 2188001 | G195: 2188002 | H195: 5#3 | I195: 1#9000|2#300|3#400|4#300 | K195: 2188003#10000,2188004#10000,2188005#10000,2001009#10000 | L195: =L194+1000 -> 2188003 | M195: 2188004 | N195: 2188005 | O195: =O194 -> 2001006 | P195: 2001007 | Q195: 2001008 | R195: 2001009 | S195: 0.1 | T195: 0.9 | V195: 2001006#100|2001007#100|2001008#100|2001009#100 | W195: 2188003#9000,2188004#300,2001006#100|2001007#100|2001008#100|2001009#100,2188005#300 | X195: 2188003#9000,2188004#300,2001006#100|2001007#100|2001008#100|2001009#100,2188005#300 | Y195: 60188#41#42#61000 | Z195: 60188 | AA195: 41 | AB195: 42 | AC195: 61000
E196: 1#2189001|2#2189002 | F196: 2189001 | G196: 2189002 | H196: 5#3 | I196: 1#9000|2#300|3#400|4#300 | K196: 2189003#10000,2189004#10000,2189005#10000,2001009#10000 | L196: =L195+1000 -> 2189003 | M196: 2189004 | N196: 2189005 | O196: =O195 -> 2001006 | P196: 2001007 | Q196: 2001008 | R196: 2001009 | S196: 0.1 | T196: 0.9 | V196: 2001006#100|2001007#100|2001008#100|2001009#100 | W196: 2189003#9000,2189004#300,2001006#100|2001007#100|2001008#100|2001009#100,2189005#300 | X196: 2189003#9000,2189004#300,2001006#100|2001007#100|2001008#100|2001009#100,2189005#300 | Y196: 60189#41#42#61000 | Z196: 60189 | AA196: 41 | AB196: 42 | AC196: 61000
E197: 1#2190001|2#2190002 | F197: 2190001 | G197: 2190002 | H197: 5#3 | I197: 1#10000 | K197: 2190003#10000,2190004#10000,2190005#10000,2001009#10000 | L197: =L196+1000 -> 2190003 | M197: 2190004 | N197: 2190005 | O197: =O196 -> 2001006 | P197: 2001007 | Q197: 2001008 | R197: 2001009 | S197: 0 | T197: 1 | U197: 2190003#10000 | V197: 2001006#100|2001007#100|2001008#100|2001009#100 | X197: 2190003#10000 | Y197: 60190#41#42#61000 | Z197: 60190 | AA197: 41 | AB197: 42 | AC197: 61000
E198: 1#2191001|2#2191002 | F198: 2191001 | G198: 2191002 | H198: 5#3 | I198: 1#9000|2#300|3#400|4#300 | K198: 2191003#10000,2191004#10000,2191005#10000,2001009#10000 | L198: =L197+1000 -> 2191003 | M198: 2191004 | N198: 2191005 | O198: =O197 -> 2001006 | P198: 2001007 | Q198: 2001008 | R198: 2001009 | S198: 0.1 | T198: 0.9 | V198: 2001006#100|2001007#100|2001008#100|2001009#100 | W198: 2191003#9000,2191004#300,2001006#100|2001007#100|2001008#100|2001009#100,2191005#300 | X198: 2191003#9000,2191004#300,2001006#100|2001007#100|2001008#100|2001009#100,2191005#300 | Y198: 60191#41#42#61000 | Z198: 60191 | AA198: 41 | AB198: 42 | AC198: 61000
E199: 1#2192001|2#2192002 | F199: 2192001 | G199: 2192002 | H199: 5#3 | I199: 1#9000|2#300|3#400|4#300 | K199: 2192003#10000,2192004#10000,2192005#10000,2001009#10000 | L199: =L198+1000 -> 2192003 | M199: 2192004 | N199: 2192005 | O199: =O198 -> 2001006 | P199: 2001007 | Q199: 2001008 | R199: 2001009 | S199: 0.1 | T199: 0.9 | V199: 2001006#100|2001007#100|2001008#100|2001009#100 | W199: 2192003#9000,2192004#300,2001006#100|2001007#100|2001008#100|2001009#100,2192005#300 | X199: 2192003#9000,2192004#300,2001006#100|2001007#100|2001008#100|2001009#100,2192005#300 | Y199: 60192#41#42#61000 | Z199: 60192 | AA199: 41 | AB199: 42 | AC199: 61000
E200: 1#2193001|2#2193002 | F200: 2193001 | G200: 2193002 | H200: 5#3 | I200: 1#9000|2#300|3#400|4#300 | K200: 2193003#10000,2193004#10000,2193005#10000,2001009#10000 | L200: =L199+1000 -> 2193003 | M200: 2193004 | N200: 2193005 | O200: =O199 -> 2001006 | P200: 2001007 | Q200: 2001008 | R200: 2001009 | S200: 0.1 | T200: 0.9 | V200: 2001006#100|2001007#100|2001008#100|2001009#100 | W200: 2193003#9000,2193004#300,2001006#100|2001007#100|2001008#100|2001009#100,2193005#300 | X200: 2193003#9000,2193004#300,2001006#100|2001007#100|2001008#100|2001009#100,2193005#300 | Y200: 60193#41#42#61000 | Z200: 60193 | AA200: 41 | AB200: 42 | AC200: 61000
... 7 more rows
